Workbook

Sheet Dashboard
B1: Aargau im Wachstum
B2: Einwohnerzahlen nach Gemeinden
B4: Gemeinde | F4: Karte | N4: Wachstum
O5: 1981-1990 | P5: 1991-2000 | Q5: 2001-2011 | R5: Rang | S5: 1981-2011 | T5: Rang
N6: =auswahlGemeinde -> Holziken | O6: =VLOOKUP(auswahlGemeinde,tblAargau[],COLUMN(tblAargau[1981-1990]),0) -> 0.07058823529 | P6: =VLOOKUP(auswahlGemeinde,tblAargau[],COLUMN(tblAargau[1991-2000]),0) -> 0.1185958254 | Q6: =VLOOKUP(auswahlGemeinde,tblAargau[],COLUMN(tblAargau[2001-2011]),0) -> 0.06058020478 | R6: =VLOOKUP(auswahlGemeinde,tblAargau[],COLUMN(tblAargau[RangW.2011]),0) -> 154 | S6: =VLOOKUP(auswahlGemeinde,tblAargau[],COLUMN(tblAargau[1981-2011]),0) -> 0.3294117647 | T6: =VLOOKUP(auswahlGemeinde,tblAargau[],COLUMN(tblAargau[RangW.Gesamt]),0) -> 143
N7: Aargau | O7: =Daten_Aargau!AH223 -> 0.08982262279 | P7: =Daten_Aargau!AI223 -> 0.07385853112 | Q7: =Daten_Aargau!AJ223 -> 0.1054765517 | S7: =Daten_Aargau!AL223 -> 0.3356563133
N8: Schweiz | O8: =Daten_Aargau!AH224 -> 0.05928051011 | P8: =Daten_Aargau!AI224 -> 0.05279837048 | Q8: =Daten_Aargau!AJ224 -> 0.09605572372 | S8: =Daten_Aargau!AL224 -> 0.247876949
B19: Gemeinde
B20: Namen | D20: =auswahlGemeinde -> Holziken
B21: im Bezirk | D21: =VLOOKUP(auswahlGemeinde,tblAargau[],COLUMN(tblAargau[[#Headers],[Bezirke]]),0) -> Kulm
B22: Einwohnerzahl (in 2011) | D22: =VLOOKUP(auswahlGemeinde,tblAargau[],COLUMN(tblAargau[[#Headers],[2011]]),0) -> 1243
B23: Einwohner/km² | D23: =VLOOKUP(auswahlGemeinde,tblAargau[],COLUMN(tblAargau[[#Headers],[Einwohner/km²]]),0) -> 435
B24: Fläche in km² | D24: =VLOOKUP(auswahlGemeinde,tblAargau[],COLUMN(tblAargau[[#Headers],[Fläche in km²]]),0) -> 2.86
B25: Gemeinde Steuerfuss | D25: =VLOOKUP(auswahlGemeinde,tblAargau[],COLUMN(tblAargau[[#Headers],[Tax]]),0)&" %" -> 104 %
B38: Aargauische Gemeinden nach Rang
F40: Top Ten | G40: Gemeinde | H40: Einwohnerzahl | I40: Einwohner/km² | J40: Fläche in km² | K40: Wachstum 2001 - 2011 | L40: Wachstum 1981 - 2011
F41: Rang
F42: 1 | G42: =INDEX(tblAargau[Gemeinde],MATCH(F42,OFFSET(tblAargau[Gemeinde],0,VLOOKUP($B$82,nfRefTabelle,3,0)-1),0)) -> Wettingen | H42: =VLOOKUP($G42,tblAargau[],VLOOKUP(H$40,nfRefTabelle,2,0),0) -> 20230 | I42: =VLOOKUP($G42,tblAargau[],VLOOKUP(I$40,nfRefTabelle,2,0),0) -> 1907 | J42: =VLOOKUP($G42,tblAargau[],VLOOKUP(J$40,nfRefTabelle,2,0),0) -> 10.61 | K42: =VLOOKUP($G42,tblAargau[],VLOOKUP(K$40,nfRefTabelle,2,0),0) -> 0.12176999 | L42: =VLOOKUP($G42,tblAargau[],VLOOKUP(L$40,nfRefTabelle,2,0),0) -> 0.1100746269
F43: 2 | G43: =INDEX(tblAargau[Gemeinde],MATCH(F43,OFFSET(tblAargau[Gemeinde],0,VLOOKUP($B$82,nfRefTabelle,3,0)-1),0)) -> Aarau | H43: =VLOOKUP($G43,tblAargau[],VLOOKUP(H$40,nfRefTabelle,2,0),0) -> 20043 | I43: =VLOOKUP($G43,tblAargau[],VLOOKUP(I$40,nfRefTabelle,2,0),0) -> 1624 | J43: =VLOOKUP($G43,tblAargau[],VLOOKUP(J$40,nfRefTabelle,2,0),0) -> 12.33 | K43: =VLOOKUP($G43,tblAargau[],VLOOKUP(K$40,nfRefTabelle,2,0),0) -> 0.1169750334 | L43: =VLOOKUP($G43,tblAargau[],VLOOKUP(L$40,nfRefTabelle,2,0),0) -> 0.1273412453
F44: 3 | G44: =INDEX(tblAargau[Gemeinde],MATCH(F44,OFFSET(tblAargau[Gemeinde],0,VLOOKUP($B$82,nfRefTabelle,3,0)-1),0)) -> Baden | H44: =VLOOKUP($G44,tblAargau[],VLOOKUP(H$40,nfRefTabelle,2,0),0) -> 18404 | I44: =VLOOKUP($G44,tblAargau[],VLOOKUP(I$40,nfRefTabelle,2,0),0) -> 1396 | J44: =VLOOKUP($G44,tblAargau[],VLOOKUP(J$40,nfRefTabelle,2,0),0) -> 13.18 | K44: =VLOOKUP($G44,tblAargau[],VLOOKUP(K$40,nfRefTabelle,2,0),0) -> 0.1375239508 | L44: =VLOOKUP($G44,tblAargau[],VLOOKUP(L$40,nfRefTabelle,2,0),0) -> 0.3283291231
F45: 4 | G45: =INDEX(tblAargau[Gemeinde],MATCH(F45,OFFSET(tblAargau[Gemeinde],0,VLOOKUP($B$82,nfRefTabelle,3,0)-1),0)) -> Wohlen (AG) | H45: =VLOOKUP($G45,tblAargau[],VLOOKUP(H$40,nfRefTabelle,2,0),0) -> 14623 | I45: =VLOOKUP($G45,tblAargau[],VLOOKUP(I$40,nfRefTabelle,2,0),0) -> 1172 | J45: =VLOOKUP($G45,tblAargau[],VLOOKUP(J$40,nfRefTabelle,2,0),0) -> 12.48 | K45: =VLOOKUP($G45,tblAargau[],VLOOKUP(K$40,nfRefTabelle,2,0),0) -> 0.08206304573 | L45: =VLOOKUP($G45,tblAargau[],VLOOKUP(L$40,nfRefTabelle,2,0),0) -> 0.2613646166
F46: 5 | G46: =INDEX(tblAargau[Gemeinde],MATCH(F46,OFFSET(tblAargau[Gemeinde],0,VLOOKUP($B$82,nfRefTabelle,3,0)-1),0)) -> Oftringen | H46: =VLOOKUP($G46,tblAargau[],VLOOKUP(H$40,nfRefTabelle,2,0),0) -> 12618 | I46: =VLOOKUP($G46,tblAargau[],VLOOKUP(I$40,nfRefTabelle,2,0),0) -> 982 | J46: =VLOOKUP($G46,tblAargau[],VLOOKUP(J$40,nfRefTabelle,2,0),0) -> 12.85 | K46: =VLOOKUP($G46,tblAargau[],VLOOKUP(K$40,nfRefTabelle,2,0),0) -> 0.2330694811 | L46: =VLOOKUP($G46,tblAargau[],VLOOKUP(L$40,nfRefTabelle,2,0),0) -> 0.4076305221
F47: 6 | G47: =INDEX(tblAargau[Gemeinde],MATCH(F47,OFFSET(tblAargau[Gemeinde],0,VLOOKUP($B$82,nfRefTabelle,3,0)-1),0)) -> Rheinfelden | H47: =VLOOKUP($G47,tblAargau[],VLOOKUP(H$40,nfRefTabelle,2,0),0) -> 12074 | I47: =VLOOKUP($G47,tblAargau[],VLOOKUP(I$40,nfRefTabelle,2,0),0) -> 753 | J47: =VLOOKUP($G47,tblAargau[],VLOOKUP(J$40,nfRefTabelle,2,0),0) -> 16.03 | K47: =VLOOKUP($G47,tblAargau[],VLOOKUP(K$40,nfRefTabelle,2,0),0) -> 0.1255709891 | L47: =VLOOKUP($G47,tblAargau[],VLOOKUP(L$40,nfRefTabelle,2,0),0) -> 0.2670794417
F48: 7 | G48: =INDEX(tblAargau[Gemeinde],MATCH(F48,OFFSET(tblAargau[Gemeinde],0,VLOOKUP($B$82,nfRefTabelle,3,0)-1),0)) -> Zofingen | H48: =VLOOKUP($G48,tblAargau[],VLOOKUP(H$40,nfRefTabelle,2,0),0) -> 10990 | I48: =VLOOKUP($G48,tblAargau[],VLOOKUP(I$40,nfRefTabelle,2,0),0) -> 991 | J48: =VLOOKUP($G48,tblAargau[],VLOOKUP(J$40,nfRefTabelle,2,0),0) -> 11.09 | K48: =VLOOKUP($G48,tblAargau[],VLOOKUP(K$40,nfRefTabelle,2,0),0) -> 0.1465832029 | L48: =VLOOKUP($G48,tblAargau[],VLOOKUP(L$40,nfRefTabelle,2,0),0) -> 0.1926207271
F49: 8 | G49: =INDEX(tblAargau[Gemeinde],MATCH(F49,OFFSET(tblAargau[Gemeinde],0,VLOOKUP($B$82,nfRefTabelle,3,0)-1),0)) -> Spreitenbach | H49: =VLOOKUP($G49,tblAargau[],VLOOKUP(H$40,nfRefTabelle,2,0),0) -> 10955 | I49: =VLOOKUP($G49,tblAargau[],VLOOKUP(I$40,nfRefTabelle,2,0),0) -> 1274 | J49: =VLOOKUP($G49,tblAargau[],VLOOKUP(J$40,nfRefTabelle,2,0),0) -> 8.6 | K49: =VLOOKUP($G49,tblAargau[],VLOOKUP(K$40,nfRefTabelle,2,0),0) -> 0.1529151758 | L49: =VLOOKUP($G49,tblAargau[],VLOOKUP(L$40,nfRefTabelle,2,0),0) -> 0.4963802759
F50: 9 | G50: =INDEX(tblAargau[Gemeinde],MATCH(F50,OFFSET(tblAargau[Gemeinde],0,VLOOKUP($B$82,nfRefTabelle,3,0)-1),0)) -> Brugg | H50: =VLOOKUP($G50,tblAargau[],VLOOKUP(H$40,nfRefTabelle,2,0),0) -> 10545 | I50: =VLOOKUP($G50,tblAargau[],VLOOKUP(I$40,nfRefTabelle,2,0),0) -> 1653 | J50: =VLOOKUP($G50,tblAargau[],VLOOKUP(J$40,nfRefTabelle,2,0),0) -> 6.36 | K50: =VLOOKUP($G50,tblAargau[],VLOOKUP(K$40,nfRefTabelle,2,0),0) -> 0.02928257687 | L50: =VLOOKUP($G50,tblAargau[],VLOOKUP(L$40,nfRefTabelle,2,0),0) -> 0.07415707446
F51: 10 | G51: =INDEX(tblAargau[Gemeinde],MATCH(F51,OFFSET(tblAargau[Gemeinde],0,VLOOKUP($B$82,nfRefTabelle,3,0)-1),0)) -> Möhlin | H51: =VLOOKUP($G51,tblAargau[],VLOOKUP(H$40,nfRefTabelle,2,0),0) -> 10201 | I51: =VLOOKUP($G51,tblAargau[],VLOOKUP(I$40,nfRefTabelle,2,0),0) -> 543 | J51: =VLOOKUP($G51,tblAargau[],VLOOKUP(J$40,nfRefTabelle,2,0),0) -> 18.79 | K51: =VLOOKUP($G51,tblAargau[],VLOOKUP(K$40,nfRefTabelle,2,0),0) -> 0.2177390474 | L51: =VLOOKUP($G51,tblAargau[],VLOOKUP(L$40,nfRefTabelle,2,0),0) -> 0.6115323855
F53: Bottom Five | H53: Einwohnerzahl | I53: Einwohner/km² | J53: Fläche in km² | K53: Wachstum 2001 - 2011 | L53: Wachstum 1981 - 2011
F54: Rang
F55: =F56-1 -> 215 | G55: =INDEX(tblAargau[Gemeinde],MATCH(F55,OFFSET(tblAargau[Gemeinde],0,VLOOKUP($B$82,nfRefTabelle,3,0)-1),0)) -> Geltwil | H55: =VLOOKUP($G55,tblAargau[],VLOOKUP(H$40,nfRefTabelle,2,0),0) -> 187 | I55: =VLOOKUP($G55,tblAargau[],VLOOKUP(I$40,nfRefTabelle,2,0),0) -> 57 | J55: =VLOOKUP($G55,tblAargau[],VLOOKUP(J$40,nfRefTabelle,2,0),0) -> 3.3 | K55: =VLOOKUP($G55,tblAargau[],VLOOKUP(K$40,nfRefTabelle,2,0),0) -> 0.2064516129 | L55: =VLOOKUP($G55,tblAargau[],VLOOKUP(L$40,nfRefTabelle,2,0),0) -> 0.427480916
F56: =F57-1 -> 216 | G56: =INDEX(tblAargau[Gemeinde],MATCH(F56,OFFSET(tblAargau[Gemeinde],0,VLOOKUP($B$82,nfRefTabelle,3,0)-1),0)) -> Wiliberg | H56: =VLOOKUP($G56,tblAargau[],VLOOKUP(H$40,nfRefTabelle,2,0),0) -> 168 | I56: =VLOOKUP($G56,tblAargau[],VLOOKUP(I$40,nfRefTabelle,2,0),0) -> 144 | J56: =VLOOKUP($G56,tblAargau[],VLOOKUP(J$40,nfRefTabelle,2,0),0) -> 1.17 | K56: =VLOOKUP($G56,tblAargau[],VLOOKUP(K$40,nfRefTabelle,2,0),0) -> 0.09090909091 | L56: =VLOOKUP($G56,tblAargau[],VLOOKUP(L$40,nfRefTabelle,2,0),0) -> 0.3884297521
F57: =F58-1 -> 217 | G57: =INDEX(tblAargau[Gemeinde],MATCH(F57,OFFSET(tblAargau[Gemeinde],0,VLOOKUP($B$82,nfRefTabelle,3,0)-1),0)) -> Böbikon | H57: =VLOOKUP($G57,tblAargau[],VLOOKUP(H$40,nfRefTabelle,2,0),0) -> 161 | I57: =VLOOKUP($G57,tblAargau[],VLOOKUP(I$40,nfRefTabelle,2,0),0) -> 62 | J57: =VLOOKUP($G57,tblAargau[],VLOOKUP(J$40,nfRefTabelle,2,0),0) -> 2.59 | K57: =VLOOKUP($G57,tblAargau[],VLOOKUP(K$40,nfRefTabelle,2,0),0) -> -0.1344086022 | L57: =VLOOKUP($G57,tblAargau[],VLOOKUP(L$40,nfRefTabelle,2,0),0) -> 0.2384615385
F58: =F59-1 -> 218 | G58: =INDEX(tblAargau[Gemeinde],MATCH(F58,OFFSET(tblAargau[Gemeinde],0,VLOOKUP($B$82,nfRefTabelle,3,0)-1),0)) -> Linn | H58: =VLOOKUP($G58,tblAargau[],VLOOKUP(H$40,nfRefTabelle,2,0),0) -> 136 | I58: =VLOOKUP($G58,tblAargau[],VLOOKUP(I$40,nfRefTabelle,2,0),0) -> 53 | J58: =VLOOKUP($G58,tblAargau[],VLOOKUP(J$40,nfRefTabelle,2,0),0) -> 2.55 | K58: =VLOOKUP($G58,tblAargau[],VLOOKUP(K$40,nfRefTabelle,2,0),0) -> 0.088 | L58: =VLOOKUP($G58,tblAargau[],VLOOKUP(L$40,nfRefTabelle,2,0),0) -> 0.5454545455
F59: =COUNTA(tblAargau[Gemeinde]) -> 219 | G59: =INDEX(tblAargau[Gemeinde],MATCH(F59,OFFSET(tblAargau[Gemeinde],0,VLOOKUP($B$82,nfRefTabelle,3,0)-1),0)) -> Gallenkirch | H59: =VLOOKUP($G59,tblAargau[],VLOOKUP(H$40,nfRefTabelle,2,0),0) -> 133 | I59: =VLOOKUP($G59,tblAargau[],VLOOKUP(I$40,nfRefTabelle,2,0),0) -> 95 | J59: =VLOOKUP($G59,tblAargau[],VLOOKUP(J$40,nfRefTabelle,2,0),0) -> 1.4 | K59: =VLOOKUP($G59,tblAargau[],VLOOKUP(K$40,nfRefTabelle,2,0),0) -> 0.064 | L59: =VLOOKUP($G59,tblAargau[],VLOOKUP(L$40,nfRefTabelle,2,0),0) -> 0.8472222222
C74: AbsWert | D74: Rang
B75: Einwohnerzahl | C75: =COLUMN(tblAargau[[#Headers],[2011]]) -> 33 | D75: =COLUMN(tblAargau[[#Headers],[RangE.2011]]) -> 34
B76: Einwohner/km² | C76: =COLUMN(tblAargau[[#Headers],[Einwohner/km²]]) -> 43 | D76: =COLUMN(tblAargau[[#Headers],[RangDichte]]) -> 44
B77: Fläche in km² | C77: =COLUMN(tblAargau[[#Headers],[Fläche in km²]]) -> 41 | D77: =COLUMN(tblAargau[[#Headers],[RangFläche]]) -> 42
B78: Wachstum 2001 - 2011 | C78: =COLUMN(tblAargau[[#Headers],[2001-2011]]) -> 37 | D78: =COLUMN(tblAargau[[#Headers],[RangW.2011]]) -> 38
B79: Wachstum 1981 - 2011 | C79: =COLUMN(tblAargau[[#Headers],[1981-2011]]) -> 39 | D79: =COLUMN(tblAargau[[#Headers],[RangW.Gesamt]]) -> 40
B82: Einwohnerzahl
B83: Holziken

Sheet Daten_Aargau
A1: Gemeinde | B1: Bezirke | C1: 1981 | D1: 1982 | E1: 1983 | F1: 1984 | G1: 1985 | H1: 1986 | I1: 1987 | J1: 1988 | K1: 1989 | L1: 1990 | M1: 1991 | N1: 1992 | O1: 1993 | P1: 1994 | Q1: 1995 | R1: 1996 | S1: 1997 | T1: 1998 | U1: 1999 | V1: 2000 | W1: 2001 | X1: 2002 | Y1: 2003 | Z1: 2004 | AA1: 2005 | AB1: 2006 | AC1: 2007 | AD1: 2008 | AE1: 2009 | AF1: 2010 | AG1: 2011 | AH1: RangE.2011 | AI1: 1981-1990 | AJ1: 1991-2000 | AK1: 2001-2011 | AL1: RangW.2011 | AM1: 1981-2011 | AN1: RangW.Gesamt | AO1: Fläche in km² | AP1: RangFläche | AQ1: Einwohner/km² | AR1: RangDichte | AS1: Tax | AT1: RangTax
A2: Aarau | B2: Aarau | C2: 17779 | D2: 17932 | E2: 18084 | F2: 18095 | G2: 18069 | H2: 17993 | I2: 17907 | J2: 17830 | K2: 18128 | L2: 18237 | M2: 18357 | N2: 18265 | O2: 18516 | P2: 18486 | Q2: 18509 | R2: 18445 | S2: 18090 | T2: 17957 | U2: 17967 | V2: 17989 | W2: 17944 | X2: 17903 | Y2: 18099 | Z2: 18198 | AA2: 18270 | AB2: 18324 | AC2: 18656 | AD2: 18961 | AE2: 19289 | AF2: 19461 | AG2: 20043 | AH2: =_xlfn.RANK.EQ(tblAargau[[#This Row],[2011]],tblAargau[2011]) -> 2 | AI2: =IFERROR(L2/C2-1,0) -> 0.02576072895 | AJ2: =IFERROR(V2/M2-1,0) -> -0.02004684861 | AK2: =IFERROR(AG2/W2-1,0) -> 0.1169750334 | AL2: =_xlfn.RANK.EQ(tblAargau[[#This Row],[2001-2011]],tblAargau[2001-2011]) -> 111 | AM2: =IFERROR(AG2/C2-1,0) -> 0.1273412453 | AN2: =_xlfn.RANK.EQ(tblAargau[[#This Row],[1981-2011]],tblAargau[1981-2011]) -> 202 | AO2: 12.33 | AP2: =_xlfn.RANK.EQ(tblAargau[[#This Row],[Fläche in km²]],tblAargau[Fläche in km²]) -> 18 | AQ2: 1624 | AR2: =_xlfn.RANK.EQ(tblAargau[[#This Row],[Einwohner/km²]],tblAargau[Einwohner/km²]) -> 4 | AS2: 94 | AT2: =_xlfn.RANK.EQ(tblAargau[[#This Row],[Tax]],tblAargau[Tax],1) -> 29
A3: Aarburg | B3: Zofingen | C3: 5311 | D3: 5380 | E3: 5438 | F3: 5508 | G3: 5555 | H3: 5507 | I3: 5461 | J3: 5460 | K3: 5395 | L3: 5503 | M3: 5757 | N3: 5843 | O3: 5998 | P3: 6072 | Q3: 6160 | R3: 6278 | S3: 6230 | T3: 6204 | U3: 6228 | V3: 6281 | W3: 6296 | X3: 6346 | Y3: 6462 | Z3: 6518 | AA3: 6543 | AB3: 6556 | AC3: 6469 | AD3: 6633 | AE3: 6914 | AF3: 6956 | AG3: 7155 | AH3: =_xlfn.RANK.EQ(tblAargau[[#This Row],[2011]],tblAargau[2011]) -> 20 | AI3: 0.03615138392 | AJ3: 0.09101962828 | AK3: 0.1364358323 | AL3: =_xlfn.RANK.EQ(tblAargau[[#This Row],[2001-2011]],tblAargau[2001-2011]) -> 93 | AM3: 0.3472039164 | AN3: =_xlfn.RANK.EQ(tblAargau[[#This Row],[1981-2011]],tblAargau[1981-2011]) -> 138 | AO3: 4.42 | AP3: =_xlfn.RANK.EQ(tblAargau[[#This Row],[Fläche in km²]],tblAargau[Fläche in km²]) -> 138 | AQ3: 1619 | AR3: =_xlfn.RANK.EQ(tblAargau[[#This Row],[Einwohner/km²]],tblAargau[Einwohner/km²]) -> 5 | AS3: 124 | AT3: =_xlfn.RANK.EQ(tblAargau[[#This Row],[Tax]],tblAargau[Tax],1) -> 214
A4: Abtwil | B4: Muri | C4: 324 | D4: 346 | E4: 352 | F4: 353 | G4: 365 | H4: 381 | I4: 386 | J4: 368 | K4: 361 | L4: 362 | M4: 386 | N4: 389 | O4: 409 | P4: 460 | Q4: 558 | R4: 615 | S4: 641 | T4: 641 | U4: 661 | V4: 672 | W4: 701 | X4: 703 | Y4: 697 | Z4: 701 | AA4: 717 | AB4: 725 | AC4: 721 | AD4: 748 | AE4: 831 | AF4: 911 | AG4: 940 | AH4: =_xlfn.RANK.EQ(tblAargau[[#This Row],[2011]],tblAargau[2011]) -> 162 | AI4: 0.1172839506 | AJ4: 0.7409326425 | AK4: 0.3409415121 | AL4: =_xlfn.RANK.EQ(tblAargau[[#This Row],[2001-2011]],tblAargau[2001-2011]) -> 11 | AM4: 1.901234568 | AN4: =_xlfn.RANK.EQ(tblAargau[[#This Row],[1981-2011]],tblAargau[1981-2011]) -> 3 | AO4: 4.14 | AP4: =_xlfn.RANK.EQ(tblAargau[[#This Row],[Fläche in km²]],tblAargau[Fläche in km²]) -> 148 | AQ4: 227 | AR4: =_xlfn.RANK.EQ(tblAargau[[#This Row],[Einwohner/km²]],tblAargau[Einwohner/km²]) -> 135 | AS4: 112 | AT4: =_xlfn.RANK.EQ(tblAargau[[#This Row],[Tax]],tblAargau[Tax],1) -> 130
A5: Ammerswil | B5: Lenzburg | C5: 364 | D5: 378 | E5: 374 | F5: 393 | G5: 407 | H5: 403 | I5: 401 | J5: 419 | K5: 428 | L5: 401 | M5: 443 | N5: 447 | O5: 451 | P5: 441 | Q5: 438 | R5: 463 | S5: 526 | T5: 573 | U5: 579 | V5: 612 | W5: 623 | X5: 636 | Y5: 638 | Z5: 647 | AA5: 642 | AB5: 647 | AC5: 655 | AD5: 660 | AE5: 661 | AF5: 680 | AG5: 675 | AH5: =_xlfn.RANK.EQ(tblAargau[[#This Row],[2011]],tblAargau[2011]) -> 187 | AI5: 0.1016483516 | AJ5: 0.381489842 | AK5: 0.0834670947 | AL5: =_xlfn.RANK.EQ(tblAargau[[#This Row],[2001-2011]],tblAargau[2001-2011]) -> 138 | AM5: 0.8543956044 | AN5: =_xlfn.RANK.EQ(tblAargau[[#This Row],[1981-2011]],tblAargau[1981-2011]) -> 33 | AO5: 3.19 | AP5: =_xlfn.RANK.EQ(tblAargau[[#This Row],[Fläche in km²]],tblAargau[Fläche in km²]) -> 181 | AQ5: 212 | AR5: =_xlfn.RANK.EQ(tblAargau[[#This Row],[Einwohner/km²]],tblAargau[Einwohner/km²]) -> 143 | AS5: 98 | AT5: =_xlfn.RANK.EQ(tblAargau[[#This Row],[Tax]],tblAargau[Tax],1) -> 44
A6: Aristau | B6: Muri | C6: 741 | D6: 728 | E6: 738 | F6: 727 | G6: 725 | H6: 775 | I6: 797 | J6: 823 | K6: 860 | L6: 859 | M6: 864 | N6: 948 | O6: 1032 | P6: 1077 | Q6: 1100 | R6: 1126 | S6: 1148 | T6: 1138 | U6: 1186 | V6: 1189 | W6: 1192 | X6: 1217 | Y6: 1226 | Z6: 1234 | AA6: 1245 | AB6: 1245 | AC6: 1266 | AD6: 1282 | AE6: 1298 | AF6: 1295 | AG6: 1335 | AH6: =_xlfn.RANK.EQ(tblAargau[[#This Row],[2011]],tblAargau[2011]) -> 129 | AI6: 0.1592442645 | AJ6: 0.3761574074 | AK6: 0.119966443 | AL6: =_xlfn.RANK.EQ(tblAargau[[#This Row],[2001-2011]],tblAargau[2001-2011]) -> 106 | AM6: 0.8016194332 | AN6: =_xlfn.RANK.EQ(tblAargau[[#This Row],[1981-2011]],tblAargau[1981-2011]) -> 42 | AO6: 8.64 | AP6: =_xlfn.RANK.EQ(tblAargau[[#This Row],[Fläche in km²]],tblAargau[Fläche in km²]) -> 50 | AQ6: 155 | AR6: =_xlfn.RANK.EQ(tblAargau[[#This Row],[Einwohner/km²]],tblAargau[Einwohner/km²]) -> 175 | AS6: 109 | AT6: =_xlfn.RANK.EQ(tblAargau[[#This Row],[Tax]],tblAargau[Tax],1) -> 112
A7: Arni (AG) | B7: Bremgarten | C7: 670 | D7: 678 | E7: 702 | F7: 734 | G7: 777 | H7: 808 | I7: 782 | J7: 832 | K7: 904 | L7: 939 | M7: 983 | N7: 1062 | O7: 1053 | P7: 1102 | Q7: 1153 | R7: 1169 | S7: 1241 | T7: 1259 | U7: 1256 | V7: 1299 | W7: 1315 | X7: 1449 | Y7: 1497 | Z7: 1512 | AA7: 1511 | AB7: 1541 | AC7: 1607 | AD7: 1616 | AE7: 1639 | AF7: 1741 | AG7: 1793 | AH7: =_xlfn.RANK.EQ(tblAargau[[#This Row],[2011]],tblAargau[2011]) -> 105 | AI7: 0.4014925373 | AJ7: 0.3214649034 | AK7: 0.3634980989 | AL7: =_xlfn.RANK.EQ(tblAargau[[#This Row],[2001-2011]],tblAargau[2001-2011]) -> 7 | AM7: 1.676119403 | AN7: =_xlfn.RANK.EQ(tblAargau[[#This Row],[1981-2011]],tblAargau[1981-2011]) -> 6 | AO7: 3.38 | AP7: =_xlfn.RANK.EQ(tblAargau[[#This Row],[Fläche in km²]],tblAargau[Fläche in km²]) -> 170 | AQ7: 530 | AR7: =_xlfn.RANK.EQ(tblAargau[[#This Row],[Einwohner/km²]],tblAargau[Einwohner/km²]) -> 66 | AS7: 87 | AT7: =_xlfn.RANK.EQ(tblAargau[[#This Row],[Tax]],tblAargau[Tax],1) -> 14
A8: Attelwil | B8: Zofingen | C8: 228 | D8: 231 | E8: 236 | F8: 243 | G8: 247 | H8: 249 | I8: 247 | J8: 255 | K8: 269 | L8: 270 | M8: 287 | N8: 299 | O8: 307 | P8: 304 | Q8: 306 | R8: 302 | S8: 302 | T8: 307 | U8: 311 | V8: 299 | W8: 321 | X8: 310 | Y8: 304 | Z8: 304 | AA8: 310 | AB8: 303 | AC8: 298 | AD8: 294 | AE8: 292 | AF8: 299 | AG8: 292 | AH8: =_xlfn.RANK.EQ(tblAargau[[#This Row],[2011]],tblAargau[2011]) -> 210 | AI8: 0.1842105263 | AJ8: 0.04181184669 | AK8: -0.09034267913 | AL8: =_xlfn.RANK.EQ(tblAargau[[#This Row],[2001-2011]],tblAargau[2001-2011]) -> 217 | AM8: 0.2807017544 | AN8: =_xlfn.RANK.EQ(tblAargau[[#This Row],[1981-2011]],tblAargau[1981-2011]) -> 160 | AO8: 2.22 | AP8: =_xlfn.RANK.EQ(tblAargau[[#This Row],[Fläche in km²]],tblAargau[Fläche in km²]) -> 208 | AQ8: 132 | AR8: =_xlfn.RANK.EQ(tblAargau[[#This Row],[Einwohner/km²]],tblAargau[Einwohner/km²]) -> 185 | AS8: 98 | AT8: =_xlfn.RANK.EQ(tblAargau[[#This Row],[Tax]],tblAargau[Tax],1) -> 44
A9: Auenstein | B9: Brugg | C9: 1141 | D9: 1144 | E9: 1148 | F9: 1161 | G9: 1126 | H9: 1132 | I9: 1115 | J9: 1125 | K9: 1163 | L9: 1177 | M9: 1217 | N9: 1266 | O9: 1306 | P9: 1365 | Q9: 1377 | R9: 1354 | S9: 1360 | T9: 1376 | U9: 1389 | V9: 1382 | W9: 1384 | X9: 1385 | Y9: 1415 | Z9: 1445 | AA9: 1424 | AB9: 1432 | AC9: 1447 | AD9: 1447 | AE9: 1487 | AF9: 1509 | AG9: 1546 | AH9: =_xlfn.RANK.EQ(tblAargau[[#This Row],[2011]],tblAargau[2011]) -> 114 | AI9: 0.03155127082 | AJ9: 0.1355792933 | AK9: 0.1170520231 | AL9: =_xlfn.RANK.EQ(tblAargau[[#This Row],[2001-2011]],tblAargau[2001-2011]) -> 110 | AM9: 0.3549517967 | AN9: =_xlfn.RANK.EQ(tblAargau[[#This Row],[1981-2011]],tblAargau[1981-2011]) -> 135 | AO9: 5.68 | AP9: =_xlfn.RANK.EQ(tblAargau[[#This Row],[Fläche in km²]],tblAargau[Fläche in km²]) -> 103 | AQ9: 272 | AR9: =_xlfn.RANK.EQ(tblAargau[[#This Row],[Einwohner/km²]],tblAargau[Einwohner/km²]) -> 123 | AS9: 92 | AT9: =_xlfn.RANK.EQ(tblAargau[[#This Row],[Tax]],tblAargau[Tax],1) -> 26
A10: Auw | B10: Muri | C10: 949 | D10: 966 | E10: 946 | F10: 948 | G10: 974 | H10: 967 | I10: 980 | J10: 998 | K10: 1009 | L10: 1011 | M10: 1081 | N10: 1123 | O10: 1098 | P10: 1110 | Q10: 1150 | R10: 1150 | S10: 1141 | T10: 1163 | U10: 1182 | V10: 1217 | W10: 1278 | X10: 1342 | Y10: 1429 | Z10: 1493 | AA10: 1551 | AB10: 1537 | AC10: 1551 | AD10: 1580 | AE10: 1614 | AF10: 1679 | AG10: 1738 | AH10: =_xlfn.RANK.EQ(tblAargau[[#This Row],[2011]],tblAargau[2011]) -> 107 | AI10: 0.06533192835 | AJ10: 0.1258094357 | AK10: 0.3599374022 | AL10: =_xlfn.RANK.EQ(tblAargau[[#This Row],[2001-2011]],tblAargau[2001-2011]) -> 8 | AM10: 0.8314014752 | AN10: =_xlfn.RANK.EQ(tblAargau[[#This Row],[1981-2011]],tblAargau[1981-2011]) -> 37 | AO10: 8.57 | AP10: =_xlfn.RANK.EQ(tblAargau[[#This Row],[Fläche in km²]],tblAargau[Fläche in km²]) -> 53 | AQ10: 203 | AR10: =_xlfn.RANK.EQ(tblAargau[[#This Row],[Einwohner/km²]],tblAargau[Einwohner/km²]) -> 150 | AS10: 111 | AT10: =_xlfn.RANK.EQ(tblAargau[[#This Row],[Tax]],tblAargau[Tax],1) -> 128
A11: Bad Zurzach | B11: Zurzach | C11: 3066 | D11: 3125 | E11: 3145 | F11: 3109 | G11: 3210 | H11: 3301 | I11: 3320 | J11: 3371 | K11: 3402 | L11: 3452 | M11: 3646 | N11: 3752 | O11: 3846 | P11: 3898 | Q11: 3875 | R11: 3866 | S11: 3841 | T11: 3784 | U11: 3859 | V11: 3867 | W11: 3922 | X11: 3918 | Y11: 3950 | Z11: 4018 | AA11: 4023 | AB11: 3990 | AC11: 4003 | AD11: 4030 | AE11: 4058 | AF11: 4120 | AG11: 4167 | AH11: =_xlfn.RANK.EQ(tblAargau[[#This Row],[2011]],tblAargau[2011]) -> 45 | AI11: 0.1258969341 | AJ11: 0.06061437191 | AK11: 0.06246812851 | AL11: =_xlfn.RANK.EQ(tblAargau[[#This Row],[2001-2011]],tblAargau[2001-2011]) -> 152 | AM11: 0.3590998043 | AN11: =_xlfn.RANK.EQ(tblAargau[[#This Row],[1981-2011]],tblAargau[1981-2011]) -> 133 | AO11: 6.52 | AP11: =_xlfn.RANK.EQ(tblAargau[[#This Row],[Fläche in km²]],tblAargau[Fläche in km²]) -> 82 | AQ11: 639 | AR11: =_xlfn.RANK.EQ(tblAargau[[#This Row],[Einwohner/km²]],tblAargau[Einwohner/km²]) -> 51 | AS11: 115 | AT11: =_xlfn.RANK.EQ(tblAargau[[#This Row],[Tax]],tblAargau[Tax],1) -> 150
A12: Baden | B12: Baden | C12: 13855 | D12: 13993 | E12: 14015 | F12: 14049 | G12: 14054 | H12: 14058 | I12: 14136 | J12: 14393 | K12: 14545 | L12: 14780 | M12: 14980 | N12: 15228 | O12: 15592 | P12: 15590 | Q12: 15756 | R12: 15968 | S12: 15933 | T12: 15984 | U12: 16026 | V12: 15945 | W12: 16179 | X12: 16313 | Y12: 16210 | Z12: 16220 | AA12: 16295 | AB12: 16691 | AC12: 16860 | AD12: 17446 | AE12: 17709 | AF12: 17828 | AG12: 18404 | AH12: =_xlfn.RANK.EQ(tblAargau[[#This Row],[2011]],tblAargau[2011]) -> 3 | AI12: 0.06676290148 | AJ12: 0.06441922563 | AK12: 0.1375239508 | AL12: =_xlfn.RANK.EQ(tblAargau[[#This Row],[2001-2011]],tblAargau[2001-2011]) -> 88 | AM12: 0.3283291231 | AN12: =_xlfn.RANK.EQ(tblAargau[[#This Row],[1981-2011]],tblAargau[1981-2011]) -> 144 | AO12: 13.18 | AP12: =_xlfn.RANK.EQ(tblAargau[[#This Row],[Fläche in km²]],tblAargau[Fläche in km²]) -> 12 | AQ12: 1396 | AR12: =_xlfn.RANK.EQ(tblAargau[[#This Row],[Einwohner/km²]],tblAargau[Einwohner/km²]) -> 8 | AS12: 95 | AT12: =_xlfn.RANK.EQ(tblAargau[[#This Row],[Tax]],tblAargau[Tax],1) -> 30
A13: Baldingen | B13: Zurzach | C13: 141 | D13: 142 | E13: 145 | F13: 155 | G13: 158 | H13: 169 | I13: 176 | J13: 192 | K13: 205 | L13: 209 | M13: 230 | N13: 226 | O13: 228 | P13: 241 | Q13: 255 | R13: 257 | S13: 262 | T13: 259 | U13: 259 | V13: 253 | W13: 249 | X13: 250 | Y13: 260 | Z13: 262 | AA13: 265 | AB13: 272 | AC13: 274 | AD13: 288 | AE13: 284 | AF13: 289 | AG13: 278 | AH13: =_xlfn.RANK.EQ(tblAargau[[#This Row],[2011]],tblAargau[2011]) -> 212 | AI13: 0.4822695035 | AJ13: 0.1 | AK13: 0.1164658635 | AL13: =_xlfn.RANK.EQ(tblAargau[[#This Row],[2001-2011]],tblAargau[2001-2011]) -> 113 | AM13: 0.9716312057 | AN13: =_xlfn.RANK.EQ(tblAargau[[#This Row],[1981-2011]],tblAargau[1981-2011]) -> 27 | AO13: 2.83 | AP13: =_xlfn.RANK.EQ(tblAargau[[#This Row],[Fläche in km²]],tblAargau[Fläche in km²]) -> 190 | AQ13: 98 | AR13: =_xlfn.RANK.EQ(tblAargau[[#This Row],[Einwohner/km²]],tblAargau[Einwohner/km²]) -> 201 | AS13: 105 | AT13: =_xlfn.RANK.EQ(tblAargau[[#This Row],[Tax]],tblAargau[Tax],1) -> 92
A14: Beinwil (Freiamt) | B14: Muri | C14: 684 | D14: 697 | E14: 694 | F14: 702 | G14: 695 | H14: 698 | I14: 714 | J14: 738 | K14: 748 | L14: 768 | M14: 863 | N14: 887 | O14: 931 | P14: 928 | Q14: 950 | R14: 952 | S14: 978 | T14: 949 | U14: 942 | V14: 956 | W14: 948 | X14: 944 | Y14: 945 | Z14: 943 | AA14: 922 | AB14: 973 | AC14: 1012 | AD14: 1016 | AE14: 1036 | AF14: 1022 | AG14: 1049 | AH14: =_xlfn.RANK.EQ(tblAargau[[#This Row],[2011]],tblAargau[2011]) -> 147 | AI14: 0.1228070175 | AJ14: 0.1077636153 | AK14: 0.1065400844 | AL14: =_xlfn.RANK.EQ(tblAargau[[#This Row],[2001-2011]],tblAargau[2001-2011]) -> 120 | AM14: 0.533625731 | AN14: =_xlfn.RANK.EQ(tblAargau[[#This Row],[1981-2011]],tblAargau[1981-2011]) -> 81 | AO14: 11.28 | AP14: =_xlfn.RANK.EQ(tblAargau[[#This Row],[Fläche in km²]],tblAargau[Fläche in km²]) -> 25 | AQ14: 93 | AR14: =_xlfn.RANK.EQ(tblAargau[[#This Row],[Einwohner/km²]],tblAargau[Einwohner/km²]) -> 203 | AS14: 109 | AT14: =_xlfn.RANK.EQ(tblAargau[[#This Row],[Tax]],tblAargau[Tax],1) -> 112
A15: Beinwil am See | B15: Kulm | C15: 2259 | D15: 2286 | E15: 2317 | F15: 2319 | G15: 2325 | H15: 2347 | I15: 2359 | J15: 2356 | K15: 2350 | L15: 2344 | M15: 2425 | N15: 2405 | O15: 2397 | P15: 2477 | Q15: 2487 | R15: 2500 | S15: 2559 | T15: 2572 | U15: 2580 | V15: 2603 | W15: 2617 | X15: 2628 | Y15: 2613 | Z15: 2636 | AA15: 2650 | AB15: 2688 | AC15: 2714 | AD15: 2736 | AE15: 2795 | AF15: 2829 | AG15: 2890 | AH15: =_xlfn.RANK.EQ(tblAargau[[#This Row],[2011]],tblAargau[2011]) -> 71 | AI15: 0.0376272687 | AJ15: 0.07340206186 | AK15: 0.1043179213 | AL15: =_xlfn.RANK.EQ(tblAargau[[#This Row],[2001-2011]],tblAargau[2001-2011]) -> 122 | AM15: 0.2793271359 | AN15: =_xlfn.RANK.EQ(tblAargau[[#This Row],[1981-2011]],tblAargau[1981-2011]) -> 161 | AO15: 3.84 | AP15: =_xlfn.RANK.EQ(tblAargau[[#This Row],[Fläche in km²]],tblAargau[Fläche in km²]) -> 158 | AQ15: 753 | AR15: =_xlfn.RANK.EQ(tblAargau[[#This Row],[Einwohner/km²]],tblAargau[Einwohner/km²]) -> 44 | AS15: 99 | AT15: =_xlfn.RANK.EQ(tblAargau[[#This Row],[Tax]],tblAargau[Tax],1) -> 53
A16: Bellikon | B16: Baden | C16: 948 | D16: 977 | E16: 999 | F16: 976 | G16: 970 | H16: 987 | I16: 1009 | J16: 1028 | K16: 1049 | L16: 1062 | M16: 1046 | N16: 1096 | O16: 1144 | P16: 1175 | Q16: 1196 | R16: 1232 | S16: 1248 | T16: 1235 | U16: 1268 | V16: 1322 | W16: 1335 | X16: 1319 | Y16: 1429 | Z16: 1444 | AA16: 1425 | AB16: 1458 | AC16: 1466 | AD16: 1507 | AE16: 1537 | AF16: 1569 | AG16: 1594 | AH16: =_xlfn.RANK.EQ(tblAargau[[#This Row],[2011]],tblAargau[2011]) -> 111 | AI16: 0.1202531646 | AJ16: 0.2638623327 | AK16: 0.1940074906 | AL16: =_xlfn.RANK.EQ(tblAargau[[#This Row],[2001-2011]],tblAargau[2001-2011]) -> 42 | AM16: 0.6814345992 | AN16: =_xlfn.RANK.EQ(tblAargau[[#This Row],[1981-2011]],tblAargau[1981-2011]) -> 54 | AO16: 4.95 | AP16: =_xlfn.RANK.EQ(tblAargau[[#This Row],[Fläche in km²]],tblAargau[Fläche in km²]) -> 122 | AQ16: 322 | AR16: =_xlfn.RANK.EQ(tblAargau[[#This Row],[Einwohner/km²]],tblAargau[Einwohner/km²]) -> 111 | AS16: 89 | AT16: =_xlfn.RANK.EQ(tblAargau[[#This Row],[Tax]],tblAargau[Tax],1) -> 19
A17: Bergdietikon | B17: Baden | C17: 1780 | D17: 1855 | E17: 1930 | F17: 1984 | G17: 1982 | H17: 2010 | I17: 2062 | J17: 2080 | K17: 2101 | L17: 2153 | M17: 2210 | N17: 2212 | O17: 2215 | P17: 2210 | Q17: 2225 | R17: 2204 | S17: 2213 | T17: 2240 | U17: 2243 | V17: 2249 | W17: 2281 | X17: 2274 | Y17: 2259 | Z17: 2252 | AA17: 2254 | AB17: 2239 | AC17: 2201 | AD17: 2246 | AE17: 2343 | AF17: 2361 | AG17: 2386 | AH17: =_xlfn.RANK.EQ(tblAargau[[#This Row],[2011]],tblAargau[2011]) -> 86 | AI17: 0.2095505618 | AJ17: 0.01764705882 | AK17: 0.04603244191 | AL17: =_xlfn.RANK.EQ(tblAargau[[#This Row],[2001-2011]],tblAargau[2001-2011]) -> 163 | AM17: 0.3404494382 | AN17: =_xlfn.RANK.EQ(tblAargau[[#This Row],[1981-2011]],tblAargau[1981-2011]) -> 139 | AO17: 5.93 | AP17: =_xlfn.RANK.EQ(tblAargau[[#This Row],[Fläche in km²]],tblAargau[Fläche in km²]) -> 95 | AQ17: 402 | AR17: =_xlfn.RANK.EQ(tblAargau[[#This Row],[Einwohner/km²]],tblAargau[Einwohner/km²]) -> 91 | AS17: 87 | AT17: =_xlfn.RANK.EQ(tblAargau[[#This Row],[Tax]],tblAargau[Tax],1) -> 14
A18: Berikon | B18: Bremgarten | C18: 2411 | D18: 2577 | E18: 2742 | F18: 2889 | G18: 3045 | H18: 3246 | I18: 3518 | J18: 3560 | K18: 3638 | L18: 3720 | M18: 3821 | N18: 3848 | O18: 3870 | P18: 4036 | Q18: 4111 | R18: 4151 | S18: 4350 | T18: 4326 | U18: 4393 | V18: 4389 | W18: 4337 | X18: 4303 | Y18: 4408 | Z18: 4397 | AA18: 4380 | AB18: 4351 | AC18: 4391 | AD18: 4473 | AE18: 4504 | AF18: 4551 | AG18: 4553 | AH18: =_xlfn.RANK.EQ(tblAargau[[#This Row],[2011]],tblAargau[2011]) -> 37 | AI18: 0.5429282455 | AJ18: 0.1486521853 | AK18: 0.04980401199 | AL18: =_xlfn.RANK.EQ(tblAargau[[#This Row],[2001-2011]],tblAargau[2001-2011]) -> 161 | AM18: 0.8884280382 | AN18: =_xlfn.RANK.EQ(tblAargau[[#This Row],[1981-2011]],tblAargau[1981-2011]) -> 30 | AO18: 5.37 | AP18: =_xlfn.RANK.EQ(tblAargau[[#This Row],[Fläche in km²]],tblAargau[Fläche in km²]) -> 111 | AQ18: 848 | AR18: =_xlfn.RANK.EQ(tblAargau[[#This Row],[Einwohner/km²]],tblAargau[Einwohner/km²]) -> 35 | AS18: 92 | AT18: =_xlfn.RANK.EQ(tblAargau[[#This Row],[Tax]],tblAargau[Tax],1) -> 26
A19: Besenbüren | B19: Muri | C19: 290 | D19: 300 | E19: 305 | F19: 318 | G19: 326 | H19: 342 | I19: 343 | J19: 345 | K19: 354 | L19: 373 | M19: 396 | N19: 406 | O19: 421 | P19: 408 | Q19: 424 | R19: 425 | S19: 417 | T19: 439 | U19: 474 | V19: 510 | W19: 526 | X19: 532 | Y19: 556 | Z19: 584 | AA19: 578 | AB19: 574 | AC19: 592 | AD19: 581 | AE19: 589 | AF19: 593 | AG19: 576 | AH19: =_xlfn.RANK.EQ(tblAargau[[#This Row],[2011]],tblAargau[2011]) -> 193 | AI19: 0.2862068966 | AJ19: 0.2878787879 | AK19: 0.09505703422 | AL19: =_xlfn.RANK.EQ(tblAargau[[#This Row],[2001-2011]],tblAargau[2001-2011]) -> 127 | AM19: 0.9862068966 | AN19: =_xlfn.RANK.EQ(tblAargau[[#This Row],[1981-2011]],tblAargau[1981-2011]) -> 25 | AO19: 2.38 | AP19: =_xlfn.RANK.EQ(tblAargau[[#This Row],[Fläche in km²]],tblAargau[Fläche in km²]) -> 205 | AQ19: 242 | AR19: =_xlfn.RANK.EQ(tblAargau[[#This Row],[Einwohner/km²]],tblAargau[Einwohner/km²]) -> 132 | AS19: 116 | AT19: =_xlfn.RANK.EQ(tblAargau[[#This Row],[Tax]],tblAargau[Tax],1) -> 164
A20: Bettwil | B20: Muri | C20: 390 | D20: 397 | E20: 394 | F20: 397 | G20: 421 | H20: 429 | I20: 434 | J20: 444 | K20: 468 | L20: 485 | M20: 514 | N20: 519 | O20: 529 | P20: 540 | Q20: 544 | R20: 568 | S20: 574 | T20: 564 | U20: 566 | V20: 561 | W20: 570 | X20: 560 | Y20: 549 | Z20: 540 | AA20: 540 | AB20: 548 | AC20: 565 | AD20: 551 | AE20: 549 | AF20: 553 | AG20: 555 | AH20: =_xlfn.RANK.EQ(tblAargau[[#This Row],[2011]],tblAargau[2011]) -> 195 | AI20: 0.2435897436 | AJ20: 0.09143968872 | AK20: -0.02631578947 | AL20: =_xlfn.RANK.EQ(tblAargau[[#This Row],[2001-2011]],tblAargau[2001-2011]) -> 206 | AM20: 0.4230769231 | AN20: =_xlfn.RANK.EQ(tblAargau[[#This Row],[1981-2011]],tblAargau[1981-2011]) -> 105 | AO20: 4.25 | AP20: =_xlfn.RANK.EQ(tblAargau[[#This Row],[Fläche in km²]],tblAargau[Fläche in km²]) -> 145 | AQ20: 131 | AR20: =_xlfn.RANK.EQ(tblAargau[[#This Row],[Einwohner/km²]],tblAargau[Einwohner/km²]) -> 186 | AS20: 114 | AT20: =_xlfn.RANK.EQ(tblAargau[[#This Row],[Tax]],tblAargau[Tax],1) -> 144
A21: Biberstein | B21: Aarau | C21: 932 | D21: 966 | E21: 1041 | F21: 1055 | G21: 1063 | H21: 1095 | I21: 1095 | J21: 1095 | K21: 1076 | L21: 1091 | M21: 1025 | N21: 1033 | O21: 1027 | P21: 1024 | Q21: 1028 | R21: 1025 | S21: 1044 | T21: 1029 | U21: 1033 | V21: 1069 | W21: 1107 | X21: 1100 | Y21: 1125 | Z21: 1211 | AA21: 1231 | AB21: 1256 | AC21: 1296 | AD21: 1327 | AE21: 1368 | AF21: 1397 | AG21: 1447 | AH21: =_xlfn.RANK.EQ(tblAargau[[#This Row],[2011]],tblAargau[2011]) -> 120 | AI21: 0.1706008584 | AJ21: 0.04292682927 | AK21: 0.3071364047 | AL21: =_xlfn.RANK.EQ(tblAargau[[#This Row],[2001-2011]],tblAargau[2001-2011]) -> 14 | AM21: 0.5525751073 | AN21: =_xlfn.RANK.EQ(tblAargau[[#This Row],[1981-2011]],tblAargau[1981-2011]) -> 77 | AO21: 4.11 | AP21: =_xlfn.RANK.EQ(tblAargau[[#This Row],[Fläche in km²]],tblAargau[Fläche in km²]) -> 149 | AQ21: 352 | AR21: =_xlfn.RANK.EQ(tblAargau[[#This Row],[Einwohner/km²]],tblAargau[Einwohner/km²]) -> 100 | AS21: 88 | AT21: =_xlfn.RANK.EQ(tblAargau[[#This Row],[Tax]],tblAargau[Tax],1) -> 16
A22: Birmenstorf (AG) | B22: Baden | C22: 1427 | D22: 1455 | E22: 1498 | F22: 1504 | G22: 1626 | H22: 1667 | I22: 1729 | J22: 1798 | K22: 1834 | L22: 1859 | M22: 2020 | N22: 2030 | O22: 2036 | P22: 2100 | Q22: 2121 | R22: 2175 | S22: 2249 | T22: 2277 | U22: 2263 | V22: 2280 | W22: 2285 | X22: 2292 | Y22: 2308 | Z22: 2353 | AA22: 2343 | AB22: 2388 | AC22: 2409 | AD22: 2461 | AE22: 2498 | AF22: 2569 | AG22: 2648 | AH22: =_xlfn.RANK.EQ(tblAargau[[#This Row],[2011]],tblAargau[2011]) -> 76 | AI22: 0.3027330063 | AJ22: 0.1287128713 | AK22: 0.1588621444 | AL22: =_xlfn.RANK.EQ(tblAargau[[#This Row],[2001-2011]],tblAargau[2001-2011]) -> 67 | AM22: 0.8556412053 | AN22: =_xlfn.RANK.EQ(tblAargau[[#This Row],[1981-2011]],tblAargau[1981-2011]) -> 32 | AO22: 7.79 | AP22: =_xlfn.RANK.EQ(tblAargau[[#This Row],[Fläche in km²]],tblAargau[Fläche in km²]) -> 63 | AQ22: 340 | AR22: =_xlfn.RANK.EQ(tblAargau[[#This Row],[Einwohner/km²]],tblAargau[Einwohner/km²]) -> 102 | AS22: 99 | AT22: =_xlfn.RANK.EQ(tblAargau[[#This Row],[Tax]],tblAargau[Tax],1) -> 53
A23: Birr | B23: Brugg | C23: 2978 | D23: 3008 | E23: 3015 | F23: 3029 | G23: 3028 | H23: 3124 | I23: 3193 | J23: 3259 | K23: 3351 | L23: 3353 | M23: 3327 | N23: 3277 | O23: 3298 | P23: 3320 | Q23: 3332 | R23: 3274 | S23: 3291 | T23: 3257 | U23: 3357 | V23: 3453 | W23: 3585 | X23: 3689 | Y23: 3757 | Z23: 3736 | AA23: 3762 | AB23: 3795 | AC23: 3908 | AD23: 4045 | AE23: 4068 | AF23: 4117 | AG23: 4202 | AH23: =_xlfn.RANK.EQ(tblAargau[[#This Row],[2011]],tblAargau[2011]) -> 43 | AI23: 0.1259234385 | AJ23: 0.03787195672 | AK23: 0.1721059972 | AL23: =_xlfn.RANK.EQ(tblAargau[[#This Row],[2001-2011]],tblAargau[2001-2011]) -> 60 | AM23: 0.4110141034 | AN23: =_xlfn.RANK.EQ(tblAargau[[#This Row],[1981-2011]],tblAargau[1981-2011]) -> 110 | AO23: 5.05 | AP23: =_xlfn.RANK.EQ(tblAargau[[#This Row],[Fläche in km²]],tblAargau[Fläche in km²]) -> 120 | AQ23: 832 | AR23: =_xlfn.RANK.EQ(tblAargau[[#This Row],[Einwohner/km²]],tblAargau[Einwohner/km²]) -> 37 | AS23: 110 | AT23: =_xlfn.RANK.EQ(tblAargau[[#This Row],[Tax]],tblAargau[Tax],1) -> 117
A24: Birrhard | B24: Brugg | C24: 469 | D24: 492 | E24: 496 | F24: 493 | G24: 504 | H24: 514 | I24: 503 | J24: 507 | K24: 523 | L24: 544 | M24: 538 | N24: 569 | O24: 582 | P24: 601 | Q24: 607 | R24: 601 | S24: 634 | T24: 664 | U24: 660 | V24: 663 | W24: 673 | X24: 674 | Y24: 677 | Z24: 658 | AA24: 632 | AB24: 640 | AC24: 642 | AD24: 642 | AE24: 643 | AF24: 631 | AG24: 638 | AH24: =_xlfn.RANK.EQ(tblAargau[[#This Row],[2011]],tblAargau[2011]) -> 190 | AI24: 0.1599147122 | AJ24: 0.2323420074 | AK24: -0.05200594354 | AL24: =_xlfn.RANK.EQ(tblAargau[[#This Row],[2001-2011]],tblAargau[2001-2011]) -> 211 | AM24: 0.3603411514 | AN24: =_xlfn.RANK.EQ(tblAargau[[#This Row],[1981-2011]],tblAargau[1981-2011]) -> 132 | AO24: 2.99 | AP24: =_xlfn.RANK.EQ(tblAargau[[#This Row],[Fläche in km²]],tblAargau[Fläche in km²]) -> 186 | AQ24: 213 | AR24: =_xlfn.RANK.EQ(tblAargau[[#This Row],[Einwohner/km²]],tblAargau[Einwohner/km²]) -> 142 | AS24: 118 | AT24: =_xlfn.RANK.EQ(tblAargau[[#This Row],[Tax]],tblAargau[Tax],1) -> 178
A25: Birrwil | B25: Kulm | C25: 979 | D25: 963 | E25: 955 | F25: 937 | G25: 940 | H25: 950 | I25: 949 | J25: 945 | K25: 929 | L25: 943 | M25: 916 | N25: 937 | O25: 925 | P25: 948 | Q25: 928 | R25: 942 | S25: 978 | T25: 990 | U25: 988 | V25: 970 | W25: 964 | X25: 941 | Y25: 942 | Z25: 941 | AA25: 913 | AB25: 929 | AC25: 934 | AD25: 931 | AE25: 957 | AF25: 946 | AG25: 975 | AH25: =_xlfn.RANK.EQ(tblAargau[[#This Row],[2011]],tblAargau[2011]) -> 158 | AI25: -0.03677221655 | AJ25: 0.05895196507 | AK25: 0.01141078838 | AL25: =_xlfn.RANK.EQ(tblAargau[[#This Row],[2001-2011]],tblAargau[2001-2011]) -> 189 | AM25: -0.004085801839 | AN25: =_xlfn.RANK.EQ(tblAargau[[#This Row],[1981-2011]],tblAargau[1981-2011]) -> 218 | AO25: 3.42 | AP25: =_xlfn.RANK.EQ(tblAargau[[#This Row],[Fläche in km²]],tblAargau[Fläche in km²]) -> 169 | AQ25: 285 | AR25: =_xlfn.RANK.EQ(tblAargau[[#This Row],[Einwohner/km²]],tblAargau[Einwohner/km²]) -> 121 | AS25: 100 | AT25: =_xlfn.RANK.EQ(tblAargau[[#This Row],[Tax]],tblAargau[Tax],1) -> 60
A26: Böbikon | B26: Zurzach | C26: 130 | D26: 124 | E26: 127 | F26: 129 | G26: 128 | H26: 140 | I26: 138 | J26: 135 | K26: 142 | L26: 148 | M26: 176 | N26: 174 | O26: 188 | P26: 187 | Q26: 179 | R26: 180 | S26: 181 | T26: 176 | U26: 179 | V26: 181 | W26: 186 | X26: 181 | Y26: 179 | Z26: 185 | AA26: 177 | AB26: 184 | AC26: 184 | AD26: 172 | AE26: 171 | AF26: 166 | AG26: 161 | AH26: =_xlfn.RANK.EQ(tblAargau[[#This Row],[2011]],tblAargau[2011]) -> 217 | AI26: 0.1384615385 | AJ26: 0.02840909091 | AK26: -0.1344086022 | AL26: =_xlfn.RANK.EQ(tblAargau[[#This Row],[2001-2011]],tblAargau[2001-2011]) -> 219 | AM26: 0.2384615385 | AN26: =_xlfn.RANK.EQ(tblAargau[[#This Row],[1981-2011]],tblAargau[1981-2011]) -> 176 | AO26: 2.59 | AP26: =_xlfn.RANK.EQ(tblAargau[[#This Row],[Fläche in km²]],tblAargau[Fläche in km²]) -> 197 | AQ26: 62 | AR26: =_xlfn.RANK.EQ(tblAargau[[#This Row],[Einwohner/km²]],tblAargau[Einwohner/km²]) -> 215 | AS26: 115 | AT26: =_xlfn.RANK.EQ(tblAargau[[#This Row],[Tax]],tblAargau[Tax],1) -> 150
A27: Boniswil | B27: Lenzburg | C27: 975 | D27: 1001 | E27: 1014 | F27: 1010 | G27: 1014 | H27: 1008 | I27: 1000 | J27: 1054 | K27: 1075 | L27: 1099 | M27: 1127 | N27: 1132 | O27: 1186 | P27: 1235 | Q27: 1271 | R27: 1244 | S27: 1271 | T27: 1309 | U27: 1306 | V27: 1346 | W27: 1336 | X27: 1350 | Y27: 1349 | Z27: 1371 | AA27: 1405 | AB27: 1415 | AC27: 1368 | AD27: 1388 | AE27: 1380 | AF27: 1404 | AG27: 1426 | AH27: =_xlfn.RANK.EQ(tblAargau[[#This Row],[2011]],tblAargau[2011]) -> 121 | AI27: 0.1271794872 | AJ27: 0.1943212067 | AK27: 0.06736526946 | AL27: =_xlfn.RANK.EQ(tblAargau[[#This Row],[2001-2011]],tblAargau[2001-2011]) -> 148 | AM27: 0.4625641026 | AN27: =_xlfn.RANK.EQ(tblAargau[[#This Row],[1981-2011]],tblAargau[1981-2011]) -> 93 | AO27: 2.41 | AP27: =_xlfn.RANK.EQ(tblAargau[[#This Row],[Fläche in km²]],tblAargau[Fläche in km²]) -> 204 | AQ27: 592 | AR27: =_xlfn.RANK.EQ(tblAargau[[#This Row],[Einwohner/km²]],tblAargau[Einwohner/km²]) -> 57 | AS27: 100 | AT27: =_xlfn.RANK.EQ(tblAargau[[#This Row],[Tax]],tblAargau[Tax],1) -> 60
A28: Boswil | B28: Muri | C28: 1893 | D28: 1874 | E28: 1879 | F28: 1908 | G28: 1951 | H28: 1981 | I28: 1957 | J28: 1973 | K28: 2023 | L28: 2098 | M28: 2239 | N28: 2274 | O28: 2271 | P28: 2256 | Q28: 2288 | R28: 2301 | S28: 2320 | T28: 2312 | U28: 2320 | V28: 2303 | W28: 2299 | X28: 2306 | Y28: 2286 | Z28: 2254 | AA28: 2252 | AB28: 2295 | AC28: 2354 | AD28: 2354 | AE28: 2427 | AF28: 2495 | AG28: 2590 | AH28: =_xlfn.RANK.EQ(tblAargau[[#This Row],[2011]],tblAargau[2011]) -> 78 | AI28: 0.1082937137 | AJ28: 0.02858418937 | AK28: 0.1265767725 | AL28: =_xlfn.RANK.EQ(tblAargau[[#This Row],[2001-2011]],tblAargau[2001-2011]) -> 97 | AM28: 0.3681986265 | AN28: =_xlfn.RANK.EQ(tblAargau[[#This Row],[1981-2011]],tblAargau[1981-2011]) -> 127 | AO28: 11.77 | AP28: =_xlfn.RANK.EQ(tblAargau[[#This Row],[Fläche in km²]],tblAargau[Fläche in km²]) -> 22 | AQ28: 220 | AR28: =_xlfn.RANK.EQ(tblAargau[[#This Row],[Einwohner/km²]],tblAargau[Einwohner/km²]) -> 139 | AS28: 106 | AT28: =_xlfn.RANK.EQ(tblAargau[[#This Row],[Tax]],tblAargau[Tax],1) -> 102
A29: Bottenwil | B29: Zofingen | C29: 678 | D29: 673 | E29: 677 | F29: 696 | G29: 714 | H29: 699 | I29: 722 | J29: 725 | K29: 733 | L29: 756 | M29: 779 | N29: 775 | O29: 767 | P29: 798 | Q29: 789 | R29: 805 | S29: 792 | T29: 798 | U29: 819 | V29: 799 | W29: 808 | X29: 809 | Y29: 818 | Z29: 803 | AA29: 799 | AB29: 789 | AC29: 795 | AD29: 793 | AE29: 770 | AF29: 790 | AG29: 803 | AH29: =_xlfn.RANK.EQ(tblAargau[[#This Row],[2011]],tblAargau[2011]) -> 174 | AI29: 0.1150442478 | AJ29: 0.02567394095 | AK29: -0.006188118812 | AL29: =_xlfn.RANK.EQ(tblAargau[[#This Row],[2001-2011]],tblAargau[2001-2011]) -> 198 | AM29: 0.1843657817 | AN29: =_xlfn.RANK.EQ(tblAargau[[#This Row],[1981-2011]],tblAargau[1981-2011]) -> 191 | AO29: 5.1 | AP29: =_xlfn.RANK.EQ(tblAargau[[#This Row],[Fläche in km²]],tblAargau[Fläche in km²]) -> 117 | AQ29: 157 | AR29: =_xlfn.RANK.EQ(tblAargau[[#This Row],[Einwohner/km²]],tblAargau[Einwohner/km²]) -> 173 | AS29: 119 | AT29: =_xlfn.RANK.EQ(tblAargau[[#This Row],[Tax]],tblAargau[Tax],1) -> 189
A30: Böttstein | B30: Zurzach | C30: 2949 | D30: 2987 | E30: 2954 | F30: 2936 | G30: 2962 | H30: 3061 | I30: 3154 | J30: 3265 | K30: 3372 | L30: 3427 | M30: 3507 | N30: 3612 | O30: 3649 | P30: 3671 | Q30: 3676 | R30: 3682 | S30: 3687 | T30: 3676 | U30: 3688 | V30: 3641 | W30: 3661 | X30: 3710 | Y30: 3712 | Z30: 3683 | AA30: 3741 | AB30: 3705 | AC30: 3726 | AD30: 3736 | AE30: 3695 | AF30: 3660 | AG30: 3715 | AH30: =_xlfn.RANK.EQ(tblAargau[[#This Row],[2011]],tblAargau[2011]) -> 52 | AI30: 0.1620888437 | AJ30: 0.03820929569 | AK30: 0.01475006829 | AL30: =_xlfn.RANK.EQ(tblAargau[[#This Row],[2001-2011]],tblAargau[2001-2011]) -> 186 | AM30: 0.2597490675 | AN30: =_xlfn.RANK.EQ(tblAargau[[#This Row],[1981-2011]],tblAargau[1981-2011]) -> 168 | AO30: 7.41 | AP30: =_xlfn.RANK.EQ(tblAargau[[#This Row],[Fläche in km²]],tblAargau[Fläche in km²]) -> 65 | AQ30: 501 | AR30: =_xlfn.RANK.EQ(tblAargau[[#This Row],[Einwohner/km²]],tblAargau[Einwohner/km²]) -> 71 | AS30: 110 | AT30: =_xlfn.RANK.EQ(tblAargau[[#This Row],[Tax]],tblAargau[Tax],1) -> 117
A31: Bözen | B31: Brugg | C31: 389 | D31: 406 | E31: 409 | F31: 427 | G31: 442 | H31: 451 | I31: 454 | J31: 451 | K31: 470 | L31: 503 | M31: 554 | N31: 603 | O31: 625 | P31: 618 | Q31: 629 | R31: 628 | S31: 653 | T31: 645 | U31: 649 | V31: 646 | W31: 664 | X31: 661 | Y31: 640 | Z31: 640 | AA31: 657 | AB31: 670 | AC31: 659 | AD31: 696 | AE31: 719 | AF31: 697 | AG31: 705 | AH31: =_xlfn.RANK.EQ(tblAargau[[#This Row],[2011]],tblAargau[2011]) -> 184 | AI31: 0.293059126 | AJ31: 0.1660649819 | AK31: 0.06174698795 | AL31: =_xlfn.RANK.EQ(tblAargau[[#This Row],[2001-2011]],tblAargau[2001-2011]) -> 153 | AM31: 0.8123393316 | AN31: =_xlfn.RANK.EQ(tblAargau[[#This Row],[1981-2011]],tblAargau[1981-2011]) -> 39 | AO31: 3.95 | AP31: =_xlfn.RANK.EQ(tblAargau[[#This Row],[Fläche in km²]],tblAargau[Fläche in km²]) -> 153 | AQ31: 178 | AR31: =_xlfn.RANK.EQ(tblAargau[[#This Row],[Einwohner/km²]],tblAargau[Einwohner/km²]) -> 166 | AS31: 118 | AT31: =_xlfn.RANK.EQ(tblAargau[[#This Row],[Tax]],tblAargau[Tax],1) -> 178
A32: Bremgarten (AG) | B32: Bremgarten | C32: 4723 | D32: 4713 | E32: 4705 | F32: 4718 | G32: 4674 | H32: 4676 | I32: 4845 | J32: 5018 | K32: 5084 | L32: 5165 | M32: 5066 | N32: 5091 | O32: 5144 | P32: 5162 | Q32: 5207 | R32: 5175 | S32: 5211 | T32: 5206 | U32: 5177 | V32: 5218 | W32: 5419 | X32: 5725 | Y32: 5848 | Z32: 5977 | AA32: 6069 | AB32: 6053 | AC32: 6095 | AD32: 6233 | AE32: 6281 | AF32: 6340 | AG32: 6408 | AH32: =_xlfn.RANK.EQ(tblAargau[[#This Row],[2011]],tblAargau[2011]) -> 24 | AI32: 0.09358458607 | AJ32: 0.03000394789 | AK32: 0.1825059974 | AL32: =_xlfn.RANK.EQ(tblAargau[[#This Row],[2001-2011]],tblAargau[2001-2011]) -> 53 | AM32: 0.3567647682 | AN32: =_xlfn.RANK.EQ(tblAargau[[#This Row],[1981-2011]],tblAargau[1981-2011]) -> 134 | AO32: 8.02 | AP32: =_xlfn.RANK.EQ(tblAargau[[#This Row],[Fläche in km²]],tblAargau[Fläche in km²]) -> 61 | AQ32: 799 | AR32: =_xlfn.RANK.EQ(tblAargau[[#This Row],[Einwohner/km²]],tblAargau[Einwohner/km²]) -> 40 | AS32: 97 | AT32: =_xlfn.RANK.EQ(tblAargau[[#This Row],[Tax]],tblAargau[Tax],1) -> 41
A33: Brittnau | B33: Zofingen | C33: 2833 | D33: 2801 | E33: 2808 | F33: 2810 | G33: 2898 | H33: 2896 | I33: 3031 | J33: 3024 | K33: 3077 | L33: 3080 | M33: 3172 | N33: 3220 | O33: 3306 | P33: 3348 | Q33: 3362 | R33: 3400 | S33: 3475 | T33: 3457 | U33: 3479 | V33: 3523 | W33: 3572 | X33: 3564 | Y33: 3594 | Z33: 3621 | AA33: 3644 | AB33: 3620 | AC33: 3632 | AD33: 3641 | AE33: 3647 | AF33: 3647 | AG33: 3692 | AH33: =_xlfn.RANK.EQ(tblAargau[[#This Row],[2011]],tblAargau[2011]) -> 54 | AI33: 0.08718672785 | AJ33: 0.1106557377 | AK33: 0.03359462486 | AL33: =_xlfn.RANK.EQ(tblAargau[[#This Row],[2001-2011]],tblAargau[2001-2011]) -> 173 | AM33: 0.3032121426 | AN33: =_xlfn.RANK.EQ(tblAargau[[#This Row],[1981-2011]],tblAargau[1981-2011]) -> 154 | AO33: 13.69 | AP33: =_xlfn.RANK.EQ(tblAargau[[#This Row],[Fläche in km²]],tblAargau[Fläche in km²]) -> 10 | AQ33: 270 | AR33: =_xlfn.RANK.EQ(tblAargau[[#This Row],[Einwohner/km²]],tblAargau[Einwohner/km²]) -> 124 | AS33: 121 | AT33: =_xlfn.RANK.EQ(tblAargau[[#This Row],[Tax]],tblAargau[Tax],1) -> 200
A34: Brugg | B34: Brugg | C34: 9817 | D34: 9779 | E34: 9732 | F34: 9749 | G34: 9729 | H34: 9903 | I34: 9930 | J34: 9982 | K34: 9915 | L34: 10026 | M34: 10135 | N34: 10089 | O34: 10156 | P34: 10024 | Q34: 10238 | R34: 10137 | S34: 10098 | T34: 10188 | U34: 10197 | V34: 10203 | W34: 10245 | X34: 10258 | Y34: 10210 | Z34: 10190 | AA34: 10083 | AB34: 10166 | AC34: 10115 | AD34: 10191 | AE34: 10252 | AF34: 10305 | AG34: 10545 | AH34: =_xlfn.RANK.EQ(tblAargau[[#This Row],[2011]],tblAargau[2011]) -> 9 | AI34: 0.02128959967 | AJ34: 0.006709422792 | AK34: 0.02928257687 | AL34: =_xlfn.RANK.EQ(tblAargau[[#This Row],[2001-2011]],tblAargau[2001-2011]) -> 177 | AM34: 0.07415707446 | AN34: =_xlfn.RANK.EQ(tblAargau[[#This Row],[1981-2011]],tblAargau[1981-2011]) -> 211 | AO34: 6.36 | AP34: =_xlfn.RANK.EQ(tblAargau[[#This Row],[Fläche in km²]],tblAargau[Fläche in km²]) -> 85 | AQ34: 1653 | AR34: =_xlfn.RANK.EQ(tblAargau[[#This Row],[Einwohner/km²]],tblAargau[Einwohner/km²]) -> 3 | AS34: 95 | AT34: =_xlfn.RANK.EQ(tblAargau[[#This Row],[Tax]],tblAargau[Tax],1) -> 30
A35: Brunegg | B35: Lenzburg | C35: 301 | D35: 310 | E35: 320 | F35: 319 | G35: 311 | H35: 300 | I35: 299 | J35: 305 | K35: 332 | L35: 344 | M35: 365 | N35: 366 | O35: 378 | P35: 392 | Q35: 394 | R35: 398 | S35: 427 | T35: 435 | U35: 449 | V35: 465 | W35: 477 | X35: 465 | Y35: 471 | Z35: 470 | AA35: 446 | AB35: 483 | AC35: 533 | AD35: 607 | AE35: 630 | AF35: 672 | AG35: 675 | AH35: =_xlfn.RANK.EQ(tblAargau[[#This Row],[2011]],tblAargau[2011]) -> 187 | AI35: 0.1428571429 | AJ35: 0.2739726027 | AK35: 0.4150943396 | AL35: =_xlfn.RANK.EQ(tblAargau[[#This Row],[2001-2011]],tblAargau[2001-2011]) -> 4 | AM35: 1.242524917 | AN35: =_xlfn.RANK.EQ(tblAargau[[#This Row],[1981-2011]],tblAargau[1981-2011]) -> 14 | AO35: 1.56 | AP35: =_xlfn.RANK.EQ(tblAargau[[#This Row],[Fläche in km²]],tblAargau[Fläche in km²]) -> 213 | AQ35: 433 | AR35: =_xlfn.RANK.EQ(tblAargau[[#This Row],[Einwohner/km²]],tblAargau[Einwohner/km²]) -> 83 | AS35: 102 | AT35: =_xlfn.RANK.EQ(tblAargau[[#This Row],[Tax]],tblAargau[Tax],1) -> 75
A36: Buchs (AG) | B36: Aarau | C36: 5845 | D36: 5799 | E36: 5749 | F36: 5675 | G36: 5689 | H36: 5717 | I36: 5676 | J36: 5700 | K36: 5636 | L36: 5639 | M36: 5832 | N36: 5844 | O36: 5883 | P36: 5867 | Q36: 5944 | R36: 6000 | S36: 5980 | T36: 5952 | U36: 6054 | V36: 6150 | W36: 6114 | X36: 6190 | Y36: 6297 | Z36: 6311 | AA36: 6281 | AB36: 6243 | AC36: 6199 | AD36: 6478 | AE36: 6677 | AF36: 6969 | AG36: 7224 | AH36: =_xlfn.RANK.EQ(tblAargau[[#This Row],[2011]],tblAargau[2011]) -> 18 | AI36: -0.03524379812 | AJ36: 0.05452674897 | AK36: 0.1815505397 | AL36: =_xlfn.RANK.EQ(tblAargau[[#This Row],[2001-2011]],tblAargau[2001-2011]) -> 56 | AM36: 0.2359281437 | AN36: =_xlfn.RANK.EQ(tblAargau[[#This Row],[1981-2011]],tblAargau[1981-2011]) -> 177 | AO36: 5.33 | AP36: =_xlfn.RANK.EQ(tblAargau[[#This Row],[Fläche in km²]],tblAargau[Fläche in km²]) -> 114 | AQ36: 1355 | AR36: =_xlfn.RANK.EQ(tblAargau[[#This Row],[Einwohner/km²]],tblAargau[Einwohner/km²]) -> 11 | AS36: 97 | AT36: =_xlfn.RANK.EQ(tblAargau[[#This Row],[Tax]],tblAargau[Tax],1) -> 41
A37: Bünzen | B37: Muri | C37: 676 | D37: 685 | E37: 719 | F37: 711 | G37: 724 | H37: 746 | I37: 773 | J37: 782 | K37: 814 | L37: 830 | M37: 841 | N37: 854 | O37: 850 | P37: 875 | Q37: 888 | R37: 909 | S37: 909 | T37: 892 | U37: 868 | V37: 868 | W37: 874 | X37: 882 | Y37: 890 | Z37: 938 | AA37: 942 | AB37: 946 | AC37: 946 | AD37: 963 | AE37: 965 | AF37: 1004 | AG37: 1037 | AH37: =_xlfn.RANK.EQ(tblAargau[[#This Row],[2011]],tblAargau[2011]) -> 148 | AI37: 0.2278106509 | AJ37: 0.03210463734 | AK37: 0.1864988558 | AL37: =_xlfn.RANK.EQ(tblAargau[[#This Row],[2001-2011]],tblAargau[2001-2011]) -> 49 | AM37: 0.5340236686 | AN37: =_xlfn.RANK.EQ(tblAargau[[#This Row],[1981-2011]],tblAargau[1981-2011]) -> 80 | AO37: 5.77 | AP37: =_xlfn.RANK.EQ(tblAargau[[#This Row],[Fläche in km²]],tblAargau[Fläche in km²]) -> 100 | AQ37: 180 | AR37: =_xlfn.RANK.EQ(tblAargau[[#This Row],[Einwohner/km²]],tblAargau[Einwohner/km²]) -> 164 | AS37: 113 | AT37: =_xlfn.RANK.EQ(tblAargau[[#This Row],[Tax]],tblAargau[Tax],1) -> 139
A38: Burg (AG) | B38: Kulm | C38: 968 | D38: 953 | E38: 952 | F38: 944 | G38: 943 | H38: 980 | I38: 997 | J38: 1050 | K38: 1104 | L38: 1096 | M38: 1129 | N38: 1123 | O38: 1150 | P38: 1141 | Q38: 1154 | R38: 1114 | S38: 1087 | T38: 1081 | U38: 1056 | V38: 995 | W38: 984 | X38: 944 | Y38: 961 | Z38: 1001 | AA38: 969 | AB38: 979 | AC38: 997 | AD38: 1006 | AE38: 989 | AF38: 987 | AG38: 996 | AH38: =_xlfn.RANK.EQ(tblAargau[[#This Row],[2011]],tblAargau[2011]) -> 154 | AI38: 0.132231405 | AJ38: -0.1186891054 | AK38: 0.01219512195 | AL38: =_xlfn.RANK.EQ(tblAargau[[#This Row],[2001-2011]],tblAargau[2001-2011]) -> 188 | AM38: 0.02892561983 | AN38: =_xlfn.RANK.EQ(tblAargau[[#This Row],[1981-2011]],tblAargau[1981-2011]) -> 214 | AO38: 0.94 | AP38: =_xlfn.RANK.EQ(tblAargau[[#This Row],[Fläche in km²]],tblAargau[Fläche in km²]) -> 218 | AQ38: 1060 | AR38: =_xlfn.RANK.EQ(tblAargau[[#This Row],[Einwohner/km²]],tblAargau[Einwohner/km²]) -> 21 | AS38: 119 | AT38: =_xlfn.RANK.EQ(tblAargau[[#This Row],[Tax]],tblAargau[Tax],1) -> 189
A39: Büttikon | B39: Bremgarten | C39: 503 | D39: 513 | E39: 525 | F39: 522 | G39: 525 | H39: 570 | I39: 576 | J39: 590 | K39: 614 | L39: 625 | M39: 629 | N39: 647 | O39: 652 | P39: 656 | Q39: 659 | R39: 659 | S39: 640 | T39: 654 | U39: 669 | V39: 662 | W39: 688 | X39: 686 | Y39: 731 | Z39: 737 | AA39: 745 | AB39: 801 | AC39: 803 | AD39: 834 | AE39: 903 | AF39: 921 | AG39: 943 | AH39: =_xlfn.RANK.EQ(tblAargau[[#This Row],[2011]],tblAargau[2011]) -> 161 | AI39: 0.2425447316 | AJ39: 0.05246422893 | AK39: 0.3706395349 | AL39: =_xlfn.RANK.EQ(tblAargau[[#This Row],[2001-2011]],tblAargau[2001-2011]) -> 6 | AM39: 0.8747514911 | AN39: =_xlfn.RANK.EQ(tblAargau[[#This Row],[1981-2011]],tblAargau[1981-2011]) -> 31 | AO39: 2.82 | AP39: =_xlfn.RANK.EQ(tblAargau[[#This Row],[Fläche in km²]],tblAargau[Fläche in km²]) -> 191 | AQ39: 334 | AR39: =_xlfn.RANK.EQ(tblAargau[[#This Row],[Einwohner/km²]],tblAargau[Einwohner/km²]) -> 106 | AS39: 99 | AT39: =_xlfn.RANK.EQ(tblAargau[[#This Row],[Tax]],tblAargau[Tax],1) -> 53
A40: Buttwil | B40: Muri | C40: 603 | D40: 658 | E40: 680 | F40: 692 | G40: 710 | H40: 739 | I40: 742 | J40: 779 | K40: 849 | L40: 875 | M40: 904 | N40: 951 | O40: 938 | P40: 960 | Q40: 1057 | R40: 1070 | S40: 1095 | T40: 1101 | U40: 1112 | V40: 1118 | W40: 1121 | X40: 1108 | Y40: 1135 | Z40: 1150 | AA40: 1161 | AB40: 1155 | AC40: 1160 | AD40: 1170 | AE40: 1171 | AF40: 1160 | AG40: 1170 | AH40: =_xlfn.RANK.EQ(tblAargau[[#This Row],[2011]],tblAargau[2011]) -> 140 | AI40: 0.4510779436 | AJ40: 0.2367256637 | AK40: 0.04371097235 | AL40: =_xlfn.RANK.EQ(tblAargau[[#This Row],[2001-2011]],tblAargau[2001-2011]) -> 168 | AM40: 0.9402985075 | AN40: =_xlfn.RANK.EQ(tblAargau[[#This Row],[1981-2011]],tblAargau[1981-2011]) -> 28 | AO40: 4.52 | AP40: =_xlfn.RANK.EQ(tblAargau[[#This Row],[Fläche in km²]],tblAargau[Fläche in km²]) -> 134 | AQ40: 259 | AR40: =_xlfn.RANK.EQ(tblAargau[[#This Row],[Einwohner/km²]],tblAargau[Einwohner/km²]) -> 128 | AS40: 102 | AT40: =_xlfn.RANK.EQ(tblAargau[[#This Row],[Tax]],tblAargau[Tax],1) -> 75
A41: Densbüren | B41: Aarau | C41: 596 | D41: 589 | E41: 591 | F41: 614 | G41: 599 | H41: 610 | I41: 612 | J41: 634 | K41: 652 | L41: 684 | M41: 714 | N41: 750 | O41: 754 | P41: 757 | Q41: 755 | R41: 774 | S41: 756 | T41: 768 | U41: 751 | V41: 737 | W41: 732 | X41: 725 | Y41: 734 | Z41: 742 | AA41: 741 | AB41: 737 | AC41: 719 | AD41: 710 | AE41: 733 | AF41: 705 | AG41: 693 | AH41: =_xlfn.RANK.EQ(tblAargau[[#This Row],[2011]],tblAargau[2011]) -> 185 | AI41: 0.1476510067 | AJ41: 0.03221288515 | AK41: -0.05327868852 | AL41: =_xlfn.RANK.EQ(tblAargau[[#This Row],[2001-2011]],tblAargau[2001-2011]) -> 213 | AM41: 0.1627516779 | AN41: =_xlfn.RANK.EQ(tblAargau[[#This Row],[1981-2011]],tblAargau[1981-2011]) -> 195 | AO41: 12.51 | AP41: =_xlfn.RANK.EQ(tblAargau[[#This Row],[Fläche in km²]],tblAargau[Fläche in km²]) -> 15 | AQ41: 55 | AR41: =_xlfn.RANK.EQ(tblAargau[[#This Row],[Einwohner/km²]],tblAargau[Einwohner/km²]) -> 218 | AS41: 119 | AT41: =_xlfn.RANK.EQ(tblAargau[[#This Row],[Tax]],tblAargau[Tax],1) -> 189
A42: Dietwil | B42: Muri | C42: 618 | D42: 619 | E42: 616 | F42: 611 | G42: 674 | H42: 703 | I42: 731 | J42: 730 | K42: 753 | L42: 816 | M42: 885 | N42: 894 | O42: 895 | P42: 920 | Q42: 987 | R42: 979 | S42: 991 | T42: 998 | U42: 1008 | V42: 1012 | W42: 1046 | X42: 1036 | Y42: 1002 | Z42: 1007 | AA42: 1027 | AB42: 1016 | AC42: 1062 | AD42: 1136 | AE42: 1178 | AF42: 1212 | AG42: 1244 | AH42: =_xlfn.RANK.EQ(tblAargau[[#This Row],[2011]],tblAargau[2011]) -> 135 | AI42: 0.3203883495 | AJ42: 0.1435028249 | AK42: 0.189292543 | AL42: =_xlfn.RANK.EQ(tblAargau[[#This Row],[2001-2011]],tblAargau[2001-2011]) -> 44 | AM42: 1.012944984 | AN42: =_xlfn.RANK.EQ(tblAargau[[#This Row],[1981-2011]],tblAargau[1981-2011]) -> 23 | AO42: 5.5 | AP42: =_xlfn.RANK.EQ(tblAargau[[#This Row],[Fläche in km²]],tblAargau[Fläche in km²]) -> 108 | AQ42: 226 | AR42: =_xlfn.RANK.EQ(tblAargau[[#This Row],[Einwohner/km²]],tblAargau[Einwohner/km²]) -> 136 | AS42: 116 | AT42: =_xlfn.RANK.EQ(tblAargau[[#This Row],[Tax]],tblAargau[Tax],1) -> 164
A43: Dintikon | B43: Lenzburg | C43: 850 | D43: 872 | E43: 888 | F43: 917 | G43: 926 | H43: 965 | I43: 993 | J43: 1005 | K43: 1014 | L43: 1035 | M43: 1074 | N43: 1061 | O43: 1144 | P43: 1201 | Q43: 1203 | R43: 1204 | S43: 1251 | T43: 1273 | U43: 1288 | V43: 1316 | W43: 1321 | X43: 1348 | Y43: 1359 | Z43: 1357 | AA43: 1389 | AB43: 1393 | AC43: 1613 | AD43: 1777 | AE43: 1927 | AF43: 1943 | AG43: 2016 | AH43: =_xlfn.RANK.EQ(tblAargau[[#This Row],[2011]],tblAargau[2011]) -> 97 | AI43: 0.2176470588 | AJ43: 0.2253258845 | AK43: 0.5261165783 | AL43: =_xlfn.RANK.EQ(tblAargau[[#This Row],[2001-2011]],tblAargau[2001-2011]) -> 1 | AM43: 1.371764706 | AN43: =_xlfn.RANK.EQ(tblAargau[[#This Row],[1981-2011]],tblAargau[1981-2011]) -> 9 | AO43: 3.73 | AP43: =_xlfn.RANK.EQ(tblAargau[[#This Row],[Fläche in km²]],tblAargau[Fläche in km²]) -> 162 | AQ43: 540 | AR43: =_xlfn.RANK.EQ(tblAargau[[#This Row],[Einwohner/km²]],tblAargau[Einwohner/km²]) -> 64 | AS43: 95 | AT43: =_xlfn.RANK.EQ(tblAargau[[#This Row],[Tax]],tblAargau[Tax],1) -> 30
A44: Dottikon | B44: Bremgarten | C44: 2612 | D44: 2704 | E44: 2706 | F44: 2733 | G44: 2722 | H44: 2775 | I44: 2854 | J44: 2882 | K44: 2906 | L44: 2928 | M44: 2985 | N44: 3027 | O44: 3093 | P44: 3107 | Q44: 3072 | R44: 3068 | S44: 3039 | T44: 3013 | U44: 2989 | V44: 3001 | W44: 3035 | X44: 3079 | Y44: 3085 | Z44: 3073 | AA44: 3042 | AB44: 3086 | AC44: 3072 | AD44: 3094 | AE44: 3118 | AF44: 3260 | AG44: 3397 | AH44: =_xlfn.RANK.EQ(tblAargau[[#This Row],[2011]],tblAargau[2011]) -> 61 | AI44: 0.1209800919 | AJ44: 0.005360134003 | AK44: 0.1192751236 | AL44: =_xlfn.RANK.EQ(tblAargau[[#This Row],[2001-2011]],tblAargau[2001-2011]) -> 107 | AM44: 0.3005359877 | AN44: =_xlfn.RANK.EQ(tblAargau[[#This Row],[1981-2011]],tblAargau[1981-2011]) -> 156 | AO44: 3.88 | AP44: =_xlfn.RANK.EQ(tblAargau[[#This Row],[Fläche in km²]],tblAargau[Fläche in km²]) -> 157 | AQ44: 876 | AR44: =_xlfn.RANK.EQ(tblAargau[[#This Row],[Einwohner/km²]],tblAargau[Einwohner/km²]) -> 32 | AS44: 90 | AT44: =_xlfn.RANK.EQ(tblAargau[[#This Row],[Tax]],tblAargau[Tax],1) -> 22
A45: Döttingen | B45: Zurzach | C45: 3193 | D45: 3157 | E45: 3116 | F45: 3049 | G45: 3009 | H45: 3049 | I45: 3031 | J45: 3035 | K45: 3029 | L45: 3131 | M45: 3263 | N45: 3261 | O45: 3336 | P45: 3347 | Q45: 3324 | R45: 3303 | S45: 3293 | T45: 3230 | U45: 3231 | V45: 3224 | W45: 3254 | X45: 3319 | Y45: 3376 | Z45: 3394 | AA45: 3376 | AB45: 3386 | AC45: 3472 | AD45: 3592 | AE45: 3695 | AF45: 3731 | AG45: 3724 | AH45: =_xlfn.RANK.EQ(tblAargau[[#This Row],[2011]],tblAargau[2011]) -> 51 | AI45: -0.01941747573 | AJ45: -0.01195219124 | AK45: 0.1444376152 | AL45: =_xlfn.RANK.EQ(tblAargau[[#This Row],[2001-2011]],tblAargau[2001-2011]) -> 82 | AM45: 0.1663012841 | AN45: =_xlfn.RANK.EQ(tblAargau[[#This Row],[1981-2011]],tblAargau[1981-2011]) -> 194 | AO45: 6.92 | AP45: =_xlfn.RANK.EQ(tblAargau[[#This Row],[Fläche in km²]],tblAargau[Fläche in km²]) -> 77 | AQ45: 538 | AR45: =_xlfn.RANK.EQ(tblAargau[[#This Row],[Einwohner/km²]],tblAargau[Einwohner/km²]) -> 65 | AS45: 60 | AT45: =_xlfn.RANK.EQ(tblAargau[[#This Row],[Tax]],tblAargau[Tax],1) -> 1
A46: Dürrenäsch | B46: Kulm | C46: 982 | D46: 1004 | E46: 1030 | F46: 1035 | G46: 1033 | H46: 1028 | I46: 1029 | J46: 1016 | K46: 1020 | L46: 1024 | M46: 1047 | N46: 1066 | O46: 1086 | P46: 1089 | Q46: 1134 | R46: 1121 | S46: 1127 | T46: 1106 | U46: 1096 | V46: 1098 | W46: 1102 | X46: 1109 | Y46: 1112 | Z46: 1141 | AA46: 1125 | AB46: 1118 | AC46: 1112 | AD46: 1129 | AE46: 1150 | AF46: 1137 | AG46: 1176 | AH46: =_xlfn.RANK.EQ(tblAargau[[#This Row],[2011]],tblAargau[2011]) -> 139 | AI46: 0.04276985743 | AJ46: 0.04871060172 | AK46: 0.06715063521 | AL46: =_xlfn.RANK.EQ(tblAargau[[#This Row],[2001-2011]],tblAargau[2001-2011]) -> 149 | AM46: 0.1975560081 | AN46: =_xlfn.RANK.EQ(tblAargau[[#This Row],[1981-2011]],tblAargau[1981-2011]) -> 187 | AO46: 5.91 | AP46: =_xlfn.RANK.EQ(tblAargau[[#This Row],[Fläche in km²]],tblAargau[Fläche in km²]) -> 96 | AQ46: 199 | AR46: =_xlfn.RANK.EQ(tblAargau[[#This Row],[Einwohner/km²]],tblAargau[Einwohner/km²]) -> 154 | AS46: 85 | AT46: =_xlfn.RANK.EQ(tblAargau[[#This Row],[Tax]],tblAargau[Tax],1) -> 10
A47: Effingen | B47: Brugg | C47: 423 | D47: 442 | E47: 458 | F47: 459 | G47: 471 | H47: 462 | I47: 492 | J47: 509 | K47: 538 | L47: 578 | M47: 561 | N47: 580 | O47: 589 | P47: 611 | Q47: 619 | R47: 626 | S47: 617 | T47: 586 | U47: 600 | V47: 601 | W47: 606 | X47: 597 | Y47: 590 | Z47: 599 | AA47: 614 | AB47: 620 | AC47: 613 | AD47: 610 | AE47: 587 | AF47: 589 | AG47: 601 | AH47: =_xlfn.RANK.EQ(tblAargau[[#This Row],[2011]],tblAargau[2011]) -> 192 | AI47: 0.36643026 | AJ47: 0.07130124777 | AK47: -0.008250825083 | AL47: =_xlfn.RANK.EQ(tblAargau[[#This Row],[2001-2011]],tblAargau[2001-2011]) -> 199 | AM47: 0.4208037825 | AN47: =_xlfn.RANK.EQ(tblAargau[[#This Row],[1981-2011]],tblAargau[1981-2011]) -> 106 | AO47: 6.85 | AP47: =_xlfn.RANK.EQ(tblAargau[[#This Row],[Fläche in km²]],tblAargau[Fläche in km²]) -> 79 | AQ47: 88 | AR47: =_xlfn.RANK.EQ(tblAargau[[#This Row],[Einwohner/km²]],tblAargau[Einwohner/km²]) -> 207 | AS47: 121 | AT47: =_xlfn.RANK.EQ(tblAargau[[#This Row],[Tax]],tblAargau[Tax],1) -> 200
A48: Eggenwil | B48: Bremgarten | C48: 428 | D48: 454 | E48: 444 | F48: 517 | G48: 565 | H48: 540 | I48: 570 | J48: 591 | K48: 599 | L48: 590 | M48: 591 | N48: 597 | O48: 591 | P48: 586 | Q48: 596 | R48: 624 | S48: 628 | T48: 656 | U48: 651 | V48: 664 | W48: 660 | X48: 694 | Y48: 697 | Z48: 711 | AA48: 711 | AB48: 749 | AC48: 755 | AD48: 803 | AE48: 823 | AF48: 875 | AG48: 890 | AH48: =_xlfn.RANK.EQ(tblAargau[[#This Row],[2011]],tblAargau[2011]) -> 165 | AI48: 0.3785046729 | AJ48: 0.1235194585 | AK48: 0.3484848485 | AL48: =_xlfn.RANK.EQ(tblAargau[[#This Row],[2001-2011]],tblAargau[2001-2011]) -> 10 | AM48: 1.079439252 | AN48: =_xlfn.RANK.EQ(tblAargau[[#This Row],[1981-2011]],tblAargau[1981-2011]) -> 19 | AO48: 2.46 | AP48: =_xlfn.RANK.EQ(tblAargau[[#This Row],[Fläche in km²]],tblAargau[Fläche in km²]) -> 200 | AQ48: 362 | AR48: =_xlfn.RANK.EQ(tblAargau[[#This Row],[Einwohner/km²]],tblAargau[Einwohner/km²]) -> 99 | AS48: 98 | AT48: =_xlfn.RANK.EQ(tblAargau[[#This Row],[Tax]],tblAargau[Tax],1) -> 44
A49: Egliswil | B49: Lenzburg | C49: 729 | D49: 745 | E49: 749 | F49: 754 | G49: 811 | H49: 829 | I49: 860 | J49: 854 | K49: 872 | L49: 879 | M49: 910 | N49: 941 | O49: 971 | P49: 1045 | Q49: 1043 | R49: 1117 | S49: 1131 | T49: 1169 | U49: 1182 | V49: 1203 | W49: 1228 | X49: 1270 | Y49: 1273 | Z49: 1303 | AA49: 1323 | AB49: 1317 | AC49: 1298 | AD49: 1293 | AE49: 1309 | AF49: 1308 | AG49: 1321 | AH49: =_xlfn.RANK.EQ(tblAargau[[#This Row],[2011]],tblAargau[2011]) -> 130 | AI49: 0.2057613169 | AJ49: 0.321978022 | AK49: 0.07573289902 | AL49: =_xlfn.RANK.EQ(tblAargau[[#This Row],[2001-2011]],tblAargau[2001-2011]) -> 142 | AM49: 0.8120713306 | AN49: =_xlfn.RANK.EQ(tblAargau[[#This Row],[1981-2011]],tblAargau[1981-2011]) -> 40 | AO49: 6.29 | AP49: =_xlfn.RANK.EQ(tblAargau[[#This Row],[Fläche in km²]],tblAargau[Fläche in km²]) -> 87 | AQ49: 210 | AR49: =_xlfn.RANK.EQ(tblAargau[[#This Row],[Einwohner/km²]],tblAargau[Einwohner/km²]) -> 146 | AS49: 110 | AT49: =_xlfn.RANK.EQ(tblAargau[[#This Row],[Tax]],tblAargau[Tax],1) -> 117
A50: Ehrendingen | B50: Baden | C50: 2538 | D50: 2589 | E50: 2617 | F50: 2647 | G50: 2657 | H50: 2703 | I50: 2701 | J50: 2827 | K50: 2858 | L50: 2875 | M50: 2977 | N50: 2969 | O50: 3013 | P50: 2965 | Q50: 3033 | R50: 3086 | S50: 3188 | T50: 3267 | U50: 3292 | V50: 3300 | W50: 3309 | X50: 3423 | Y50: 3579 | Z50: 3671 | AA50: 3760 | AB50: 3809 | AC50: 3864 | AD50: 3956 | AE50: 4117 | AF50: 4152 | AG50: 4243 | AH50: =_xlfn.RANK.EQ(tblAargau[[#This Row],[2011]],tblAargau[2011]) -> 42 | AI50: 0.1327817179 | AJ50: 0.1084984884 | AK50: 0.2822605017 | AL50: =_xlfn.RANK.EQ(tblAargau[[#This Row],[2001-2011]],tblAargau[2001-2011]) -> 17 | AM50: 0.6717888101 | AN50: =_xlfn.RANK.EQ(tblAargau[[#This Row],[1981-2011]],tblAargau[1981-2011]) -> 55 | AO50: 7.29 | AP50: =_xlfn.RANK.EQ(tblAargau[[#This Row],[Fläche in km²]],tblAargau[Fläche in km²]) -> 66 | AQ50: 582 | AR50: =_xlfn.RANK.EQ(tblAargau[[#This Row],[Einwohner/km²]],tblAargau[Einwohner/km²]) -> 58 | AS50: 110 | AT50: =_xlfn.RANK.EQ(tblAargau[[#This Row],[Tax]],tblAargau[Tax],1) -> 117
A51: Eiken | B51: Laufenburg | C51: 1061 | D51: 1053 | E51: 1071 | F51: 1071 | G51: 1119 | H51: 1168 | I51: 1209 | J51: 1292 | K51: 1303 | L51: 1376 | M51: 1450 | N51: 1483 | O51: 1538 | P51: 1538 | Q51: 1563 | R51: 1608 | S51: 1670 | T51: 1713 | U51: 1746 | V51: 1745 | W51: 1774 | X51: 1831 | Y51: 1821 | Z51: 1848 | AA51: 1899 | AB51: 1929 | AC51: 1950 | AD51: 1993 | AE51: 1979 | AF51: 2001 | AG51: 2103 | AH51: =_xlfn.RANK.EQ(tblAargau[[#This Row],[2011]],tblAargau[2011]) -> 92 | AI51: 0.2968897267 | AJ51: 0.2034482759 | AK51: 0.1854565953 | AL51: =_xlfn.RANK.EQ(tblAargau[[#This Row],[2001-2011]],tblAargau[2001-2011]) -> 50 | AM51: 0.9820923657 | AN51: =_xlfn.RANK.EQ(tblAargau[[#This Row],[1981-2011]],tblAargau[1981-2011]) -> 26 | AO51: 7.08 | AP51: =_xlfn.RANK.EQ(tblAargau[[#This Row],[Fläche in km²]],tblAargau[Fläche in km²]) -> 73 | AQ51: 297 | AR51: =_xlfn.RANK.EQ(tblAargau[[#This Row],[Einwohner/km²]],tblAargau[Einwohner/km²]) -> 119 | AS51: 114 | AT51: =_xlfn.RANK.EQ(tblAargau[[#This Row],[Tax]],tblAargau[Tax],1) -> 144
A52: Elfingen | B52: Brugg | C52: 165 | D52: 171 | E52: 173 | F52: 177 | G52: 178 | H52: 174 | I52: 179 | J52: 192 | K52: 213 | L52: 215 | M52: 222 | N52: 220 | O52: 225 | P52: 230 | Q52: 243 | R52: 236 | S52: 236 | T52: 237 | U52: 240 | V52: 240 | W52: 244 | X52: 242 | Y52: 248 | Z52: 245 | AA52: 245 | AB52: 248 | AC52: 262 | AD52: 264 | AE52: 269 | AF52: 260 | AG52: 279 | AH52: =_xlfn.RANK.EQ(tblAargau[[#This Row],[2011]],tblAargau[2011]) -> 211 | AI52: 0.303030303 | AJ52: 0.08108108108 | AK52: 0.143442623 | AL52: =_xlfn.RANK.EQ(tblAargau[[#This Row],[2001-2011]],tblAargau[2001-2011]) -> 83 | AM52: 0.6909090909 | AN52: =_xlfn.RANK.EQ(tblAargau[[#This Row],[1981-2011]],tblAargau[1981-2011]) -> 50 | AO52: 4.23 | AP52: =_xlfn.RANK.EQ(tblAargau[[#This Row],[Fläche in km²]],tblAargau[Fläche in km²]) -> 146 | AQ52: 66 | AR52: =_xlfn.RANK.EQ(tblAargau[[#This Row],[Einwohner/km²]],tblAargau[Einwohner/km²]) -> 214 | AS52: 118 | AT52: =_xlfn.RANK.EQ(tblAargau[[#This Row],[Tax]],tblAargau[Tax],1) -> 178
A53: Endingen | B53: Zurzach | C53: 1524 | D53: 1549 | E53: 1532 | F53: 1520 | G53: 1497 | H53: 1517 | I53: 1522 | J53: 1526 | K53: 1526 | L53: 1546 | M53: 1588 | N53: 1588 | O53: 1603 | P53: 1627 | Q53: 1719 | R53: 1734 | S53: 1741 | T53: 1747 | U53: 1772 | V53: 1812 | W53: 1839 | X53: 1885 | Y53: 1912 | Z53: 1890 | AA53: 1851 | AB53: 1902 | AC53: 1919 | AD53: 1948 | AE53: 1977 | AF53: 1999 | AG53: 2042 | AH53: =_xlfn.RANK.EQ(tblAargau[[#This Row],[2011]],tblAargau[2011]) -> 94 | AI53: 0.01443569554 | AJ53: 0.1410579345 | AK53: 0.1103860794 | AL53: =_xlfn.RANK.EQ(tblAargau[[#This Row],[2001-2011]],tblAargau[2001-2011]) -> 117 | AM53: 0.3398950131 | AN53: =_xlfn.RANK.EQ(tblAargau[[#This Row],[1981-2011]],tblAargau[1981-2011]) -> 140 | AO53: 8.46 | AP53: =_xlfn.RANK.EQ(tblAargau[[#This Row],[Fläche in km²]],tblAargau[Fläche in km²]) -> 54 | AQ53: 241 | AR53: =_xlfn.RANK.EQ(tblAargau[[#This Row],[Einwohner/km²]],tblAargau[Einwohner/km²]) -> 133 | AS53: 114 | AT53: =_xlfn.RANK.EQ(tblAargau[[#This Row],[Tax]],tblAargau[Tax],1) -> 144
A54: Ennetbaden | B54: Baden | C54: 2530 | D54: 2511 | E54: 2537 | F54: 2486 | G54: 2507 | H54: 2550 | I54: 2705 | J54: 2783 | K54: 2827 | L54: 2834 | M54: 2919 | N54: 3017 | O54: 3057 | P54: 2976 | Q54: 2942 | R54: 2954 | S54: 2969 | T54: 2941 | U54: 2948 | V54: 2986 | W54: 3024 | X54: 3047 | Y54: 3009 | Z54: 2973 | AA54: 2990 | AB54: 2954 | AC54: 2938 | AD54: 3021 | AE54: 3024 | AF54: 3030 | AG54: 3065 | AH54: =_xlfn.RANK.EQ(tblAargau[[#This Row],[2011]],tblAargau[2011]) -> 67 | AI54: 0.1201581028 | AJ54: 0.02295306612 | AK54: 0.01355820106 | AL54: =_xlfn.RANK.EQ(tblAargau[[#This Row],[2001-2011]],tblAargau[2001-2011]) -> 187 | AM54: 0.2114624506 | AN54: =_xlfn.RANK.EQ(tblAargau[[#This Row],[1981-2011]],tblAargau[1981-2011]) -> 183 | AO54: 2.11 | AP54: =_xlfn.RANK.EQ(tblAargau[[#This Row],[Fläche in km²]],tblAargau[Fläche in km²]) -> 210 | AQ54: 1453 | AR54: =_xlfn.RANK.EQ(tblAargau[[#This Row],[Einwohner/km²]],tblAargau[Einwohner/km²]) -> 7 | AS54: 100 | AT54: =_xlfn.RANK.EQ(tblAargau[[#This Row],[Tax]],tblAargau[Tax],1) -> 60
A55: Erlinsbach (AG) | B55: Aarau | C55: 3081 | D55: 3078 | E55: 3076 | F55: 3133 | G55: 3152 | H55: 3155 | I55: 3191 | J55: 3139 | K55: 3186 | L55: 3206 | M55: 3237 | N55: 3244 | O55: 3247 | P55: 3175 | Q55: 3192 | R55: 3158 | S55: 3197 | T55: 3231 | U55: 3267 | V55: 3288 | W55: 3291 | X55: 3344 | Y55: 3409 | Z55: 3479 | AA55: 3467 | AB55: 3477 | AC55: 3457 | AD55: 3472 | AE55: 3522 | AF55: 3567 | AG55: 3700 | AH55: =_xlfn.RANK.EQ(tblAargau[[#This Row],[2011]],tblAargau[2011]) -> 53 | AI55: 0.0405712431 | AJ55: 0.01575532901 | AK55: 0.1242783349 | AL55: =_xlfn.RANK.EQ(tblAargau[[#This Row],[2001-2011]],tblAargau[2001-2011]) -> 101 | AM55: 0.2009087958 | AN55: =_xlfn.RANK.EQ(tblAargau[[#This Row],[1981-2011]],tblAargau[1981-2011]) -> 185 | AO55: 9.85 | AP55: =_xlfn.RANK.EQ(tblAargau[[#This Row],[Fläche in km²]],tblAargau[Fläche in km²]) -> 36 | AQ55: 376 | AR55: =_xlfn.RANK.EQ(tblAargau[[#This Row],[Einwohner/km²]],tblAargau[Einwohner/km²]) -> 97 | AS55: 98 | AT55: =_xlfn.RANK.EQ(tblAargau[[#This Row],[Tax]],tblAargau[Tax],1) -> 44
A56: Fahrwangen | B56: Lenzburg | C56: 1222 | D56: 1247 | E56: 1252 | F56: 1228 | G56: 1273 | H56: 1277 | I56: 1269 | J56: 1278 | K56: 1301 | L56: 1352 | M56: 1453 | N56: 1477 | O56: 1523 | P56: 1610 | Q56: 1630 | R56: 1643 | S56: 1673 | T56: 1692 | U56: 1654 | V56: 1644 | W56: 1684 | X56: 1673 | Y56: 1643 | Z56: 1647 | AA56: 1682 | AB56: 1719 | AC56: 1789 | AD56: 1833 | AE56: 1854 | AF56: 1869 | AG56: 1914 | AH56: =_xlfn.RANK.EQ(tblAargau[[#This Row],[2011]],tblAargau[2011]) -> 100 | AI56: 0.1063829787 | AJ56: 0.1314521679 | AK56: 0.1365795724 | AL56: =_xlfn.RANK.EQ(tblAargau[[#This Row],[2001-2011]],tblAargau[2001-2011]) -> 91 | AM56: 0.5662847791 | AN56: =_xlfn.RANK.EQ(tblAargau[[#This Row],[1981-2011]],tblAargau[1981-2011]) -> 74 | AO56: 3.99 | AP56: =_xlfn.RANK.EQ(tblAargau[[#This Row],[Fläche in km²]],tblAargau[Fläche in km²]) -> 152 | AQ56: 480 | AR56: =_xlfn.RANK.EQ(tblAargau[[#This Row],[Einwohner/km²]],tblAargau[Einwohner/km²]) -> 75 | AS56: 118 | AT56: =_xlfn.RANK.EQ(tblAargau[[#This Row],[Tax]],tblAargau[Tax],1) -> 178
A57: Fischbach-Göslikon | B57: Bremgarten | C57: 686 | D57: 692 | E57: 710 | F57: 734 | G57: 750 | H57: 719 | I57: 770 | J57: 824 | K57: 871 | L57: 927 | M57: 981 | N57: 990 | O57: 1016 | P57: 1013 | Q57: 1062 | R57: 1141 | S57: 1149 | T57: 1140 | U57: 1197 | V57: 1252 | W57: 1272 | X57: 1310 | Y57: 1344 | Z57: 1327 | AA57: 1341 | AB57: 1349 | AC57: 1368 | AD57: 1385 | AE57: 1385 | AF57: 1426 | AG57: 1413 | AH57: =_xlfn.RANK.EQ(tblAargau[[#This Row],[2011]],tblAargau[2011]) -> 123 | AI57: 0.3513119534 | AJ57: 0.2762487258 | AK57: 0.1108490566 | AL57: =_xlfn.RANK.EQ(tblAargau[[#This Row],[2001-2011]],tblAargau[2001-2011]) -> 116 | AM57: 1.059766764 | AN57: =_xlfn.RANK.EQ(tblAargau[[#This Row],[1981-2011]],tblAargau[1981-2011]) -> 20 | AO57: 3.07 | AP57: =_xlfn.RANK.EQ(tblAargau[[#This Row],[Fläche in km²]],tblAargau[Fläche in km²]) -> 185 | AQ57: 460 | AR57: =_xlfn.RANK.EQ(tblAargau[[#This Row],[Einwohner/km²]],tblAargau[Einwohner/km²]) -> 78 | AS57: 103 | AT57: =_xlfn.RANK.EQ(tblAargau[[#This Row],[Tax]],tblAargau[Tax],1) -> 81
A58: Fisibach | B58: Zurzach | C58: 319 | D58: 327 | E58: 322 | F58: 334 | G58: 340 | H58: 328 | I58: 341 | J58: 358 | K58: 363 | L58: 363 | M58: 367 | N58: 354 | O58: 359 | P58: 370 | Q58: 370 | R58: 363 | S58: 347 | T58: 343 | U58: 361 | V58: 361 | W58: 354 | X58: 368 | Y58: 377 | Z58: 379 | AA58: 381 | AB58: 379 | AC58: 369 | AD58: 368 | AE58: 355 | AF58: 378 | AG58: 387 | AH58: =_xlfn.RANK.EQ(tblAargau[[#This Row],[2011]],tblAargau[2011]) -> 204 | AI58: 0.1379310345 | AJ58: -0.01634877384 | AK58: 0.09322033898 | AL58: =_xlfn.RANK.EQ(tblAargau[[#This Row],[2001-2011]],tblAargau[2001-2011]) -> 128 | AM58: 0.2131661442 | AN58: =_xlfn.RANK.EQ(tblAargau[[#This Row],[1981-2011]],tblAargau[1981-2011]) -> 181 | AO58: 5.79 | AP58: =_xlfn.RANK.EQ(tblAargau[[#This Row],[Fläche in km²]],tblAargau[Fläche in km²]) -> 99 | AQ58: 67 | AR58: =_xlfn.RANK.EQ(tblAargau[[#This Row],[Einwohner/km²]],tblAargau[Einwohner/km²]) -> 213 | AS58: 118 | AT58: =_xlfn.RANK.EQ(tblAargau[[#This Row],[Tax]],tblAargau[Tax],1) -> 178
A59: Fislisbach | B59: Baden | C59: 3852 | D59: 3892 | E59: 3921 | F59: 4052 | G59: 4126 | H59: 4245 | I59: 4320 | J59: 4369 | K59: 4363 | L59: 4307 | M59: 4434 | N59: 4439 | O59: 4478 | P59: 4569 | Q59: 4705 | R59: 4661 | S59: 4648 | T59: 4661 | U59: 4818 | V59: 4934 | W59: 4992 | X59: 4977 | Y59: 4935 | Z59: 4855 | AA59: 4811 | AB59: 4769 | AC59: 4927 | AD59: 5024 | AE59: 5168 | AF59: 5229 | AG59: 5367 | AH59: =_xlfn.RANK.EQ(tblAargau[[#This Row],[2011]],tblAargau[2011]) -> 29 | AI59: 0.1181204569 | AJ59: 0.1127649977 | AK59: 0.07512019231 | AL59: =_xlfn.RANK.EQ(tblAargau[[#This Row],[2001-2011]],tblAargau[2001-2011]) -> 143 | AM59: 0.3933021807 | AN59: =_xlfn.RANK.EQ(tblAargau[[#This Row],[1981-2011]],tblAargau[1981-2011]) -> 115 | AO59: 5.06 | AP59: =_xlfn.RANK.EQ(tblAargau[[#This Row],[Fläche in km²]],tblAargau[Fläche in km²]) -> 119 | AQ59: 1061 | AR59: =_xlfn.RANK.EQ(tblAargau[[#This Row],[Einwohner/km²]],tblAargau[Einwohner/km²]) -> 20 | AS59: 98 | AT59: =_xlfn.RANK.EQ(tblAargau[[#This Row],[Tax]],tblAargau[Tax],1) -> 44
A60: Freienwil | B60: Baden | C60: 505 | D60: 503 | E60: 532 | F60: 615 | G60: 655 | H60: 663 | I60: 649 | J60: 661 | K60: 675 | L60: 644 | M60: 655 | N60: 658 | O60: 661 | P60: 676 | Q60: 681 | R60: 682 | S60: 715 | T60: 741 | U60: 742 | V60: 759 | W60: 820 | X60: 817 | Y60: 811 | Z60: 832 | AA60: 834 | AB60: 858 | AC60: 875 | AD60: 874 | AE60: 867 | AF60: 911 | AG60: 932 | AH60: =_xlfn.RANK.EQ(tblAargau[[#This Row],[2011]],tblAargau[2011]) -> 163 | AI60: 0.2752475248 | AJ60: 0.158778626 | AK60: 0.1365853659 | AL60: =_xlfn.RANK.EQ(tblAargau[[#This Row],[2001-2011]],tblAargau[2001-2011]) -> 90 | AM60: 0.8455445545 | AN60: =_xlfn.RANK.EQ(tblAargau[[#This Row],[1981-2011]],tblAargau[1981-2011]) -> 36 | AO60: 4 | AP60: =_xlfn.RANK.EQ(tblAargau[[#This Row],[Fläche in km²]],tblAargau[Fläche in km²]) -> 151 | AQ60: 233 | AR60: =_xlfn.RANK.EQ(tblAargau[[#This Row],[Einwohner/km²]],tblAargau[Einwohner/km²]) -> 134 | AS60: 112 | AT60: =_xlfn.RANK.EQ(tblAargau[[#This Row],[Tax]],tblAargau[Tax],1) -> 130
A61: Frick | B61: Laufenburg | C61: 3148 | D61: 3143 | E61: 3198 | F61: 3268 | G61: 3286 | H61: 3273 | I61: 3374 | J61: 3394 | K61: 3504 | L61: 3574 | M61: 3596 | N61: 3709 | O61: 3763 | P61: 3760 | Q61: 3789 | R61: 3784 | S61: 3799 | T61: 3805 | U61: 3888 | V61: 3935 | W61: 4066 | X61: 4169 | Y61: 4160 | Z61: 4292 | AA61: 4431 | AB61: 4562 | AC61: 4647 | AD61: 4680 | AE61: 4733 | AF61: 4811 | AG61: 4981 | AH61: =_xlfn.RANK.EQ(tblAargau[[#This Row],[2011]],tblAargau[2011]) -> 31 | AI61: 0.1353240152 | AJ61: 0.09427141268 | AK61: 0.2250368913 | AL61: =_xlfn.RANK.EQ(tblAargau[[#This Row],[2001-2011]],tblAargau[2001-2011]) -> 29 | AM61: 0.58227446 | AN61: =_xlfn.RANK.EQ(tblAargau[[#This Row],[1981-2011]],tblAargau[1981-2011]) -> 67 | AO61: 9.96 | AP61: =_xlfn.RANK.EQ(tblAargau[[#This Row],[Fläche in km²]],tblAargau[Fläche in km²]) -> 34 | AQ61: 500 | AR61: =_xlfn.RANK.EQ(tblAargau[[#This Row],[Einwohner/km²]],tblAargau[Einwohner/km²]) -> 72 | AS61: 99 | AT61: =_xlfn.RANK.EQ(tblAargau[[#This Row],[Tax]],tblAargau[Tax],1) -> 53
A62: Full-Reuenthal | B62: Zurzach | C62: 668 | D62: 662 | E62: 661 | F62: 668 | G62: 661 | H62: 682 | I62: 679 | J62: 693 | K62: 697 | L62: 713 | M62: 761 | N62: 774 | O62: 772 | P62: 779 | Q62: 785 | R62: 790 | S62: 822 | T62: 824 | U62: 830 | V62: 826 | W62: 832 | X62: 823 | Y62: 824 | Z62: 817 | AA62: 823 | AB62: 840 | AC62: 826 | AD62: 813 | AE62: 809 | AF62: 798 | AG62: 808 | AH62: =_xlfn.RANK.EQ(tblAargau[[#This Row],[2011]],tblAargau[2011]) -> 173 | AI62: 0.06736526946 | AJ62: 0.08541392904 | AK62: -0.02884615385 | AL62: =_xlfn.RANK.EQ(tblAargau[[#This Row],[2001-2011]],tblAargau[2001-2011]) -> 207 | AM62: 0.2095808383 | AN62: =_xlfn.RANK.EQ(tblAargau[[#This Row],[1981-2011]],tblAargau[1981-2011]) -> 184 | AO62: 4.82 | AP62: =_xlfn.RANK.EQ(tblAargau[[#This Row],[Fläche in km²]],tblAargau[Fläche in km²]) -> 128 | AQ62: 168 | AR62: =_xlfn.RANK.EQ(tblAargau[[#This Row],[Einwohner/km²]],tblAargau[Einwohner/km²]) -> 171 | AS62: 120 | AT62: =_xlfn.RANK.EQ(tblAargau[[#This Row],[Tax]],tblAargau[Tax],1) -> 195
A63: Gallenkirch | B63: Brugg | C63: 72 | D63: 77 | E63: 79 | F63: 80 | G63: 82 | H63: 82 | I63: 83 | J63: 92 | K63: 100 | L63: 99 | M63: 99 | N63: 99 | O63: 105 | P63: 102 | Q63: 101 | R63: 100 | S63: 103 | T63: 116 | U63: 118 | V63: 130 | W63: 125 | X63: 128 | Y63: 126 | Z63: 128 | AA63: 129 | AB63: 132 | AC63: 135 | AD63: 142 | AE63: 136 | AF63: 133 | AG63: 133 | AH63: =_xlfn.RANK.EQ(tblAargau[[#This Row],[2011]],tblAargau[2011]) -> 219 | AI63: 0.375 | AJ63: 0.3131313131 | AK63: 0.064 | AL63: =_xlfn.RANK.EQ(tblAargau[[#This Row],[2001-2011]],tblAargau[2001-2011]) -> 151 | AM63: 0.8472222222 | AN63: =_xlfn.RANK.EQ(tblAargau[[#This Row],[1981-2011]],tblAargau[1981-2011]) -> 35 | AO63: 1.4 | AP63: =_xlfn.RANK.EQ(tblAargau[[#This Row],[Fläche in km²]],tblAargau[Fläche in km²]) -> 215 | AQ63: 95 | AR63: =_xlfn.RANK.EQ(tblAargau[[#This Row],[Einwohner/km²]],tblAargau[Einwohner/km²]) -> 202 | AS63: 100 | AT63: =_xlfn.RANK.EQ(tblAargau[[#This Row],[Tax]],tblAargau[Tax],1) -> 60
A64: Gansingen | B64: Laufenburg | C64: 755 | D64: 757 | E64: 784 | F64: 805 | G64: 803 | H64: 830 | I64: 837 | J64: 857 | K64: 846 | L64: 853 | M64: 907 | N64: 919 | O64: 931 | P64: 913 | Q64: 919 | R64: 928 | S64: 953 | T64: 941 | U64: 933 | V64: 932 | W64: 912 | X64: 920 | Y64: 933 | Z64: 920 | AA64: 934 | AB64: 939 | AC64: 952 | AD64: 964 | AE64: 952 | AF64: 963 | AG64: 964 | AH64: =_xlfn.RANK.EQ(tblAargau[[#This Row],[2011]],tblAargau[2011]) -> 160 | AI64: 0.1298013245 | AJ64: 0.02756339581 | AK64: 0.05701754386 | AL64: =_xlfn.RANK.EQ(tblAargau[[#This Row],[2001-2011]],tblAargau[2001-2011]) -> 156 | AM64: 0.2768211921 | AN64: =_xlfn.RANK.EQ(tblAargau[[#This Row],[1981-2011]],tblAargau[1981-2011]) -> 163 | AO64: 8.77 | AP64: =_xlfn.RANK.EQ(tblAargau[[#This Row],[Fläche in km²]],tblAargau[Fläche in km²]) -> 49 | AQ64: 110 | AR64: =_xlfn.RANK.EQ(tblAargau[[#This Row],[Einwohner/km²]],tblAargau[Einwohner/km²]) -> 194 | AS64: 117 | AT64: =_xlfn.RANK.EQ(tblAargau[[#This Row],[Tax]],tblAargau[Tax],1) -> 168
A65: Gebenstorf | B65: Baden | C65: 3637 | D65: 3698 | E65: 3788 | F65: 3878 | G65: 3880 | H65: 3942 | I65: 3991 | J65: 3990 | K65: 3992 | L65: 4009 | M65: 4079 | N65: 4130 | O65: 4164 | P65: 4175 | Q65: 4202 | R65: 4159 | S65: 4195 | T65: 4154 | U65: 4173 | V65: 4169 | W65: 4189 | X65: 4173 | Y65: 4264 | Z65: 4389 | AA65: 4412 | AB65: 4448 | AC65: 4439 | AD65: 4548 | AE65: 4564 | AF65: 4639 | AG65: 4692 | AH65: =_xlfn.RANK.EQ(tblAargau[[#This Row],[2011]],tblAargau[2011]) -> 33 | AI65: 0.1022821006 | AJ65: 0.02206423143 | AK65: 0.1200763905 | AL65: =_xlfn.RANK.EQ(tblAargau[[#This Row],[2001-2011]],tblAargau[2001-2011]) -> 104 | AM65: 0.290074237 | AN65: =_xlfn.RANK.EQ(tblAargau[[#This Row],[1981-2011]],tblAargau[1981-2011]) -> 158 | AO65: 5.65 | AP65: =_xlfn.RANK.EQ(tblAargau[[#This Row],[Fläche in km²]],tblAargau[Fläche in km²]) -> 104 | AQ65: 830 | AR65: =_xlfn.RANK.EQ(tblAargau[[#This Row],[Einwohner/km²]],tblAargau[Einwohner/km²]) -> 38 | AS65: 103 | AT65: =_xlfn.RANK.EQ(tblAargau[[#This Row],[Tax]],tblAargau[Tax],1) -> 81
A66: Geltwil | B66: Muri | C66: 131 | D66: 131 | E66: 134 | F66: 137 | G66: 147 | H66: 155 | I66: 152 | J66: 152 | K66: 147 | L66: 148 | M66: 159 | N66: 159 | O66: 157 | P66: 156 | Q66: 151 | R66: 153 | S66: 152 | T66: 148 | U66: 145 | V66: 142 | W66: 155 | X66: 160 | Y66: 155 | Z66: 155 | AA66: 150 | AB66: 174 | AC66: 189 | AD66: 187 | AE66: 194 | AF66: 184 | AG66: 187 | AH66: =_xlfn.RANK.EQ(tblAargau[[#This Row],[2011]],tblAargau[2011]) -> 215 | AI66: =IFERROR(L66/C66-1,0) -> 0.1297709924 | AJ66: =IFERROR(V66/M66-1,0) -> -0.106918239 | AK66: =IFERROR(AG66/W66-1,0) -> 0.2064516129 | AL66: =_xlfn.RANK.EQ(tblAargau[[#This Row],[2001-2011]],tblAargau[2001-2011]) -> 35 | AM66: =IFERROR(AG66/C66-1,0) -> 0.427480916 | AN66: =_xlfn.RANK.EQ(tblAargau[[#This Row],[1981-2011]],tblAargau[1981-2011]) -> 103 | AO66: 3.3 | AP66: =_xlfn.RANK.EQ(tblAargau[[#This Row],[Fläche in km²]],tblAargau[Fläche in km²]) -> 174 | AQ66: 57 | AR66: =_xlfn.RANK.EQ(tblAargau[[#This Row],[Einwohner/km²]],tblAargau[Einwohner/km²]) -> 216 | AS66: 90 | AT66: =_xlfn.RANK.EQ(tblAargau[[#This Row],[Tax]],tblAargau[Tax],1) -> 22
A67: Gipf-Oberfrick | B67: Laufenburg | C67: 1488 | D67: 1552 | E67: 1594 | F67: 1652 | G67: 1736 | H67: 1798 | I67: 1833 | J67: 1863 | K67: 1933 | L67: 2008 | M67: 2105 | N67: 2175 | O67: 2301 | P67: 2436 | Q67: 2500 | R67: 2558 | S67: 2599 | T67: 2726 | U67: 2792 | V67: 2862 | W67: 2885 | X67: 2958 | Y67: 2988 | Z67: 2993 | AA67: 3081 | AB67: 3104 | AC67: 3166 | AD67: 3170 | AE67: 3201 | AF67: 3244 | AG67: 3279 | AH67: =_xlfn.RANK.EQ(tblAargau[[#This Row],[2011]],tblAargau[2011]) -> 62 | AI67: 0.3494623656 | AJ67: 0.3596199525 | AK67: 0.1365684575 | AL67: =_xlfn.RANK.EQ(tblAargau[[#This Row],[2001-2011]],tblAargau[2001-2011]) -> 92 | AM67: 1.203629032 | AN67: =_xlfn.RANK.EQ(tblAargau[[#This Row],[1981-2011]],tblAargau[1981-2011]) -> 16 | AO67: 10.18 | AP67: =_xlfn.RANK.EQ(tblAargau[[#This Row],[Fläche in km²]],tblAargau[Fläche in km²]) -> 32 | AQ67: 322 | AR67: =_xlfn.RANK.EQ(tblAargau[[#This Row],[Einwohner/km²]],tblAargau[Einwohner/km²]) -> 111 | AS67: 102 | AT67: =_xlfn.RANK.EQ(tblAargau[[#This Row],[Tax]],tblAargau[Tax],1) -> 75
A68: Gontenschwil | B68: Kulm | C68: 2036 | D68: 2010 | E68: 2035 | F68: 2043 | G68: 2040 | H68: 2036 | I68: 2007 | J68: 1984 | K68: 2013 | L68: 2027 | M68: 2137 | N68: 2170 | O68: 2132 | P68: 2114 | Q68: 2124 | R68: 2062 | S68: 2079 | T68: 2086 | U68: 2119 | V68: 2076 | W68: 2121 | X68: 2099 | Y68: 2110 | Z68: 2077 | AA68: 2062 | AB68: 2088 | AC68: 2071 | AD68: 2097 | AE68: 2072 | AF68: 2063 | AG68: 2059 | AH68: =_xlfn.RANK.EQ(tblAargau[[#This Row],[2011]],tblAargau[2011]) -> 93 | AI68: -0.00442043222 | AJ68: -0.02854468882 | AK68: -0.02923149458 | AL68: =_xlfn.RANK.EQ(tblAargau[[#This Row],[2001-2011]],tblAargau[2001-2011]) -> 208 | AM68: 0.01129666012 | AN68: =_xlfn.RANK.EQ(tblAargau[[#This Row],[1981-2011]],tblAargau[1981-2011]) -> 215 | AO68: 9.74 | AP68: =_xlfn.RANK.EQ(tblAargau[[#This Row],[Fläche in km²]],tblAargau[Fläche in km²]) -> 37 | AQ68: 211 | AR68: =_xlfn.RANK.EQ(tblAargau[[#This Row],[Einwohner/km²]],tblAargau[Einwohner/km²]) -> 145 | AS68: 112 | AT68: =_xlfn.RANK.EQ(tblAargau[[#This Row],[Tax]],tblAargau[Tax],1) -> 130
A69: Gränichen | B69: Aarau | C69: 5329 | D69: 5299 | E69: 5285 | F69: 5323 | G69: 5367 | H69: 5438 | I69: 5439 | J69: 5566 | K69: 5665 | L69: 5742 | M69: 5737 | N69: 5807 | O69: 5905 | P69: 5957 | Q69: 5962 | R69: 5987 | S69: 6005 | T69: 6047 | U69: 6072 | V69: 6093 | W69: 6164 | X69: 6239 | Y69: 6303 | Z69: 6335 | AA69: 6327 | AB69: 6443 | AC69: 6414 | AD69: 6404 | AE69: 6496 | AF69: 6672 | AG69: 6873 | AH69: =_xlfn.RANK.EQ(tblAargau[[#This Row],[2011]],tblAargau[2011]) -> 21 | AI69: 0.07750046913 | AJ69: 0.06205333798 | AK69: 0.1150227125 | AL69: =_xlfn.RANK.EQ(tblAargau[[#This Row],[2001-2011]],tblAargau[2001-2011]) -> 114 | AM69: 0.28973541 | AN69: =_xlfn.RANK.EQ(tblAargau[[#This Row],[1981-2011]],tblAargau[1981-2011]) -> 159 | AO69: 17.24 | AP69: =_xlfn.RANK.EQ(tblAargau[[#This Row],[Fläche in km²]],tblAargau[Fläche in km²]) -> 6 | AQ69: 399 | AR69: =_xlfn.RANK.EQ(tblAargau[[#This Row],[Einwohner/km²]],tblAargau[Einwohner/km²]) -> 92 | AS69: 111 | AT69: =_xlfn.RANK.EQ(tblAargau[[#This Row],[Tax]],tblAargau[Tax],1) -> 128
A70: Habsburg | B70: Brugg | C70: 253 | D70: 255 | E70: 257 | F70: 272 | G70: 276 | H70: 283 | I70: 287 | J70: 300 | K70: 313 | L70: 315 | M70: 331 | N70: 340 | O70: 353 | P70: 357 | Q70: 372 | R70: 384 | S70: 384 | T70: 394 | U70: 378 | V70: 370 | W70: 357 | X70: 378 | Y70: 388 | Z70: 399 | AA70: 400 | AB70: 390 | AC70: 410 | AD70: 437 | AE70: 433 | AF70: 424 | AG70: 420 | AH70: =_xlfn.RANK.EQ(tblAargau[[#This Row],[2011]],tblAargau[2011]) -> 201 | AI70: 0.2450592885 | AJ70: 0.1178247734 | AK70: 0.1764705882 | AL70: =_xlfn.RANK.EQ(tblAargau[[#This Row],[2001-2011]],tblAargau[2001-2011]) -> 59 | AM70: 0.6600790514 | AN70: =_xlfn.RANK.EQ(tblAargau[[#This Row],[1981-2011]],tblAargau[1981-2011]) -> 57 | AO70: 2.23 | AP70: =_xlfn.RANK.EQ(tblAargau[[#This Row],[Fläche in km²]],tblAargau[Fläche in km²]) -> 207 | AQ70: 188 | AR70: =_xlfn.RANK.EQ(tblAargau[[#This Row],[Einwohner/km²]],tblAargau[Einwohner/km²]) -> 159 | AS70: 88 | AT70: =_xlfn.RANK.EQ(tblAargau[[#This Row],[Tax]],tblAargau[Tax],1) -> 16
A71: Hägglingen | B71: Bremgarten | C71: 1679 | D71: 1708 | E71: 1731 | F71: 1766 | G71: 1764 | H71: 1804 | I71: 1800 | J71: 1801 | K71: 1798 | L71: 1819 | M71: 1865 | N71: 1907 | O71: 1952 | P71: 1968 | Q71: 1960 | R71: 1967 | S71: 1980 | T71: 1983 | U71: 1961 | V71: 2005 | W71: 1965 | X71: 1977 | Y71: 2025 | Z71: 2051 | AA71: 2056 | AB71: 2079 | AC71: 2141 | AD71: 2167 | AE71: 2201 | AF71: 2260 | AG71: 2346 | AH71: =_xlfn.RANK.EQ(tblAargau[[#This Row],[2011]],tblAargau[2011]) -> 87 | AI71: 0.08338296605 | AJ71: 0.07506702413 | AK71: 0.1938931298 | AL71: =_xlfn.RANK.EQ(tblAargau[[#This Row],[2001-2011]],tblAargau[2001-2011]) -> 43 | AM71: 0.397260274 | AN71: =_xlfn.RANK.EQ(tblAargau[[#This Row],[1981-2011]],tblAargau[1981-2011]) -> 114 | AO71: 7.75 | AP71: =_xlfn.RANK.EQ(tblAargau[[#This Row],[Fläche in km²]],tblAargau[Fläche in km²]) -> 64 | AQ71: 303 | AR71: =_xlfn.RANK.EQ(tblAargau[[#This Row],[Einwohner/km²]],tblAargau[Einwohner/km²]) -> 117 | AS71: 95 | AT71: =_xlfn.RANK.EQ(tblAargau[[#This Row],[Tax]],tblAargau[Tax],1) -> 30
A72: Hallwil | B72: Lenzburg | C72: 516 | D72: 539 | E72: 533 | F72: 527 | G72: 539 | H72: 564 | I72: 568 | J72: 574 | K72: 602 | L72: 624 | M72: 676 | N72: 658 | O72: 669 | P72: 709 | Q72: 709 | R72: 719 | S72: 738 | T72: 713 | U72: 713 | V72: 736 | W72: 750 | X72: 754 | Y72: 755 | Z72: 721 | AA72: 711 | AB72: 719 | AC72: 750 | AD72: 731 | AE72: 739 | AF72: 764 | AG72: 770 | AH72: =_xlfn.RANK.EQ(tblAargau[[#This Row],[2011]],tblAargau[2011]) -> 178 | AI72: 0.2093023256 | AJ72: 0.08875739645 | AK72: 0.02666666667 | AL72: =_xlfn.RANK.EQ(tblAargau[[#This Row],[2001-2011]],tblAargau[2001-2011]) -> 178 | AM72: 0.492248062 | AN72: =_xlfn.RANK.EQ(tblAargau[[#This Row],[1981-2011]],tblAargau[1981-2011]) -> 88 | AO72: 2.19 | AP72: =_xlfn.RANK.EQ(tblAargau[[#This Row],[Fläche in km²]],tblAargau[Fläche in km²]) -> 209 | AQ72: 352 | AR72: =_xlfn.RANK.EQ(tblAargau[[#This Row],[Einwohner/km²]],tblAargau[Einwohner/km²]) -> 100 | AS72: 117 | AT72: =_xlfn.RANK.EQ(tblAargau[[#This Row],[Tax]],tblAargau[Tax],1) -> 168
A73: Hausen (AG) | B73: Brugg | C73: 1648 | D73: 1729 | E73: 1780 | F73: 1837 | G73: 1878 | H73: 1884 | I73: 1884 | J73: 1881 | K73: 1870 | L73: 1847 | M73: 1917 | N73: 1962 | O73: 1989 | P73: 2075 | Q73: 2147 | R73: 2353 | S73: 2408 | T73: 2489 | U73: 2554 | V73: 2538 | W73: 2554 | X73: 2570 | Y73: 2614 | Z73: 2623 | AA73: 2699 | AB73: 2725 | AC73: 2777 | AD73: 2876 | AE73: 2864 | AF73: 2939 | AG73: 3009 | AH73: =_xlfn.RANK.EQ(tblAargau[[#This Row],[2011]],tblAargau[2011]) -> 68 | AI73: 0.1207524272 | AJ73: 0.323943662 | AK73: 0.1781519186 | AL73: =_xlfn.RANK.EQ(tblAargau[[#This Row],[2001-2011]],tblAargau[2001-2011]) -> 58 | AM73: 0.8258495146 | AN73: =_xlfn.RANK.EQ(tblAargau[[#This Row],[1981-2011]],tblAargau[1981-2011]) -> 38 | AO73: 3.21 | AP73: =_xlfn.RANK.EQ(tblAargau[[#This Row],[Fläche in km²]],tblAargau[Fläche in km²]) -> 180 | AQ73: 937 | AR73: =_xlfn.RANK.EQ(tblAargau[[#This Row],[Einwohner/km²]],tblAargau[Einwohner/km²]) -> 28 | AS73: 100 | AT73: =_xlfn.RANK.EQ(tblAargau[[#This Row],[Tax]],tblAargau[Tax],1) -> 60
A74: Hellikon | B74: Rheinfelden | C74: 598 | D74: 607 | E74: 609 | F74: 624 | G74: 634 | H74: 636 | I74: 641 | J74: 642 | K74: 657 | L74: 689 | M74: 728 | N74: 728 | O74: 713 | P74: 751 | Q74: 752 | R74: 757 | S74: 765 | T74: 753 | U74: 754 | V74: 752 | W74: 764 | X74: 768 | Y74: 778 | Z74: 751 | AA74: 749 | AB74: 753 | AC74: 773 | AD74: 762 | AE74: 772 | AF74: 778 | AG74: 794 | AH74: =_xlfn.RANK.EQ(tblAargau[[#This Row],[2011]],tblAargau[2011]) -> 176 | AI74: 0.152173913 | AJ74: 0.03296703297 | AK74: 0.03926701571 | AL74: =_xlfn.RANK.EQ(tblAargau[[#This Row],[2001-2011]],tblAargau[2001-2011]) -> 171 | AM74: 0.3277591973 | AN74: =_xlfn.RANK.EQ(tblAargau[[#This Row],[1981-2011]],tblAargau[1981-2011]) -> 145 | AO74: 7.05 | AP74: =_xlfn.RANK.EQ(tblAargau[[#This Row],[Fläche in km²]],tblAargau[Fläche in km²]) -> 74 | AQ74: 113 | AR74: =_xlfn.RANK.EQ(tblAargau[[#This Row],[Einwohner/km²]],tblAargau[Einwohner/km²]) -> 192 | AS74: 123 | AT74: =_xlfn.RANK.EQ(tblAargau[[#This Row],[Tax]],tblAargau[Tax],1) -> 211
A75: Hendschiken | B75: Lenzburg | C75: 726 | D75: 726 | E75: 714 | F75: 697 | G75: 693 | H75: 711 | I75: 711 | J75: 733 | K75: 720 | L75: 731 | M75: 729 | N75: 756 | O75: 786 | P75: 796 | Q75: 831 | R75: 857 | S75: 904 | T75: 915 | U75: 915 | V75: 889 | W75: 897 | X75: 885 | Y75: 907 | Z75: 893 | AA75: 902 | AB75: 922 | AC75: 921 | AD75: 923 | AE75: 958 | AF75: 960 | AG75: 1003 | AH75: =_xlfn.RANK.EQ(tblAargau[[#This Row],[2011]],tblAargau[2011]) -> 153 | AI75: 0.006887052342 | AJ75: 0.219478738 | AK75: 0.1181716834 | AL75: =_xlfn.RANK.EQ(tblAargau[[#This Row],[2001-2011]],tblAargau[2001-2011]) -> 109 | AM75: 0.3815426997 | AN75: =_xlfn.RANK.EQ(tblAargau[[#This Row],[1981-2011]],tblAargau[1981-2011]) -> 123 | AO75: 3.52 | AP75: =_xlfn.RANK.EQ(tblAargau[[#This Row],[Fläche in km²]],tblAargau[Fläche in km²]) -> 166 | AQ75: 285 | AR75: =_xlfn.RANK.EQ(tblAargau[[#This Row],[Einwohner/km²]],tblAargau[Einwohner/km²]) -> 121 | AS75: 123 | AT75: =_xlfn.RANK.EQ(tblAargau[[#This Row],[Tax]],tblAargau[Tax],1) -> 211
A76: Hermetschwil-Staffeln | B76: Bremgarten | C76: 507 | D76: 527 | E76: 547 | F76: 550 | G76: 548 | H76: 571 | I76: 584 | J76: 593 | K76: 597 | L76: 620 | M76: 622 | N76: 672 | O76: 702 | P76: 750 | Q76: 880 | R76: 962 | S76: 967 | T76: 987 | U76: 1043 | V76: 1061 | W76: 1079 | X76: 1084 | Y76: 1125 | Z76: 1109 | AA76: 1089 | AB76: 1066 | AC76: 1087 | AD76: 1096 | AE76: 1088 | AF76: 1092 | AG76: 1129 | AH76: =_xlfn.RANK.EQ(tblAargau[[#This Row],[2011]],tblAargau[2011]) -> 143 | AI76: 0.2228796844 | AJ76: 0.7057877814 | AK76: 0.04633920297 | AL76: =_xlfn.RANK.EQ(tblAargau[[#This Row],[2001-2011]],tblAargau[2001-2011]) -> 162 | AM76: 1.226824458 | AN76: =_xlfn.RANK.EQ(tblAargau[[#This Row],[1981-2011]],tblAargau[1981-2011]) -> 15 | AO76: 3.34 | AP76: =_xlfn.RANK.EQ(tblAargau[[#This Row],[Fläche in km²]],tblAargau[Fläche in km²]) -> 172 | AQ76: 338 | AR76: =_xlfn.RANK.EQ(tblAargau[[#This Row],[Einwohner/km²]],tblAargau[Einwohner/km²]) -> 103 | AS76: 112 | AT76: =_xlfn.RANK.EQ(tblAargau[[#This Row],[Tax]],tblAargau[Tax],1) -> 130
A77: Herznach | B77: Laufenburg | C77: 756 | D77: 767 | E77: 787 | F77: 797 | G77: 826 | H77: 837 | I77: 876 | J77: 909 | K77: 936 | L77: 972 | M77: 1033 | N77: 1026 | O77: 1033 | P77: 1044 | Q77: 1060 | R77: 1058 | S77: 1063 | T77: 1059 | U77: 1098 | V77: 1070 | W77: 1092 | X77: 1104 | Y77: 1110 | Z77: 1173 | AA77: 1202 | AB77: 1221 | AC77: 1277 | AD77: 1286 | AE77: 1288 | AF77: 1324 | AG77: 1343 | AH77: =_xlfn.RANK.EQ(tblAargau[[#This Row],[2011]],tblAargau[2011]) -> 127 | AI77: 0.2857142857 | AJ77: 0.03581800581 | AK77: 0.2298534799 | AL77: =_xlfn.RANK.EQ(tblAargau[[#This Row],[2001-2011]],tblAargau[2001-2011]) -> 27 | AM77: 0.7764550265 | AN77: =_xlfn.RANK.EQ(tblAargau[[#This Row],[1981-2011]],tblAargau[1981-2011]) -> 43 | AO77: 6.28 | AP77: =_xlfn.RANK.EQ(tblAargau[[#This Row],[Fläche in km²]],tblAargau[Fläche in km²]) -> 88 | AQ77: 214 | AR77: =_xlfn.RANK.EQ(tblAargau[[#This Row],[Einwohner/km²]],tblAargau[Einwohner/km²]) -> 141 | AS77: 119 | AT77: =_xlfn.RANK.EQ(tblAargau[[#This Row],[Tax]],tblAargau[Tax],1) -> 189
A78: Hirschthal | B78: Aarau | C78: 947 | D78: 995 | E78: 1009 | F78: 1019 | G78: 1020 | H78: 1052 | I78: 1059 | J78: 1079 | K78: 1080 | L78: 1082 | M78: 1112 | N78: 1105 | O78: 1133 | P78: 1141 | Q78: 1119 | R78: 1119 | S78: 1137 | T78: 1134 | U78: 1152 | V78: 1204 | W78: 1189 | X78: 1211 | Y78: 1206 | Z78: 1271 | AA78: 1301 | AB78: 1330 | AC78: 1367 | AD78: 1411 | AE78: 1421 | AF78: 1436 | AG78: 1485 | AH78: =_xlfn.RANK.EQ(tblAargau[[#This Row],[2011]],tblAargau[2011]) -> 116 | AI78: 0.1425554382 | AJ78: 0.08273381295 | AK78: 0.2489486964 | AL78: =_xlfn.RANK.EQ(tblAargau[[#This Row],[2001-2011]],tblAargau[2001-2011]) -> 23 | AM78: 0.5681098205 | AN78: =_xlfn.RANK.EQ(tblAargau[[#This Row],[1981-2011]],tblAargau[1981-2011]) -> 72 | AO78: 3.53 | AP78: =_xlfn.RANK.EQ(tblAargau[[#This Row],[Fläche in km²]],tblAargau[Fläche in km²]) -> 165 | AQ78: 421 | AR78: =_xlfn.RANK.EQ(tblAargau[[#This Row],[Einwohner/km²]],tblAargau[Einwohner/km²]) -> 85 | AS78: 105 | AT78: =_xlfn.RANK.EQ(tblAargau[[#This Row],[Tax]],tblAargau[Tax],1) -> 92
A79: Holderbank (AG) | B79: Lenzburg | C79: 788 | D79: 772 | E79: 773 | F79: 782 | G79: 781 | H79: 767 | I79: 768 | J79: 807 | K79: 801 | L79: 815 | M79: 804 | N79: 842 | O79: 833 | P79: 823 | Q79: 820 | R79: 831 | S79: 800 | T79: 790 | U79: 794 | V79: 795 | W79: 778 | X79: 756 | Y79: 770 | Z79: 763 | AA79: 823 | AB79: 855 | AC79: 835 | AD79: 841 | AE79: 854 | AF79: 904 | AG79: 995 | AH79: =_xlfn.RANK.EQ(tblAargau[[#This Row],[2011]],tblAargau[2011]) -> 155 | AI79: 0.03426395939 | AJ79: -0.01119402985 | AK79: 0.2789203085 | AL79: =_xlfn.RANK.EQ(tblAargau[[#This Row],[2001-2011]],tblAargau[2001-2011]) -> 18 | AM79: 0.2626903553 | AN79: =_xlfn.RANK.EQ(tblAargau[[#This Row],[1981-2011]],tblAargau[1981-2011]) -> 166 | AO79: 2.32 | AP79: =_xlfn.RANK.EQ(tblAargau[[#This Row],[Fläche in km²]],tblAargau[Fläche in km²]) -> 206 | AQ79: 429 | AR79: =_xlfn.RANK.EQ(tblAargau[[#This Row],[Einwohner/km²]],tblAargau[Einwohner/km²]) -> 84 | AS79: 100 | AT79: =_xlfn.RANK.EQ(tblAargau[[#This Row],[Tax]],tblAargau[Tax],1) -> 60
A80: Holziken | B80: Kulm | C80: 935 | D80: 953 | E80: 967 | F80: 978 | G80: 992 | H80: 997 | I80: 1007 | J80: 1004 | K80: 1014 | L80: 1001 | M80: 1054 | N80: 1063 | O80: 1111 | P80: 1109 | Q80: 1163 | R80: 1184 | S80: 1223 | T80: 1230 | U80: 1201 | V80: 1179 | W80: 1172 | X80: 1160 | Y80: 1174 | Z80: 1170 | AA80: 1175 | AB80: 1151 | AC80: 1148 | AD80: 1150 | AE80: 1144 | AF80: 1218 | AG80: 1243 | AH80: =_xlfn.RANK.EQ(tblAargau[[#This Row],[2011]],tblAargau[2011]) -> 136 | AI80: 0.07058823529 | AJ80: 0.1185958254 | AK80: 0.06058020478 | AL80: =_xlfn.RANK.EQ(tblAargau[[#This Row],[2001-2011]],tblAargau[2001-2011]) -> 154 | AM80: 0.3294117647 | AN80: =_xlfn.RANK.EQ(tblAargau[[#This Row],[1981-2011]],tblAargau[1981-2011]) -> 143 | AO80: 2.86 | AP80: =_xlfn.RANK.EQ(tblAargau[[#This Row],[Fläche in km²]],tblAargau[Fläche in km²]) -> 189 | AQ80: 435 | AR80: =_xlfn.RANK.EQ(tblAargau[[#This Row],[Einwohner/km²]],tblAargau[Einwohner/km²]) -> 82 | AS80: 104 | AT80: =_xlfn.RANK.EQ(tblAargau[[#This Row],[Tax]],tblAargau[Tax],1) -> 87
A81: Hornussen | B81: Laufenburg | C81: 619 | D81: 618 | E81: 627 | F81: 627 | G81: 626 | H81: 621 | I81: 634 | J81: 648 | K81: 654 | L81: 646 | M81: 687 | N81: 705 | O81: 721 | P81: 711 | Q81: 725 | R81: 755 | S81: 749 | T81: 780 | U81: 809 | V81: 821 | W81: 825 | X81: 814 | Y81: 833 | Z81: 835 | AA81: 851 | AB81: 840 | AC81: 852 | AD81: 879 | AE81: 877 | AF81: 881 | AG81: 847 | AH81: =_xlfn.RANK.EQ(tblAargau[[#This Row],[2011]],tblAargau[2011]) -> 168 | AI81: 0.0436187399 | AJ81: 0.1950509461 | AK81: 0.02666666667 | AL81: =_xlfn.RANK.EQ(tblAargau[[#This Row],[2001-2011]],tblAargau[2001-2011]) -> 178 | AM81: 0.3683360258 | AN81: =_xlfn.RANK.EQ(tblAargau[[#This Row],[1981-2011]],tblAargau[1981-2011]) -> 126 | AO81: 7.27 | AP81: =_xlfn.RANK.EQ(tblAargau[[#This Row],[Fläche in km²]],tblAargau[Fläche in km²]) -> 67 | AQ81: 117 | AR81: =_xlfn.RANK.EQ(tblAargau[[#This Row],[Einwohner/km²]],tblAargau[Einwohner/km²]) -> 188 | AS81: 125 | AT81: =_xlfn.RANK.EQ(tblAargau[[#This Row],[Tax]],tblAargau[Tax],1) -> 215
A82: Hunzenschwil | B82: Lenzburg | C82: 2238 | D82: 2231 | E82: 2304 | F82: 2314 | G82: 2293 | H82: 2343 | I82: 2297 | J82: 2309 | K82: 2298 | L82: 2341 | M82: 2362 | N82: 2397 | O82: 2453 | P82: 2496 | Q82: 2566 | R82: 2562 | S82: 2570 | T82: 2569 | U82: 2588 | V82: 2607 | W82: 2614 | X82: 2696 | Y82: 2745 | Z82: 2737 | AA82: 2785 | AB82: 2825 | AC82: 2951 | AD82: 3009 | AE82: 3169 | AF82: 3216 | AG82: 3271 | AH82: =_xlfn.RANK.EQ(tblAargau[[#This Row],[2011]],tblAargau[2011]) -> 64 | AI82: 0.04602323503 | AJ82: 0.1037256562 | AK82: 0.2513389441 | AL82: =_xlfn.RANK.EQ(tblAargau[[#This Row],[2001-2011]],tblAargau[2001-2011]) -> 22 | AM82: 0.4615728329 | AN82: =_xlfn.RANK.EQ(tblAargau[[#This Row],[1981-2011]],tblAargau[1981-2011]) -> 95 | AO82: 3.26 | AP82: =_xlfn.RANK.EQ(tblAargau[[#This Row],[Fläche in km²]],tblAargau[Fläche in km²]) -> 178 | AQ82: 1003 | AR82: =_xlfn.RANK.EQ(tblAargau[[#This Row],[Einwohner/km²]],tblAargau[Einwohner/km²]) -> 23 | AS82: 100 | AT82: =_xlfn.RANK.EQ(tblAargau[[#This Row],[Tax]],tblAargau[Tax],1) -> 60
A83: Islisberg | B83: Bremgarten | C83: 157 | D83: 154 | E83: 163 | F83: 187 | G83: 199 | H83: 204 | I83: 214 | J83: 235 | K83: 240 | L83: 249 | M83: 256 | N83: 267 | O83: 273 | P83: 269 | Q83: 268 | R83: 270 | S83: 302 | T83: 312 | U83: 321 | V83: 396 | W83: 429 | X83: 448 | Y83: 489 | Z83: 496 | AA83: 487 | AB83: 477 | AC83: 489 | AD83: 504 | AE83: 531 | AF83: 543 | AG83: 539 | AH83: =_xlfn.RANK.EQ(tblAargau[[#This Row],[2011]],tblAargau[2011]) -> 196 | AI83: 0.5859872611 | AJ83: 0.546875 | AK83: 0.2564102564 | AL83: =_xlfn.RANK.EQ(tblAargau[[#This Row],[2001-2011]],tblAargau[2001-2011]) -> 21 | AM83: 2.433121019 | AN83: =_xlfn.RANK.EQ(tblAargau[[#This Row],[1981-2011]],tblAargau[1981-2011]) -> 1 | AO83: 1.66 | AP83: =_xlfn.RANK.EQ(tblAargau[[#This Row],[Fläche in km²]],tblAargau[Fläche in km²]) -> 212 | AQ83: 325 | AR83: =_xlfn.RANK.EQ(tblAargau[[#This Row],[Einwohner/km²]],tblAargau[Einwohner/km²]) -> 110 | AS83: 95 | AT83: =_xlfn.RANK.EQ(tblAargau[[#This Row],[Tax]],tblAargau[Tax],1) -> 30
A84: Jonen | B84: Bremgarten | C84: 808 | D84: 821 | E84: 867 | F84: 912 | G84: 918 | H84: 923 | I84: 940 | J84: 995 | K84: 1034 | L84: 1057 | M84: 1112 | N84: 1123 | O84: 1225 | P84: 1267 | Q84: 1345 | R84: 1395 | S84: 1423 | T84: 1454 | U84: 1489 | V84: 1556 | W84: 1616 | X84: 1625 | Y84: 1646 | Z84: 1648 | AA84: 1659 | AB84: 1693 | AC84: 1736 | AD84: 1823 | AE84: 1856 | AF84: 1871 | AG84: 1886 | AH84: =_xlfn.RANK.EQ(tblAargau[[#This Row],[2011]],tblAargau[2011]) -> 102 | AI84: 0.3081683168 | AJ84: 0.3992805755 | AK84: 0.1670792079 | AL84: =_xlfn.RANK.EQ(tblAargau[[#This Row],[2001-2011]],tblAargau[2001-2011]) -> 65 | AM84: 1.334158416 | AN84: =_xlfn.RANK.EQ(tblAargau[[#This Row],[1981-2011]],tblAargau[1981-2011]) -> 11 | AO84: 5.7 | AP84: =_xlfn.RANK.EQ(tblAargau[[#This Row],[Fläche in km²]],tblAargau[Fläche in km²]) -> 102 | AQ84: 331 | AR84: =_xlfn.RANK.EQ(tblAargau[[#This Row],[Einwohner/km²]],tblAargau[Einwohner/km²]) -> 108 | AS84: 95 | AT84: =_xlfn.RANK.EQ(tblAargau[[#This Row],[Tax]],tblAargau[Tax],1) -> 30
A85: Kaiseraugst | B85: Rheinfelden | C85: 3240 | D85: 3310 | E85: 3254 | F85: 3175 | G85: 3105 | H85: 3130 | I85: 3172 | J85: 3233 | K85: 3373 | L85: 3540 | M85: 3572 | N85: 3637 | O85: 3607 | P85: 3623 | Q85: 3637 | R85: 3602 | S85: 3642 | T85: 3682 | U85: 3724 | V85: 3892 | W85: 4066 | X85: 4229 | Y85: 4353 | Z85: 4579 | AA85: 4726 | AB85: 4793 | AC85: 4872 | AD85: 5042 | AE85: 5085 | AF85: 5119 | AG85: 5367 | AH85: =_xlfn.RANK.EQ(tblAargau[[#This Row],[2011]],tblAargau[2011]) -> 29 | AI85: 0.09259259259 | AJ85: 0.08958566629 | AK85: 0.319970487 | AL85: =_xlfn.RANK.EQ(tblAargau[[#This Row],[2001-2011]],tblAargau[2001-2011]) -> 13 | AM85: 0.6564814815 | AN85: =_xlfn.RANK.EQ(tblAargau[[#This Row],[1981-2011]],tblAargau[1981-2011]) -> 60 | AO85: 4.91 | AP85: =_xlfn.RANK.EQ(tblAargau[[#This Row],[Fläche in km²]],tblAargau[Fläche in km²]) -> 123 | AQ85: 1093 | AR85: =_xlfn.RANK.EQ(tblAargau[[#This Row],[Einwohner/km²]],tblAargau[Einwohner/km²]) -> 17 | AS85: 90 | AT85: =_xlfn.RANK.EQ(tblAargau[[#This Row],[Tax]],tblAargau[Tax],1) -> 22
A86: Kaiserstuhl | B86: Zurzach | C86: 390 | D86: 378 | E86: 366 | F86: 370 | G86: 361 | H86: 356 | I86: 371 | J86: 371 | K86: 381 | L86: 412 | M86: 424 | N86: 437 | O86: 454 | P86: 463 | Q86: 447 | R86: 438 | S86: 440 | T86: 439 | U86: 427 | V86: 437 | W86: 445 | X86: 446 | Y86: 405 | Z86: 411 | AA86: 414 | AB86: 404 | AC86: 399 | AD86: 394 | AE86: 404 | AF86: 397 | AG86: 402 | AH86: =_xlfn.RANK.EQ(tblAargau[[#This Row],[2011]],tblAargau[2011]) -> 203 | AI86: 0.05641025641 | AJ86: 0.03066037736 | AK86: -0.09662921348 | AL86: =_xlfn.RANK.EQ(tblAargau[[#This Row],[2001-2011]],tblAargau[2001-2011]) -> 218 | AM86: 0.03076923077 | AN86: =_xlfn.RANK.EQ(tblAargau[[#This Row],[1981-2011]],tblAargau[1981-2011]) -> 213 | AO86: 0.32 | AP86: =_xlfn.RANK.EQ(tblAargau[[#This Row],[Fläche in km²]],tblAargau[Fläche in km²]) -> 219 | AQ86: 1256 | AR86: =_xlfn.RANK.EQ(tblAargau[[#This Row],[Einwohner/km²]],tblAargau[Einwohner/km²]) -> 15 | AS86: 120 | AT86: =_xlfn.RANK.EQ(tblAargau[[#This Row],[Tax]],tblAargau[Tax],1) -> 195
A87: Kaisten | B87: Laufenburg | C87: 1896 | D87: 1902 | E87: 1903 | F87: 1914 | G87: 1867 | H87: 1885 | I87: 1894 | J87: 1891 | K87: 1863 | L87: 1887 | M87: 1986 | N87: 1991 | O87: 2043 | P87: 2067 | Q87: 2107 | R87: 2123 | S87: 2187 | T87: 2243 | U87: 2263 | V87: 2303 | W87: 2330 | X87: 2365 | Y87: 2331 | Z87: 2328 | AA87: 2361 | AB87: 2424 | AC87: 2466 | AD87: 2502 | AE87: 2509 | AF87: 2553 | AG87: 2586 | AH87: =_xlfn.RANK.EQ(tblAargau[[#This Row],[2011]],tblAargau[2011]) -> 79 | AI87: -0.004746835443 | AJ87: 0.1596173212 | AK87: 0.1098712446 | AL87: =_xlfn.RANK.EQ(tblAargau[[#This Row],[2001-2011]],tblAargau[2001-2011]) -> 118 | AM87: 0.3639240506 | AN87: =_xlfn.RANK.EQ(tblAargau[[#This Row],[1981-2011]],tblAargau[1981-2011]) -> 131 | AO87: 18.11 | AP87: =_xlfn.RANK.EQ(tblAargau[[#This Row],[Fläche in km²]],tblAargau[Fläche in km²]) -> 5 | AQ87: 143 | AR87: =_xlfn.RANK.EQ(tblAargau[[#This Row],[Einwohner/km²]],tblAargau[Einwohner/km²]) -> 181 | AS87: 105 | AT87: =_xlfn.RANK.EQ(tblAargau[[#This Row],[Tax]],tblAargau[Tax],1) -> 92
A88: Kallern | B88: Muri | C88: 221 | D88: 232 | E88: 232 | F88: 234 | G88: 234 | H88: 250 | I88: 253 | J88: 254 | K88: 267 | L88: 266 | M88: 277 | N88: 281 | O88: 280 | P88: 281 | Q88: 288 | R88: 290 | S88: 283 | T88: 283 | U88: 269 | V88: 276 | W88: 269 | X88: 273 | Y88: 284 | Z88: 300 | AA88: 298 | AB88: 301 | AC88: 313 | AD88: 317 | AE88: 318 | AF88: 319 | AG88: 309 | AH88: =_xlfn.RANK.EQ(tblAargau[[#This Row],[2011]],tblAargau[2011]) -> 209 | AI88: 0.2036199095 | AJ88: -0.003610108303 | AK88: 0.1486988848 | AL88: =_xlfn.RANK.EQ(tblAargau[[#This Row],[2001-2011]],tblAargau[2001-2011]) -> 78 | AM88: 0.3981900452 | AN88: =_xlfn.RANK.EQ(tblAargau[[#This Row],[1981-2011]],tblAargau[1981-2011]) -> 113 | AO88: 2.68 | AP88: =_xlfn.RANK.EQ(tblAargau[[#This Row],[Fläche in km²]],tblAargau[Fläche in km²]) -> 195 | AQ88: 115 | AR88: =_xlfn.RANK.EQ(tblAargau[[#This Row],[Einwohner/km²]],tblAargau[Einwohner/km²]) -> 191 | AS88: 110 | AT88: =_xlfn.RANK.EQ(tblAargau[[#This Row],[Tax]],tblAargau[Tax],1) -> 117
A89: Killwangen | B89: Baden | C89: 1012 | D89: 1059 | E89: 1047 | F89: 1068 | G89: 1094 | H89: 1085 | I89: 1131 | J89: 1279 | K89: 1301 | L89: 1288 | M89: 1286 | N89: 1295 | O89: 1311 | P89: 1319 | Q89: 1339 | R89: 1359 | S89: 1363 | T89: 1347 | U89: 1367 | V89: 1396 | W89: 1383 | X89: 1480 | Y89: 1539 | Z89: 1553 | AA89: 1658 | AB89: 1715 | AC89: 1782 | AD89: 1782 | AE89: 1778 | AF89: 1801 | AG89: 1872 | AH89: =_xlfn.RANK.EQ(tblAargau[[#This Row],[2011]],tblAargau[2011]) -> 103 | AI89: 0.2727272727 | AJ89: 0.08553654743 | AK89: 0.3535791757 | AL89: =_xlfn.RANK.EQ(tblAargau[[#This Row],[2001-2011]],tblAargau[2001-2011]) -> 9 | AM89: 0.8498023715 | AN89: =_xlfn.RANK.EQ(tblAargau[[#This Row],[1981-2011]],tblAargau[1981-2011]) -> 34 | AO89: 2.43 | AP89: =_xlfn.RANK.EQ(tblAargau[[#This Row],[Fläche in km²]],tblAargau[Fläche in km²]) -> 203 | AQ89: 770 | AR89: =_xlfn.RANK.EQ(tblAargau[[#This Row],[Einwohner/km²]],tblAargau[Einwohner/km²]) -> 41 | AS89: 105 | AT89: =_xlfn.RANK.EQ(tblAargau[[#This Row],[Tax]],tblAargau[Tax],1) -> 92
A90: Kirchleerau | B90: Zofingen | C90: 671 | D90: 653 | E90: 662 | F90: 661 | G90: 650 | H90: 648 | I90: 656 | J90: 647 | K90: 642 | L90: 638 | M90: 647 | N90: 677 | O90: 694 | P90: 709 | Q90: 742 | R90: 736 | S90: 734 | T90: 725 | U90: 704 | V90: 731 | W90: 732 | X90: 726 | Y90: 740 | Z90: 761 | AA90: 757 | AB90: 766 | AC90: 742 | AD90: 745 | AE90: 742 | AF90: 755 | AG90: 764 | AH90: =_xlfn.RANK.EQ(tblAargau[[#This Row],[2011]],tblAargau[2011]) -> 179 | AI90: -0.04918032787 | AJ90: 0.1298299845 | AK90: 0.04371584699 | AL90: =_xlfn.RANK.EQ(tblAargau[[#This Row],[2001-2011]],tblAargau[2001-2011]) -> 167 | AM90: 0.1385991058 | AN90: =_xlfn.RANK.EQ(tblAargau[[#This Row],[1981-2011]],tblAargau[1981-2011]) -> 200 | AO90: 4.36 | AP90: =_xlfn.RANK.EQ(tblAargau[[#This Row],[Fläche in km²]],tblAargau[Fläche in km²]) -> 142 | AQ90: 175 | AR90: =_xlfn.RANK.EQ(tblAargau[[#This Row],[Einwohner/km²]],tblAargau[Einwohner/km²]) -> 167 | AS90: 115 | AT90: =_xlfn.RANK.EQ(tblAargau[[#This Row],[Tax]],tblAargau[Tax],1) -> 150
A91: Klingnau | B91: Zurzach | C91: 2393 | D91: 2413 | E91: 2385 | F91: 2420 | G91: 2515 | H91: 2530 | I91: 2522 | J91: 2486 | K91: 2511 | L91: 2521 | M91: 2635 | N91: 2658 | O91: 2701 | P91: 2703 | Q91: 2699 | R91: 2699 | S91: 2760 | T91: 2779 | U91: 2703 | V91: 2747 | W91: 2783 | X91: 2837 | Y91: 2845 | Z91: 2896 | AA91: 2893 | AB91: 2894 | AC91: 2979 | AD91: 3046 | AE91: 3070 | AF91: 3074 | AG91: 3117 | AH91: =_xlfn.RANK.EQ(tblAargau[[#This Row],[2011]],tblAargau[2011]) -> 66 | AI91: 0.05348934392 | AJ91: 0.04250474383 | AK91: 0.120014373 | AL91: =_xlfn.RANK.EQ(tblAargau[[#This Row],[2001-2011]],tblAargau[2001-2011]) -> 105 | AM91: 0.3025491015 | AN91: =_xlfn.RANK.EQ(tblAargau[[#This Row],[1981-2011]],tblAargau[1981-2011]) -> 155 | AO91: 6.71 | AP91: =_xlfn.RANK.EQ(tblAargau[[#This Row],[Fläche in km²]],tblAargau[Fläche in km²]) -> 80 | AQ91: 465 | AR91: =_xlfn.RANK.EQ(tblAargau[[#This Row],[Einwohner/km²]],tblAargau[Einwohner/km²]) -> 77 | AS91: 103 | AT91: =_xlfn.RANK.EQ(tblAargau[[#This Row],[Tax]],tblAargau[Tax],1) -> 81
A92: Koblenz | B92: Zurzach | C92: 1454 | D92: 1455 | E92: 1439 | F92: 1409 | G92: 1380 | H92: 1395 | I92: 1439 | J92: 1469 | K92: 1487 | L92: 1520 | M92: 1546 | N92: 1576 | O92: 1603 | P92: 1673 | Q92: 1643 | R92: 1606 | S92: 1570 | T92: 1536 | U92: 1600 | V92: 1573 | W92: 1557 | X92: 1536 | Y92: 1578 | Z92: 1571 | AA92: 1553 | AB92: 1575 | AC92: 1565 | AD92: 1574 | AE92: 1578 | AF92: 1582 | AG92: 1586 | AH92: =_xlfn.RANK.EQ(tblAargau[[#This Row],[2011]],tblAargau[2011]) -> 113 | AI92: 0.04539202201 | AJ92: 0.01746442432 | AK92: 0.01862556198 | AL92: =_xlfn.RANK.EQ(tblAargau[[#This Row],[2001-2011]],tblAargau[2001-2011]) -> 184 | AM92: 0.09078404402 | AN92: =_xlfn.RANK.EQ(tblAargau[[#This Row],[1981-2011]],tblAargau[1981-2011]) -> 210 | AO92: 4.08 | AP92: =_xlfn.RANK.EQ(tblAargau[[#This Row],[Fläche in km²]],tblAargau[Fläche in km²]) -> 150 | AQ92: 389 | AR92: =_xlfn.RANK.EQ(tblAargau[[#This Row],[Einwohner/km²]],tblAargau[Einwohner/km²]) -> 95 | AS92: 118 | AT92: =_xlfn.RANK.EQ(tblAargau[[#This Row],[Tax]],tblAargau[Tax],1) -> 178
A93: Kölliken | B93: Zofingen | C93: 3068 | D93: 3123 | E93: 3188 | F93: 3196 | G93: 3216 | H93: 3234 | I93: 3253 | J93: 3314 | K93: 3374 | L93: 3407 | M93: 3586 | N93: 3693 | O93: 3745 | P93: 3736 | Q93: 3767 | R93: 3770 | S93: 3831 | T93: 3864 | U93: 3874 | V93: 3891 | W93: 3869 | X93: 3867 | Y93: 3885 | Z93: 3927 | AA93: 4006 | AB93: 4026 | AC93: 4063 | AD93: 4045 | AE93: 4065 | AF93: 4095 | AG93: 4192 | AH93: =_xlfn.RANK.EQ(tblAargau[[#This Row],[2011]],tblAargau[2011]) -> 44 | AI93: 0.1104954368 | AJ93: 0.08505298383 | AK93: 0.08348410442 | AL93: =_xlfn.RANK.EQ(tblAargau[[#This Row],[2001-2011]],tblAargau[2001-2011]) -> 137 | AM93: 0.3663624511 | AN93: =_xlfn.RANK.EQ(tblAargau[[#This Row],[1981-2011]],tblAargau[1981-2011]) -> 129 | AO93: 8.89 | AP93: =_xlfn.RANK.EQ(tblAargau[[#This Row],[Fläche in km²]],tblAargau[Fläche in km²]) -> 46 | AQ93: 472 | AR93: =_xlfn.RANK.EQ(tblAargau[[#This Row],[Einwohner/km²]],tblAargau[Einwohner/km²]) -> 76 | AS93: 117 | AT93: =_xlfn.RANK.EQ(tblAargau[[#This Row],[Tax]],tblAargau[Tax],1) -> 168
A94: Künten | B94: Baden | C94: 1131 | D94: 1125 | E94: 1132 | F94: 1115 | G94: 1143 | H94: 1156 | I94: 1178 | J94: 1256 | K94: 1292 | L94: 1302 | M94: 1380 | N94: 1431 | O94: 1492 | P94: 1483 | Q94: 1519 | R94: 1507 | S94: 1492 | T94: 1494 | U94: 1501 | V94: 1503 | W94: 1522 | X94: 1557 | Y94: 1599 | Z94: 1607 | AA94: 1595 | AB94: 1574 | AC94: 1577 | AD94: 1598 | AE94: 1601 | AF94: 1580 | AG94: 1592 | AH94: =_xlfn.RANK.EQ(tblAargau[[#This Row],[2011]],tblAargau[2011]) -> 112 | AI94: 0.151193634 | AJ94: 0.08913043478 | AK94: 0.04599211564 | AL94: =_xlfn.RANK.EQ(tblAargau[[#This Row],[2001-2011]],tblAargau[2001-2011]) -> 164 | AM94: 0.4076038904 | AN94: =_xlfn.RANK.EQ(tblAargau[[#This Row],[1981-2011]],tblAargau[1981-2011]) -> 112 | AO94: 4.89 | AP94: =_xlfn.RANK.EQ(tblAargau[[#This Row],[Fläche in km²]],tblAargau[Fläche in km²]) -> 126 | AQ94: 326 | AR94: =_xlfn.RANK.EQ(tblAargau[[#This Row],[Einwohner/km²]],tblAargau[Einwohner/km²]) -> 109 | AS94: 109 | AT94: =_xlfn.RANK.EQ(tblAargau[[#This Row],[Tax]],tblAargau[Tax],1) -> 112
A95: Küttigen | B95: Aarau | C95: 4383 | D95: 4466 | E95: 4528 | F95: 4476 | G95: 4547 | H95: 4612 | I95: 4582 | J95: 4631 | K95: 4646 | L95: 4678 | M95: 4712 | N95: 4730 | O95: 4760 | P95: 4777 | Q95: 4833 | R95: 4910 | S95: 4910 | T95: 4926 | U95: 4907 | V95: 4916 | W95: 4960 | X95: 4997 | Y95: 4991 | Z95: 5030 | AA95: 5149 | AB95: 5298 | AC95: 5315 | AD95: 5315 | AE95: 5443 | AF95: 5564 | AG95: 5798 | AH95: =_xlfn.RANK.EQ(tblAargau[[#This Row],[2011]],tblAargau[2011]) -> 26 | AI95: 0.06730549852 | AJ95: 0.04329371817 | AK95: 0.1689516129 | AL95: =_xlfn.RANK.EQ(tblAargau[[#This Row],[2001-2011]],tblAargau[2001-2011]) -> 64 | AM95: 0.3228382386 | AN95: =_xlfn.RANK.EQ(tblAargau[[#This Row],[1981-2011]],tblAargau[1981-2011]) -> 146 | AO95: 11.89 | AP95: =_xlfn.RANK.EQ(tblAargau[[#This Row],[Fläche in km²]],tblAargau[Fläche in km²]) -> 20 | AQ95: 488 | AR95: =_xlfn.RANK.EQ(tblAargau[[#This Row],[Einwohner/km²]],tblAargau[Einwohner/km²]) -> 74 | AS95: 103 | AT95: =_xlfn.RANK.EQ(tblAargau[[#This Row],[Tax]],tblAargau[Tax],1) -> 81
A96: Laufenburg | B96: Laufenburg | C96: 2806 | D96: 2814 | E96: 2818 | F96: 2847 | G96: 2814 | H96: 2793 | I96: 2834 | J96: 2794 | K96: 2780 | L96: 2762 | M96: 2885 | N96: 2949 | O96: 2977 | P96: 3051 | Q96: 3118 | R96: 3152 | S96: 3127 | T96: 3167 | U96: 3119 | V96: 3125 | W96: 3099 | X96: 3116 | Y96: 3166 | Z96: 3202 | AA96: 3183 | AB96: 3195 | AC96: 3159 | AD96: 3184 | AE96: 3204 | AF96: 3176 | AG96: 3238 | AH96: =_xlfn.RANK.EQ(tblAargau[[#This Row],[2011]],tblAargau[2011]) -> 65 | AI96: -0.01568068425 | AJ96: 0.08318890815 | AK96: 0.04485317844 | AL96: =_xlfn.RANK.EQ(tblAargau[[#This Row],[2001-2011]],tblAargau[2001-2011]) -> 165 | AM96: 0.153955809 | AN96: =_xlfn.RANK.EQ(tblAargau[[#This Row],[1981-2011]],tblAargau[1981-2011]) -> 197 | AO96: 14.49 | AP96: =_xlfn.RANK.EQ(tblAargau[[#This Row],[Fläche in km²]],tblAargau[Fläche in km²]) -> 8 | AQ96: 223 | AR96: =_xlfn.RANK.EQ(tblAargau[[#This Row],[Einwohner/km²]],tblAargau[Einwohner/km²]) -> 137 | AS96: 104 | AT96: =_xlfn.RANK.EQ(tblAargau[[#This Row],[Tax]],tblAargau[Tax],1) -> 87
A97: Leibstadt | B97: Zurzach | C97: 1139 | D97: 1111 | E97: 1107 | F97: 1087 | G97: 1092 | H97: 1085 | I97: 1117 | J97: 1102 | K97: 1132 | L97: 1166 | M97: 1213 | N97: 1255 | O97: 1277 | P97: 1313 | Q97: 1329 | R97: 1325 | S97: 1313 | T97: 1344 | U97: 1321 | V97: 1283 | W97: 1275 | X97: 1302 | Y97: 1325 | Z97: 1277 | AA97: 1264 | AB97: 1266 | AC97: 1281 | AD97: 1312 | AE97: 1325 | AF97: 1307 | AG97: 1340 | AH97: =_xlfn.RANK.EQ(tblAargau[[#This Row],[2011]],tblAargau[2011]) -> 128 | AI97: 0.02370500439 | AJ97: 0.05770816158 | AK97: 0.05098039216 | AL97: =_xlfn.RANK.EQ(tblAargau[[#This Row],[2001-2011]],tblAargau[2001-2011]) -> 160 | AM97: 0.1764705882 | AN97: =_xlfn.RANK.EQ(tblAargau[[#This Row],[1981-2011]],tblAargau[1981-2011]) -> 192 | AO97: 6.39 | AP97: =_xlfn.RANK.EQ(tblAargau[[#This Row],[Fläche in km²]],tblAargau[Fläche in km²]) -> 83 | AQ97: 210 | AR97: =_xlfn.RANK.EQ(tblAargau[[#This Row],[Einwohner/km²]],tblAargau[Einwohner/km²]) -> 146 | AS97: 100 | AT97: =_xlfn.RANK.EQ(tblAargau[[#This Row],[Tax]],tblAargau[Tax],1) -> 60
A98: Leimbach (AG) | B98: Kulm | C98: 339 | D98: 350 | E98: 361 | F98: 372 | G98: 361 | H98: 362 | I98: 357 | J98: 365 | K98: 361 | L98: 374 | M98: 389 | N98: 387 | O98: 381 | P98: 376 | Q98: 379 | R98: 389 | S98: 382 | T98: 389 | U98: 398 | V98: 407 | W98: 393 | X98: 404 | Y98: 400 | Z98: 387 | AA98: 392 | AB98: 410 | AC98: 432 | AD98: 428 | AE98: 436 | AF98: 445 | AG98: 448 | AH98: =_xlfn.RANK.EQ(tblAargau[[#This Row],[2011]],tblAargau[2011]) -> 199 | AI98: 0.1032448378 | AJ98: 0.04627249357 | AK98: 0.1399491094 | AL98: =_xlfn.RANK.EQ(tblAargau[[#This Row],[2001-2011]],tblAargau[2001-2011]) -> 86 | AM98: 0.3215339233 | AN98: =_xlfn.RANK.EQ(tblAargau[[#This Row],[1981-2011]],tblAargau[1981-2011]) -> 148 | AO98: 1.15 | AP98: =_xlfn.RANK.EQ(tblAargau[[#This Row],[Fläche in km²]],tblAargau[Fläche in km²]) -> 217 | AQ98: 390 | AR98: =_xlfn.RANK.EQ(tblAargau[[#This Row],[Einwohner/km²]],tblAargau[Einwohner/km²]) -> 94 | AS98: 105 | AT98: =_xlfn.RANK.EQ(tblAargau[[#This Row],[Tax]],tblAargau[Tax],1) -> 92
A99: Lengnau (AG) | B99: Zurzach | C99: 1869 | D99: 1929 | E99: 1925 | F99: 1868 | G99: 1862 | H99: 1827 | I99: 1856 | J99: 1882 | K99: 1919 | L99: 2000 | M99: 2072 | N99: 2094 | O99: 2087 | P99: 2059 | Q99: 2111 | R99: 2114 | S99: 2097 | T99: 2140 | U99: 2224 | V99: 2254 | W99: 2307 | X99: 2317 | Y99: 2334 | Z99: 2390 | AA99: 2422 | AB99: 2419 | AC99: 2459 | AD99: 2470 | AE99: 2496 | AF99: 2527 | AG99: 2556 | AH99: =_xlfn.RANK.EQ(tblAargau[[#This Row],[2011]],tblAargau[2011]) -> 81 | AI99: 0.07009095773 | AJ99: 0.08783783784 | AK99: 0.1079323797 | AL99: =_xlfn.RANK.EQ(tblAargau[[#This Row],[2001-2011]],tblAargau[2001-2011]) -> 119 | AM99: 0.367576244 | AN99: =_xlfn.RANK.EQ(tblAargau[[#This Row],[1981-2011]],tblAargau[1981-2011]) -> 128 | AO99: 12.67 | AP99: =_xlfn.RANK.EQ(tblAargau[[#This Row],[Fläche in km²]],tblAargau[Fläche in km²]) -> 14 | AQ99: 202 | AR99: =_xlfn.RANK.EQ(tblAargau[[#This Row],[Einwohner/km²]],tblAargau[Einwohner/km²]) -> 152 | AS99: 110 | AT99: =_xlfn.RANK.EQ(tblAargau[[#This Row],[Tax]],tblAargau[Tax],1) -> 117
A100: Lenzburg | B100: Lenzburg | C100: 7533 | D100: 7515 | E100: 7497 | F100: 7489 | G100: 7538 | H100: 7429 | I100: 7337 | J100: 7320 | K100: 7275 | L100: 7218 | M100: 7292 | N100: 7226 | O100: 7311 | P100: 7321 | Q100: 7450 | R100: 7403 | S100: 7388 | T100: 7361 | U100: 7388 | V100: 7427 | W100: 7468 | X100: 7517 | Y100: 7518 | Z100: 7501 | AA100: 7551 | AB100: 7702 | AC100: 7852 | AD100: 7984 | AE100: 8146 | AF100: 8296 | AG100: 8586 | AH100: =_xlfn.RANK.EQ(tblAargau[[#This Row],[2011]],tblAargau[2011]) -> 12 | AI100: -0.04181600956 | AJ100: 0.01851343939 | AK100: 0.1497054097 | AL100: =_xlfn.RANK.EQ(tblAargau[[#This Row],[2001-2011]],tblAargau[2001-2011]) -> 77 | AM100: 0.1397849462 | AN100: =_xlfn.RANK.EQ(tblAargau[[#This Row],[1981-2011]],tblAargau[1981-2011]) -> 199 | AO100: 11.33 | AP100: =_xlfn.RANK.EQ(tblAargau[[#This Row],[Fläche in km²]],tblAargau[Fläche in km²]) -> 24 | AQ100: 758 | AR100: =_xlfn.RANK.EQ(tblAargau[[#This Row],[Einwohner/km²]],tblAargau[Einwohner/km²]) -> 43 | AS100: 108 | AT100: =_xlfn.RANK.EQ(tblAargau[[#This Row],[Tax]],tblAargau[Tax],1) -> 105
A101: Leuggern | B101: Zurzach | C101: 1677 | D101: 1687 | E101: 1722 | F101: 1745 | G101: 1796 | H101: 1796 | I101: 1832 | J101: 1865 | K101: 1945 | L101: 1981 | M101: 2026 | N101: 2026 | O101: 2043 | P101: 2095 | Q101: 2134 | R101: 2174 | S101: 2155 | T101: 2148 | U101: 2174 | V101: 2145 | W101: 2113 | X101: 2137 | Y101: 2141 | Z101: 2128 | AA101: 2081 | AB101: 2068 | AC101: 2056 | AD101: 2045 | AE101: 2082 | AF101: 2107 | AG101: 2145 | AH101: =_xlfn.RANK.EQ(tblAargau[[#This Row],[2011]],tblAargau[2011]) -> 90 | AI101: 0.1812760883 | AJ101: 0.05873642646 | AK101: 0.01514434453 | AL101: =_xlfn.RANK.EQ(tblAargau[[#This Row],[2001-2011]],tblAargau[2001-2011]) -> 185 | AM101: 0.2790697674 | AN101: =_xlfn.RANK.EQ(tblAargau[[#This Row],[1981-2011]],tblAargau[1981-2011]) -> 162 | AO101: 13.76 | AP101: =_xlfn.RANK.EQ(tblAargau[[#This Row],[Fläche in km²]],tblAargau[Fläche in km²]) -> 9 | AQ101: 156 | AR101: =_xlfn.RANK.EQ(tblAargau[[#This Row],[Einwohner/km²]],tblAargau[Einwohner/km²]) -> 174 | AS101: 117 | AT101: =_xlfn.RANK.EQ(tblAargau[[#This Row],[Tax]],tblAargau[Tax],1) -> 168
A102: Leutwil | B102: Kulm | C102: 494 | D102: 494 | E102: 486 | F102: 495 | G102: 504 | H102: 503 | I102: 528 | J102: 542 | K102: 539 | L102: 540 | M102: 557 | N102: 575 | O102: 599 | P102: 611 | Q102: 603 | R102: 620 | S102: 632 | T102: 623 | U102: 643 | V102: 668 | W102: 680 | X102: 667 | Y102: 683 | Z102: 700 | AA102: 700 | AB102: 715 | AC102: 713 | AD102: 725 | AE102: 739 | AF102: 731 | AG102: 738 | AH102: =_xlfn.RANK.EQ(tblAargau[[#This Row],[2011]],tblAargau[2011]) -> 180 | AI102: 0.09311740891 | AJ102: 0.1992818671 | AK102: 0.08529411765 | AL102: =_xlfn.RANK.EQ(tblAargau[[#This Row],[2001-2011]],tblAargau[2001-2011]) -> 136 | AM102: 0.4939271255 | AN102: =_xlfn.RANK.EQ(tblAargau[[#This Row],[1981-2011]],tblAargau[1981-2011]) -> 87 | AO102: 3.75 | AP102: =_xlfn.RANK.EQ(tblAargau[[#This Row],[Fläche in km²]],tblAargau[Fläche in km²]) -> 160 | AQ102: 197 | AR102: =_xlfn.RANK.EQ(tblAargau[[#This Row],[Einwohner/km²]],tblAargau[Einwohner/km²]) -> 155 | AS102: 117 | AT102: =_xlfn.RANK.EQ(tblAargau[[#This Row],[Tax]],tblAargau[Tax],1) -> 168
A103: Linn | B103: Brugg | C103: 88 | D103: 82 | E103: 83 | F103: 79 | G103: 91 | H103: 89 | I103: 87 | J103: 89 | K103: 105 | L103: 101 | M103: 105 | N103: 112 | O103: 109 | P103: 101 | Q103: 99 | R103: 100 | S103: 110 | T103: 107 | U103: 103 | V103: 109 | W103: 125 | X103: 128 | Y103: 133 | Z103: 144 | AA103: 145 | AB103: 146 | AC103: 142 | AD103: 138 | AE103: 134 | AF103: 137 | AG103: 136 | AH103: =_xlfn.RANK.EQ(tblAargau[[#This Row],[2011]],tblAargau[2011]) -> 218 | AI103: 0.1477272727 | AJ103: 0.0380952381 | AK103: 0.088 | AL103: =_xlfn.RANK.EQ(tblAargau[[#This Row],[2001-2011]],tblAargau[2001-2011]) -> 134 | AM103: 0.5454545455 | AN103: =_xlfn.RANK.EQ(tblAargau[[#This Row],[1981-2011]],tblAargau[1981-2011]) -> 79 | AO103: 2.55 | AP103: =_xlfn.RANK.EQ(tblAargau[[#This Row],[Fläche in km²]],tblAargau[Fläche in km²]) -> 198 | AQ103: 53 | AR103: =_xlfn.RANK.EQ(tblAargau[[#This Row],[Einwohner/km²]],tblAargau[Einwohner/km²]) -> 219 | AS103: 115 | AT103: =_xlfn.RANK.EQ(tblAargau[[#This Row],[Tax]],tblAargau[Tax],1) -> 150
A104: Lupfig | B104: Brugg | C104: 938 | D104: 962 | E104: 962 | F104: 958 | G104: 997 | H104: 1111 | I104: 1160 | J104: 1140 | K104: 1246 | L104: 1308 | M104: 1409 | N104: 1395 | O104: 1478 | P104: 1532 | Q104: 1525 | R104: 1537 | S104: 1550 | T104: 1699 | U104: 1730 | V104: 1792 | W104: 1810 | X104: 1829 | Y104: 1893 | Z104: 1939 | AA104: 1978 | AB104: 1951 | AC104: 2031 | AD104: 2059 | AE104: 2124 | AF104: 2170 | AG104: 2145 | AH104: =_xlfn.RANK.EQ(tblAargau[[#This Row],[2011]],tblAargau[2011]) -> 90 | AI104: 0.39445629 | AJ104: 0.2718239886 | AK104: 0.1850828729 | AL104: =_xlfn.RANK.EQ(tblAargau[[#This Row],[2001-2011]],tblAargau[2001-2011]) -> 51 | AM104: 1.286780384 | AN104: =_xlfn.RANK.EQ(tblAargau[[#This Row],[1981-2011]],tblAargau[1981-2011]) -> 13 | AO104: 5.15 | AP104: =_xlfn.RANK.EQ(tblAargau[[#This Row],[Fläche in km²]],tblAargau[Fläche in km²]) -> 116 | AQ104: 417 | AR104: =_xlfn.RANK.EQ(tblAargau[[#This Row],[Einwohner/km²]],tblAargau[Einwohner/km²]) -> 86 | AS104: 95 | AT104: =_xlfn.RANK.EQ(tblAargau[[#This Row],[Tax]],tblAargau[Tax],1) -> 30
A105: Magden | B105: Rheinfelden | C105: 2281 | D105: 2313 | E105: 2346 | F105: 2384 | G105: 2412 | H105: 2481 | I105: 2503 | J105: 2587 | K105: 2625 | L105: 2656 | M105: 2745 | N105: 2746 | O105: 2743 | P105: 2782 | Q105: 2832 | R105: 2880 | S105: 2884 | T105: 2959 | U105: 3029 | V105: 3065 | W105: 3080 | X105: 3124 | Y105: 3165 | Z105: 3233 | AA105: 3284 | AB105: 3346 | AC105: 3415 | AD105: 3478 | AE105: 3555 | AF105: 3609 | AG105: 3663 | AH105: =_xlfn.RANK.EQ(tblAargau[[#This Row],[2011]],tblAargau[2011]) -> 56 | AI105: 0.1644015783 | AJ105: 0.116575592 | AK105: 0.1892857143 | AL105: =_xlfn.RANK.EQ(tblAargau[[#This Row],[2001-2011]],tblAargau[2001-2011]) -> 45 | AM105: 0.6058746164 | AN105: =_xlfn.RANK.EQ(tblAargau[[#This Row],[1981-2011]],tblAargau[1981-2011]) -> 65 | AO105: 11.01 | AP105: =_xlfn.RANK.EQ(tblAargau[[#This Row],[Fläche in km²]],tblAargau[Fläche in km²]) -> 29 | AQ105: 333 | AR105: =_xlfn.RANK.EQ(tblAargau[[#This Row],[Einwohner/km²]],tblAargau[Einwohner/km²]) -> 107 | AS105: 100 | AT105: =_xlfn.RANK.EQ(tblAargau[[#This Row],[Tax]],tblAargau[Tax],1) -> 60
A106: Mägenwil | B106: Baden | C106: 984 | D106: 997 | E106: 1049 | F106: 1045 | G106: 1066 | H106: 1063 | I106: 1089 | J106: 1113 | K106: 1211 | L106: 1264 | M106: 1299 | N106: 1318 | O106: 1327 | P106: 1353 | Q106: 1379 | R106: 1385 | S106: 1434 | T106: 1449 | U106: 1502 | V106: 1546 | W106: 1579 | X106: 1622 | Y106: 1637 | Z106: 1643 | AA106: 1697 | AB106: 1768 | AC106: 1804 | AD106: 1828 | AE106: 1881 | AF106: 1946 | AG106: 2004 | AH106: =_xlfn.RANK.EQ(tblAargau[[#This Row],[2011]],tblAargau[2011]) -> 98 | AI106: 0.2845528455 | AJ106: 0.1901462664 | AK106: 0.2691576947 | AL106: =_xlfn.RANK.EQ(tblAargau[[#This Row],[2001-2011]],tblAargau[2001-2011]) -> 20 | AM106: 1.036585366 | AN106: =_xlfn.RANK.EQ(tblAargau[[#This Row],[1981-2011]],tblAargau[1981-2011]) -> 21 | AO106: 3.48 | AP106: =_xlfn.RANK.EQ(tblAargau[[#This Row],[Fläche in km²]],tblAargau[Fläche in km²]) -> 167 | AQ106: 576 | AR106: =_xlfn.RANK.EQ(tblAargau[[#This Row],[Einwohner/km²]],tblAargau[Einwohner/km²]) -> 61 | AS106: 85 | AT106: =_xlfn.RANK.EQ(tblAargau[[#This Row],[Tax]],tblAargau[Tax],1) -> 10
A107: Mandach | B107: Brugg | C107: 273 | D107: 265 | E107: 261 | F107: 251 | G107: 266 | H107: 269 | I107: 281 | J107: 301 | K107: 301 | L107: 305 | M107: 320 | N107: 323 | O107: 332 | P107: 329 | Q107: 322 | R107: 323 | S107: 321 | T107: 320 | U107: 320 | V107: 315 | W107: 318 | X107: 313 | Y107: 306 | Z107: 309 | AA107: 312 | AB107: 320 | AC107: 315 | AD107: 309 | AE107: 306 | AF107: 302 | AG107: 310 | AH107: =_xlfn.RANK.EQ(tblAargau[[#This Row],[2011]],tblAargau[2011]) -> 208 | AI107: 0.1172161172 | AJ107: -0.015625 | AK107: -0.0251572327 | AL107: =_xlfn.RANK.EQ(tblAargau[[#This Row],[2001-2011]],tblAargau[2001-2011]) -> 205 | AM107: 0.1355311355 | AN107: =_xlfn.RANK.EQ(tblAargau[[#This Row],[1981-2011]],tblAargau[1981-2011]) -> 201 | AO107: 5.55 | AP107: =_xlfn.RANK.EQ(tblAargau[[#This Row],[Fläche in km²]],tblAargau[Fläche in km²]) -> 105 | AQ107: 56 | AR107: =_xlfn.RANK.EQ(tblAargau[[#This Row],[Einwohner/km²]],tblAargau[Einwohner/km²]) -> 217 | AS107: 120 | AT107: =_xlfn.RANK.EQ(tblAargau[[#This Row],[Tax]],tblAargau[Tax],1) -> 195
A108: Meisterschwanden | B108: Lenzburg | C108: 1536 | D108: 1509 | E108: 1549 | F108: 1570 | G108: 1571 | H108: 1560 | I108: 1578 | J108: 1629 | K108: 1667 | L108: 1702 | M108: 1785 | N108: 1810 | O108: 1842 | P108: 1824 | Q108: 1832 | R108: 1847 | S108: 1952 | T108: 1979 | U108: 2038 | V108: 2047 | W108: 2073 | X108: 2079 | Y108: 2118 | Z108: 2197 | AA108: 2338 | AB108: 2343 | AC108: 2347 | AD108: 2439 | AE108: 2542 | AF108: 2626 | AG108: 2693 | AH108: =_xlfn.RANK.EQ(tblAargau[[#This Row],[2011]],tblAargau[2011]) -> 75 | AI108: 0.1080729167 | AJ108: 0.1467787115 | AK108: 0.2990834539 | AL108: =_xlfn.RANK.EQ(tblAargau[[#This Row],[2001-2011]],tblAargau[2001-2011]) -> 16 | AM108: 0.7532552083 | AN108: =_xlfn.RANK.EQ(tblAargau[[#This Row],[1981-2011]],tblAargau[1981-2011]) -> 45 | AO108: 4.27 | AP108: =_xlfn.RANK.EQ(tblAargau[[#This Row],[Fläche in km²]],tblAargau[Fläche in km²]) -> 144 | AQ108: 631 | AR108: =_xlfn.RANK.EQ(tblAargau[[#This Row],[Einwohner/km²]],tblAargau[Einwohner/km²]) -> 52 | AS108: 74 | AT108: =_xlfn.RANK.EQ(tblAargau[[#This Row],[Tax]],tblAargau[Tax],1) -> 3
A109: Mellikon | B109: Zurzach | C109: 203 | D109: 186 | E109: 192 | F109: 192 | G109: 183 | H109: 199 | I109: 212 | J109: 219 | K109: 232 | L109: 225 | M109: 236 | N109: 234 | O109: 257 | P109: 279 | Q109: 277 | R109: 272 | S109: 267 | T109: 267 | U109: 246 | V109: 252 | W109: 252 | X109: 247 | Y109: 230 | Z109: 242 | AA109: 250 | AB109: 251 | AC109: 249 | AD109: 247 | AE109: 231 | AF109: 233 | AG109: 246 | AH109: =_xlfn.RANK.EQ(tblAargau[[#This Row],[2011]],tblAargau[2011]) -> 213 | AI109: 0.1083743842 | AJ109: 0.06779661017 | AK109: -0.02380952381 | AL109: =_xlfn.RANK.EQ(tblAargau[[#This Row],[2001-2011]],tblAargau[2001-2011]) -> 204 | AM109: 0.2118226601 | AN109: =_xlfn.RANK.EQ(tblAargau[[#This Row],[1981-2011]],tblAargau[1981-2011]) -> 182 | AO109: 2.71 | AP109: =_xlfn.RANK.EQ(tblAargau[[#This Row],[Fläche in km²]],tblAargau[Fläche in km²]) -> 194 | AQ109: 91 | AR109: =_xlfn.RANK.EQ(tblAargau[[#This Row],[Einwohner/km²]],tblAargau[Einwohner/km²]) -> 205 | AS109: 115 | AT109: =_xlfn.RANK.EQ(tblAargau[[#This Row],[Tax]],tblAargau[Tax],1) -> 150
A110: Mellingen | B110: Baden | C110: 3279 | D110: 3314 | E110: 3413 | F110: 3484 | G110: 3487 | H110: 3522 | I110: 3588 | J110: 3649 | K110: 3677 | L110: 3714 | M110: 3789 | N110: 3877 | O110: 3962 | P110: 3972 | Q110: 3992 | R110: 4024 | S110: 4089 | T110: 4070 | U110: 4063 | V110: 4182 | W110: 4317 | X110: 4355 | Y110: 4291 | Z110: 4256 | AA110: 4275 | AB110: 4425 | AC110: 4502 | AD110: 4547 | AE110: 4642 | AF110: 4633 | AG110: 4645 | AH110: =_xlfn.RANK.EQ(tblAargau[[#This Row],[2011]],tblAargau[2011]) -> 34 | AI110: 0.1326623971 | AJ110: 0.1037212985 | AK110: 0.0759786889 | AL110: =_xlfn.RANK.EQ(tblAargau[[#This Row],[2001-2011]],tblAargau[2001-2011]) -> 141 | AM110: 0.4165904239 | AN110: =_xlfn.RANK.EQ(tblAargau[[#This Row],[1981-2011]],tblAargau[1981-2011]) -> 108 | AO110: 4.87 | AP110: =_xlfn.RANK.EQ(tblAargau[[#This Row],[Fläche in km²]],tblAargau[Fläche in km²]) -> 127 | AQ110: 954 | AR110: =_xlfn.RANK.EQ(tblAargau[[#This Row],[Einwohner/km²]],tblAargau[Einwohner/km²]) -> 27 | AS110: 105 | AT110: =_xlfn.RANK.EQ(tblAargau[[#This Row],[Tax]],tblAargau[Tax],1) -> 92
A111: Menziken | B111: Kulm | C111: 4513 | D111: 4510 | E111: 4440 | F111: 4415 | G111: 4504 | H111: 4541 | I111: 4533 | J111: 4512 | K111: 4575 | L111: 4596 | M111: 4778 | N111: 4923 | O111: 5023 | P111: 5195 | Q111: 5378 | R111: 5449 | S111: 5382 | T111: 5376 | U111: 5379 | V111: 5409 | W111: 5402 | X111: 5468 | Y111: 5459 | Z111: 5451 | AA111: 5397 | AB111: 5417 | AC111: 5479 | AD111: 5456 | AE111: 5559 | AF111: 5580 | AG111: 5563 | AH111: =_xlfn.RANK.EQ(tblAargau[[#This Row],[2011]],tblAargau[2011]) -> 28 | AI111: 0.01839131398 | AJ111: 0.1320636249 | AK111: 0.02980377638 | AL111: =_xlfn.RANK.EQ(tblAargau[[#This Row],[2001-2011]],tblAargau[2001-2011]) -> 176 | AM111: 0.232661201 | AN111: =_xlfn.RANK.EQ(tblAargau[[#This Row],[1981-2011]],tblAargau[1981-2011]) -> 179 | AO111: 6.39 | AP111: =_xlfn.RANK.EQ(tblAargau[[#This Row],[Fläche in km²]],tblAargau[Fläche in km²]) -> 83 | AQ111: 871 | AR111: =_xlfn.RANK.EQ(tblAargau[[#This Row],[Einwohner/km²]],tblAargau[Einwohner/km²]) -> 34 | AS111: 119 | AT111: =_xlfn.RANK.EQ(tblAargau[[#This Row],[Tax]],tblAargau[Tax],1) -> 189
A112: Merenschwand | B112: Muri | C112: 1415 | D112: 1408 | E112: 1431 | F112: 1414 | G112: 1413 | H112: 1407 | I112: 1406 | J112: 1425 | K112: 1393 | L112: 1466 | M112: 1610 | N112: 1643 | O112: 1696 | P112: 1720 | Q112: 1782 | R112: 1928 | S112: 1926 | T112: 2023 | U112: 2049 | V112: 2179 | W112: 2253 | X112: 2326 | Y112: 2363 | Z112: 2384 | AA112: 2446 | AB112: 2453 | AC112: 2462 | AD112: 2455 | AE112: 2476 | AF112: 2600 | AG112: 3275 | AH112: =_xlfn.RANK.EQ(tblAargau[[#This Row],[2011]],tblAargau[2011]) -> 63 | AI112: 0.03604240283 | AJ112: 0.3534161491 | AK112: 0.453617399 | AL112: =_xlfn.RANK.EQ(tblAargau[[#This Row],[2001-2011]],tblAargau[2001-2011]) -> 2 | AM112: 1.314487633 | AN112: =_xlfn.RANK.EQ(tblAargau[[#This Row],[1981-2011]],tblAargau[1981-2011]) -> 12 | AO112: 13.5 | AP112: =_xlfn.RANK.EQ(tblAargau[[#This Row],[Fläche in km²]],tblAargau[Fläche in km²]) -> 11 | AQ112: 243 | AR112: =_xlfn.RANK.EQ(tblAargau[[#This Row],[Einwohner/km²]],tblAargau[Einwohner/km²]) -> 130 | AS112: 99 | AT112: =_xlfn.RANK.EQ(tblAargau[[#This Row],[Tax]],tblAargau[Tax],1) -> 53
A113: Mettauertal | B113: Laufenburg | C113: 1518 | D113: 1523 | E113: 1532 | F113: 1537 | G113: 1548 | H113: 1567 | I113: 1558 | J113: 1592 | K113: 1641 | L113: 1677 | M113: 1741 | N113: 1780 | O113: 1818 | P113: 1845 | Q113: 1888 | R113: 1941 | S113: 1937 | T113: 1901 | U113: 1936 | V113: 1869 | W113: 1885 | X113: 1870 | Y113: 1875 | Z113: 1890 | AA113: 1934 | AB113: 1965 | AC113: 1946 | AD113: 1921 | AE113: 1930 | AF113: 1927 | AG113: 1896 | AH113: =_xlfn.RANK.EQ(tblAargau[[#This Row],[2011]],tblAargau[2011]) -> 101 | AI113: 0.104743083 | AJ113: 0.07352096496 | AK113: 0.005835543767 | AL113: =_xlfn.RANK.EQ(tblAargau[[#This Row],[2001-2011]],tblAargau[2001-2011]) -> 193 | AM113: 0.2490118577 | AN113: =_xlfn.RANK.EQ(tblAargau[[#This Row],[1981-2011]],tblAargau[1981-2011]) -> 173 | AO113: 21.56 | AP113: =_xlfn.RANK.EQ(tblAargau[[#This Row],[Fläche in km²]],tblAargau[Fläche in km²]) -> 1 | AQ113: 88 | AR113: =_xlfn.RANK.EQ(tblAargau[[#This Row],[Einwohner/km²]],tblAargau[Einwohner/km²]) -> 207 | AS113: 107 | AT113: =_xlfn.RANK.EQ(tblAargau[[#This Row],[Tax]],tblAargau[Tax],1) -> 103
A114: Möhlin | B114: Rheinfelden | C114: 6330 | D114: 6417 | E114: 6468 | F114: 6472 | G114: 6406 | H114: 6452 | I114: 6555 | J114: 6660 | K114: 6838 | L114: 7044 | M114: 7353 | N114: 7428 | O114: 7579 | P114: 7749 | Q114: 7832 | R114: 7947 | S114: 8063 | T114: 8229 | U114: 8258 | V114: 8292 | W114: 8377 | X114: 8382 | Y114: 8533 | Z114: 8721 | AA114: 8884 | AB114: 9070 | AC114: 9246 | AD114: 9420 | AE114: 9757 | AF114: 9922 | AG114: 10201 | AH114: =_xlfn.RANK.EQ(tblAargau[[#This Row],[2011]],tblAargau[2011]) -> 10 | AI114: 0.1127962085 | AJ114: 0.1277029784 | AK114: 0.2177390474 | AL114: =_xlfn.RANK.EQ(tblAargau[[#This Row],[2001-2011]],tblAargau[2001-2011]) -> 30 | AM114: 0.6115323855 | AN114: =_xlfn.RANK.EQ(tblAargau[[#This Row],[1981-2011]],tblAargau[1981-2011]) -> 64 | AO114: 18.79 | AP114: =_xlfn.RANK.EQ(tblAargau[[#This Row],[Fläche in km²]],tblAargau[Fläche in km²]) -> 3 | AQ114: 543 | AR114: =_xlfn.RANK.EQ(tblAargau[[#This Row],[Einwohner/km²]],tblAargau[Einwohner/km²]) -> 63 | AS114: 115 | AT114: =_xlfn.RANK.EQ(tblAargau[[#This Row],[Tax]],tblAargau[Tax],1) -> 150
A115: Mönthal | B115: Brugg | C115: 302 | D115: 318 | E115: 327 | F115: 327 | G115: 342 | H115: 355 | I115: 361 | J115: 388 | K115: 394 | L115: 383 | M115: 415 | N115: 428 | O115: 447 | P115: 445 | Q115: 466 | R115: 438 | S115: 436 | T115: 433 | U115: 430 | V115: 435 | W115: 442 | X115: 431 | Y115: 421 | Z115: 402 | AA115: 400 | AB115: 412 | AC115: 418 | AD115: 406 | AE115: 402 | AF115: 410 | AG115: 407 | AH115: =_xlfn.RANK.EQ(tblAargau[[#This Row],[2011]],tblAargau[2011]) -> 202 | AI115: 0.2682119205 | AJ115: 0.04819277108 | AK115: -0.07918552036 | AL115: =_xlfn.RANK.EQ(tblAargau[[#This Row],[2001-2011]],tblAargau[2001-2011]) -> 216 | AM115: 0.3476821192 | AN115: =_xlfn.RANK.EQ(tblAargau[[#This Row],[1981-2011]],tblAargau[1981-2011]) -> 137 | AO115: 3.93 | AP115: =_xlfn.RANK.EQ(tblAargau[[#This Row],[Fläche in km²]],tblAargau[Fläche in km²]) -> 154 | AQ115: 104 | AR115: =_xlfn.RANK.EQ(tblAargau[[#This Row],[Einwohner/km²]],tblAargau[Einwohner/km²]) -> 197 | AS115: 110 | AT115: =_xlfn.RANK.EQ(tblAargau[[#This Row],[Tax]],tblAargau[Tax],1) -> 117
A116: Moosleerau | B116: Zofingen | C116: 592 | D116: 603 | E116: 609 | F116: 614 | G116: 613 | H116: 618 | I116: 642 | J116: 650 | K116: 683 | L116: 702 | M116: 755 | N116: 782 | O116: 798 | P116: 791 | Q116: 818 | R116: 801 | S116: 812 | T116: 811 | U116: 809 | V116: 810 | W116: 791 | X116: 786 | Y116: 801 | Z116: 800 | AA116: 812 | AB116: 820 | AC116: 820 | AD116: 818 | AE116: 833 | AF116: 850 | AG116: 845 | AH116: =_xlfn.RANK.EQ(tblAargau[[#This Row],[2011]],tblAargau[2011]) -> 169 | AI116: 0.1858108108 | AJ116: 0.07284768212 | AK116: 0.06826801517 | AL116: =_xlfn.RANK.EQ(tblAargau[[#This Row],[2001-2011]],tblAargau[2001-2011]) -> 147 | AM116: 0.4273648649 | AN116: =_xlfn.RANK.EQ(tblAargau[[#This Row],[1981-2011]],tblAargau[1981-2011]) -> 104 | AO116: 3.81 | AP116: =_xlfn.RANK.EQ(tblAargau[[#This Row],[Fläche in km²]],tblAargau[Fläche in km²]) -> 159 | AQ116: 222 | AR116: =_xlfn.RANK.EQ(tblAargau[[#This Row],[Einwohner/km²]],tblAargau[Einwohner/km²]) -> 138 | AS116: 115 | AT116: =_xlfn.RANK.EQ(tblAargau[[#This Row],[Tax]],tblAargau[Tax],1) -> 150
A117: Möriken-Wildegg | B117: Lenzburg | C117: 2855 | D117: 2878 | E117: 2929 | F117: 2886 | G117: 2895 | H117: 2921 | I117: 3025 | J117: 3085 | K117: 3220 | L117: 3340 | M117: 3430 | N117: 3432 | O117: 3448 | P117: 3501 | Q117: 3512 | R117: 3513 | S117: 3459 | T117: 3407 | U117: 3396 | V117: 3430 | W117: 3450 | X117: 3585 | Y117: 3600 | Z117: 3654 | AA117: 3672 | AB117: 3748 | AC117: 3766 | AD117: 3871 | AE117: 3936 | AF117: 3988 | AG117: 4138 | AH117: =_xlfn.RANK.EQ(tblAargau[[#This Row],[2011]],tblAargau[2011]) -> 46 | AI117: 0.1698774081 | AJ117: 0 | AK117: 0.1994202899 | AL117: =_xlfn.RANK.EQ(tblAargau[[#This Row],[2001-2011]],tblAargau[2001-2011]) -> 38 | AM117: 0.4493870403 | AN117: =_xlfn.RANK.EQ(tblAargau[[#This Row],[1981-2011]],tblAargau[1981-2011]) -> 98 | AO117: 6.6 | AP117: =_xlfn.RANK.EQ(tblAargau[[#This Row],[Fläche in km²]],tblAargau[Fläche in km²]) -> 81 | AQ117: 627 | AR117: =_xlfn.RANK.EQ(tblAargau[[#This Row],[Einwohner/km²]],tblAargau[Einwohner/km²]) -> 53 | AS117: 97 | AT117: =_xlfn.RANK.EQ(tblAargau[[#This Row],[Tax]],tblAargau[Tax],1) -> 41
A118: Muhen | B118: Aarau | C118: 2508 | D118: 2555 | E118: 2562 | F118: 2564 | G118: 2564 | H118: 2556 | I118: 2579 | J118: 2570 | K118: 2563 | L118: 2623 | M118: 2718 | N118: 2705 | O118: 2786 | P118: 2815 | Q118: 2846 | R118: 2916 | S118: 2922 | T118: 2969 | U118: 3013 | V118: 3064 | W118: 3063 | X118: 3122 | Y118: 3187 | Z118: 3224 | AA118: 3230 | AB118: 3220 | AC118: 3298 | AD118: 3449 | AE118: 3514 | AF118: 3569 | AG118: 3682 | AH118: =_xlfn.RANK.EQ(tblAargau[[#This Row],[2011]],tblAargau[2011]) -> 55 | AI118: 0.04585326954 | AJ118: 0.1272994849 | AK118: 0.2020894548 | AL118: =_xlfn.RANK.EQ(tblAargau[[#This Row],[2001-2011]],tblAargau[2001-2011]) -> 37 | AM118: 0.4681020734 | AN118: =_xlfn.RANK.EQ(tblAargau[[#This Row],[1981-2011]],tblAargau[1981-2011]) -> 91 | AO118: 7.02 | AP118: =_xlfn.RANK.EQ(tblAargau[[#This Row],[Fläche in km²]],tblAargau[Fläche in km²]) -> 76 | AQ118: 525 | AR118: =_xlfn.RANK.EQ(tblAargau[[#This Row],[Einwohner/km²]],tblAargau[Einwohner/km²]) -> 67 | AS118: 115 | AT118: =_xlfn.RANK.EQ(tblAargau[[#This Row],[Tax]],tblAargau[Tax],1) -> 150
A119: Mühlau | B119: Muri | C119: 606 | D119: 628 | E119: 617 | F119: 630 | G119: 638 | H119: 663 | I119: 670 | J119: 743 | K119: 757 | L119: 768 | M119: 814 | N119: 866 | O119: 912 | P119: 939 | Q119: 969 | R119: 939 | S119: 982 | T119: 983 | U119: 1002 | V119: 992 | W119: 980 | X119: 1007 | Y119: 981 | Z119: 986 | AA119: 1002 | AB119: 1001 | AC119: 998 | AD119: 990 | AE119: 987 | AF119: 1008 | AG119: 1020 | AH119: =_xlfn.RANK.EQ(tblAargau[[#This Row],[2011]],tblAargau[2011]) -> 151 | AI119: 0.2673267327 | AJ119: 0.2186732187 | AK119: 0.04081632653 | AL119: =_xlfn.RANK.EQ(tblAargau[[#This Row],[2001-2011]],tblAargau[2001-2011]) -> 169 | AM119: 0.6831683168 | AN119: =_xlfn.RANK.EQ(tblAargau[[#This Row],[1981-2011]],tblAargau[1981-2011]) -> 53 | AO119: 5.52 | AP119: =_xlfn.RANK.EQ(tblAargau[[#This Row],[Fläche in km²]],tblAargau[Fläche in km²]) -> 106 | AQ119: 185 | AR119: =_xlfn.RANK.EQ(tblAargau[[#This Row],[Einwohner/km²]],tblAargau[Einwohner/km²]) -> 161 | AS119: 117 | AT119: =_xlfn.RANK.EQ(tblAargau[[#This Row],[Tax]],tblAargau[Tax],1) -> 168
A120: Mülligen | B120: Brugg | C120: 459 | D120: 449 | E120: 457 | F120: 475 | G120: 529 | H120: 544 | I120: 581 | J120: 605 | K120: 601 | L120: 635 | M120: 659 | N120: 668 | O120: 701 | P120: 718 | Q120: 733 | R120: 736 | S120: 774 | T120: 779 | U120: 799 | V120: 789 | W120: 824 | X120: 812 | Y120: 836 | Z120: 833 | AA120: 841 | AB120: 874 | AC120: 908 | AD120: 917 | AE120: 941 | AF120: 944 | AG120: 965 | AH120: =_xlfn.RANK.EQ(tblAargau[[#This Row],[2011]],tblAargau[2011]) -> 159 | AI120: 0.3834422658 | AJ120: 0.1972685888 | AK120: 0.1711165049 | AL120: =_xlfn.RANK.EQ(tblAargau[[#This Row],[2001-2011]],tblAargau[2001-2011]) -> 61 | AM120: 1.102396514 | AN120: =_xlfn.RANK.EQ(tblAargau[[#This Row],[1981-2011]],tblAargau[1981-2011]) -> 18 | AO120: 3.16 | AP120: =_xlfn.RANK.EQ(tblAargau[[#This Row],[Fläche in km²]],tblAargau[Fläche in km²]) -> 182 | AQ120: 305 | AR120: =_xlfn.RANK.EQ(tblAargau[[#This Row],[Einwohner/km²]],tblAargau[Einwohner/km²]) -> 116 | AS120: 109 | AT120: =_xlfn.RANK.EQ(tblAargau[[#This Row],[Tax]],tblAargau[Tax],1) -> 112
A121: Mumpf | B121: Rheinfelden | C121: 796 | D121: 817 | E121: 816 | F121: 839 | G121: 821 | H121: 808 | I121: 807 | J121: 800 | K121: 824 | L121: 820 | M121: 793 | N121: 795 | O121: 832 | P121: 859 | Q121: 938 | R121: 964 | S121: 960 | T121: 968 | U121: 987 | V121: 1074 | W121: 1121 | X121: 1182 | Y121: 1245 | Z121: 1252 | AA121: 1254 | AB121: 1234 | AC121: 1250 | AD121: 1292 | AE121: 1295 | AF121: 1296 | AG121: 1259 | AH121: =_xlfn.RANK.EQ(tblAargau[[#This Row],[2011]],tblAargau[2011]) -> 134 | AI121: 0.03015075377 | AJ121: 0.3543505675 | AK121: 0.1231043711 | AL121: =_xlfn.RANK.EQ(tblAargau[[#This Row],[2001-2011]],tblAargau[2001-2011]) -> 102 | AM121: 0.5816582915 | AN121: =_xlfn.RANK.EQ(tblAargau[[#This Row],[1981-2011]],tblAargau[1981-2011]) -> 69 | AO121: 3.1 | AP121: =_xlfn.RANK.EQ(tblAargau[[#This Row],[Fläche in km²]],tblAargau[Fläche in km²]) -> 183 | AQ121: 406 | AR121: =_xlfn.RANK.EQ(tblAargau[[#This Row],[Einwohner/km²]],tblAargau[Einwohner/km²]) -> 88 | AS121: 122 | AT121: =_xlfn.RANK.EQ(tblAargau[[#This Row],[Tax]],tblAargau[Tax],1) -> 206
A122: Münchwilen (AG) | B122: Laufenburg | C122: 616 | D122: 611 | E122: 601 | F122: 600 | G122: 598 | H122: 608 | I122: 607 | J122: 617 | K122: 622 | L122: 614 | M122: 616 | N122: 624 | O122: 612 | P122: 600 | Q122: 596 | R122: 601 | S122: 581 | T122: 581 | U122: 578 | V122: 591 | W122: 601 | X122: 603 | Y122: 608 | Z122: 604 | AA122: 608 | AB122: 659 | AC122: 695 | AD122: 710 | AE122: 720 | AF122: 745 | AG122: 831 | AH122: =_xlfn.RANK.EQ(tblAargau[[#This Row],[2011]],tblAargau[2011]) -> 172 | AI122: -0.003246753247 | AJ122: -0.04058441558 | AK122: 0.3826955075 | AL122: =_xlfn.RANK.EQ(tblAargau[[#This Row],[2001-2011]],tblAargau[2001-2011]) -> 5 | AM122: 0.349025974 | AN122: =_xlfn.RANK.EQ(tblAargau[[#This Row],[1981-2011]],tblAargau[1981-2011]) -> 136 | AO122: 2.46 | AP122: =_xlfn.RANK.EQ(tblAargau[[#This Row],[Fläche in km²]],tblAargau[Fläche in km²]) -> 200 | AQ122: 338 | AR122: =_xlfn.RANK.EQ(tblAargau[[#This Row],[Einwohner/km²]],tblAargau[Einwohner/km²]) -> 103 | AS122: 96 | AT122: =_xlfn.RANK.EQ(tblAargau[[#This Row],[Tax]],tblAargau[Tax],1) -> 40
A123: Murgenthal | B123: Zofingen | C123: 2529 | D123: 2547 | E123: 2558 | F123: 2529 | G123: 2526 | H123: 2535 | I123: 2554 | J123: 2630 | K123: 2656 | L123: 2671 | M123: 2765 | N123: 2839 | O123: 2898 | P123: 2865 | Q123: 2796 | R123: 2798 | S123: 2816 | T123: 2791 | U123: 2765 | V123: 2722 | W123: 2736 | X123: 2771 | Y123: 2804 | Z123: 2830 | AA123: 2798 | AB123: 2784 | AC123: 2803 | AD123: 2809 | AE123: 2801 | AF123: 2793 | AG123: 2832 | AH123: =_xlfn.RANK.EQ(tblAargau[[#This Row],[2011]],tblAargau[2011]) -> 74 | AI123: 0.05614867537 | AJ123: -0.01555153707 | AK123: 0.0350877193 | AL123: =_xlfn.RANK.EQ(tblAargau[[#This Row],[2001-2011]],tblAargau[2001-2011]) -> 172 | AM123: 0.1198102017 | AN123: =_xlfn.RANK.EQ(tblAargau[[#This Row],[1981-2011]],tblAargau[1981-2011]) -> 204 | AO123: 18.65 | AP123: =_xlfn.RANK.EQ(tblAargau[[#This Row],[Fläche in km²]],tblAargau[Fläche in km²]) -> 4 | AQ123: 152 | AR123: =_xlfn.RANK.EQ(tblAargau[[#This Row],[Einwohner/km²]],tblAargau[Einwohner/km²]) -> 176 | AS123: 118 | AT123: =_xlfn.RANK.EQ(tblAargau[[#This Row],[Tax]],tblAargau[Tax],1) -> 178
A124: Muri (AG) | B124: Muri | C124: 5361 | D124: 5404 | E124: 5446 | F124: 5506 | G124: 5560 | H124: 5636 | I124: 5756 | J124: 5814 | K124: 5830 | L124: 5871 | M124: 5557 | N124: 5639 | O124: 5720 | P124: 5747 | Q124: 5875 | R124: 5888 | S124: 5975 | T124: 6070 | U124: 6086 | V124: 6204 | W124: 6290 | X124: 6300 | Y124: 6327 | Z124: 6400 | AA124: 6499 | AB124: 6565 | AC124: 6633 | AD124: 6760 | AE124: 6827 | AF124: 6948 | AG124: 7176 | AH124: =_xlfn.RANK.EQ(tblAargau[[#This Row],[2011]],tblAargau[2011]) -> 19 | AI124: 0.09513150532 | AJ124: 0.1164297283 | AK124: 0.1408585056 | AL124: =_xlfn.RANK.EQ(tblAargau[[#This Row],[2001-2011]],tblAargau[2001-2011]) -> 85 | AM124: 0.3385562395 | AN124: =_xlfn.RANK.EQ(tblAargau[[#This Row],[1981-2011]],tblAargau[1981-2011]) -> 142 | AO124: 12.34 | AP124: =_xlfn.RANK.EQ(tblAargau[[#This Row],[Fläche in km²]],tblAargau[Fläche in km²]) -> 17 | AQ124: 582 | AR124: =_xlfn.RANK.EQ(tblAargau[[#This Row],[Einwohner/km²]],tblAargau[Einwohner/km²]) -> 58 | AS124: 103 | AT124: =_xlfn.RANK.EQ(tblAargau[[#This Row],[Tax]],tblAargau[Tax],1) -> 81
A125: Neuenhof | B125: Baden | C125: 7468 | D125: 7784 | E125: 7818 | F125: 7791 | G125: 7786 | H125: 7779 | I125: 7745 | J125: 7635 | K125: 7637 | L125: 7630 | M125: 7641 | N125: 7563 | O125: 7577 | P125: 7578 | Q125: 7507 | R125: 7448 | S125: 7422 | T125: 7520 | U125: 7630 | V125: 7580 | W125: 7576 | X125: 7526 | Y125: 7579 | Z125: 7654 | AA125: 7746 | AB125: 7786 | AC125: 7873 | AD125: 7911 | AE125: 7954 | AF125: 8078 | AG125: 8300 | AH125: =_xlfn.RANK.EQ(tblAargau[[#This Row],[2011]],tblAargau[2011]) -> 14 | AI125: 0.0216925549 | AJ125: -0.007983248266 | AK125: 0.09556494192 | AL125: =_xlfn.RANK.EQ(tblAargau[[#This Row],[2001-2011]],tblAargau[2001-2011]) -> 126 | AM125: 0.111408677 | AN125: =_xlfn.RANK.EQ(tblAargau[[#This Row],[1981-2011]],tblAargau[1981-2011]) -> 206 | AO125: 5.38 | AP125: =_xlfn.RANK.EQ(tblAargau[[#This Row],[Fläche in km²]],tblAargau[Fläche in km²]) -> 110 | AQ125: 1543 | AR125: =_xlfn.RANK.EQ(tblAargau[[#This Row],[Einwohner/km²]],tblAargau[Einwohner/km²]) -> 6 | AS125: 98 | AT125: =_xlfn.RANK.EQ(tblAargau[[#This Row],[Tax]],tblAargau[Tax],1) -> 44
A126: Niederlenz | B126: Lenzburg | C126: 3395 | D126: 3422 | E126: 3394 | F126: 3364 | G126: 3407 | H126: 3365 | I126: 3336 | J126: 3333 | K126: 3399 | L126: 3487 | M126: 3528 | N126: 3566 | O126: 3608 | P126: 3665 | Q126: 3648 | R126: 3676 | S126: 3763 | T126: 3793 | U126: 3839 | V126: 3839 | W126: 3903 | X126: 3924 | Y126: 3930 | Z126: 3938 | AA126: 3979 | AB126: 4005 | AC126: 4021 | AD126: 4013 | AE126: 4073 | AF126: 4198 | AG126: 4263 | AH126: =_xlfn.RANK.EQ(tblAargau[[#This Row],[2011]],tblAargau[2011]) -> 40 | AI126: 0.02709867452 | AJ126: 0.08815192744 | AK126: 0.09223674097 | AL126: =_xlfn.RANK.EQ(tblAargau[[#This Row],[2001-2011]],tblAargau[2001-2011]) -> 129 | AM126: 0.2556701031 | AN126: =_xlfn.RANK.EQ(tblAargau[[#This Row],[1981-2011]],tblAargau[1981-2011]) -> 169 | AO126: 3.3 | AP126: =_xlfn.RANK.EQ(tblAargau[[#This Row],[Fläche in km²]],tblAargau[Fläche in km²]) -> 174 | AQ126: 1292 | AR126: =_xlfn.RANK.EQ(tblAargau[[#This Row],[Einwohner/km²]],tblAargau[Einwohner/km²]) -> 13 | AS126: 120 | AT126: =_xlfn.RANK.EQ(tblAargau[[#This Row],[Tax]],tblAargau[Tax],1) -> 195
A127: Niederrohrdorf | B127: Baden | C127: 2433 | D127: 2415 | E127: 2431 | F127: 2444 | G127: 2492 | H127: 2474 | I127: 2529 | J127: 2494 | K127: 2529 | L127: 2544 | M127: 2548 | N127: 2532 | O127: 2510 | P127: 2512 | Q127: 2477 | R127: 2494 | S127: 2515 | T127: 2525 | U127: 2465 | V127: 2453 | W127: 2510 | X127: 2514 | Y127: 2549 | Z127: 2634 | AA127: 2673 | AB127: 2794 | AC127: 3012 | AD127: 3243 | AE127: 3393 | AF127: 3456 | AG127: 3563 | AH127: =_xlfn.RANK.EQ(tblAargau[[#This Row],[2011]],tblAargau[2011]) -> 58 | AI127: 0.04562268804 | AJ127: -0.03728414443 | AK127: 0.4195219124 | AL127: =_xlfn.RANK.EQ(tblAargau[[#This Row],[2001-2011]],tblAargau[2001-2011]) -> 3 | AM127: 0.4644471845 | AN127: =_xlfn.RANK.EQ(tblAargau[[#This Row],[1981-2011]],tblAargau[1981-2011]) -> 92 | AO127: 3.33 | AP127: =_xlfn.RANK.EQ(tblAargau[[#This Row],[Fläche in km²]],tblAargau[Fläche in km²]) -> 173 | AQ127: 1070 | AR127: =_xlfn.RANK.EQ(tblAargau[[#This Row],[Einwohner/km²]],tblAargau[Einwohner/km²]) -> 18 | AS127: 95 | AT127: =_xlfn.RANK.EQ(tblAargau[[#This Row],[Tax]],tblAargau[Tax],1) -> 30
A128: Niederwil (AG) | B128: Bremgarten | C128: 1643 | D128: 1632 | E128: 1622 | F128: 1655 | G128: 1711 | H128: 1768 | I128: 1913 | J128: 1996 | K128: 2049 | L128: 2074 | M128: 1923 | N128: 1982 | O128: 1978 | P128: 1998 | Q128: 2108 | R128: 2171 | S128: 2125 | T128: 2145 | U128: 2203 | V128: 2199 | W128: 2222 | X128: 2219 | Y128: 2220 | Z128: 2239 | AA128: 2278 | AB128: 2288 | AC128: 2333 | AD128: 2374 | AE128: 2331 | AF128: 2343 | AG128: 2440 | AH128: =_xlfn.RANK.EQ(tblAargau[[#This Row],[2011]],tblAargau[2011]) -> 84 | AI128: 0.2623250152 | AJ128: 0.143525741 | AK128: 0.09810981098 | AL128: =_xlfn.RANK.EQ(tblAargau[[#This Row],[2001-2011]],tblAargau[2001-2011]) -> 125 | AM128: 0.4850882532 | AN128: =_xlfn.RANK.EQ(tblAargau[[#This Row],[1981-2011]],tblAargau[1981-2011]) -> 90 | AO128: 6.15 | AP128: =_xlfn.RANK.EQ(tblAargau[[#This Row],[Fläche in km²]],tblAargau[Fläche in km²]) -> 91 | AQ128: 397 | AR128: =_xlfn.RANK.EQ(tblAargau[[#This Row],[Einwohner/km²]],tblAargau[Einwohner/km²]) -> 93 | AS128: 99 | AT128: =_xlfn.RANK.EQ(tblAargau[[#This Row],[Tax]],tblAargau[Tax],1) -> 53
A129: Oberbözberg | B129: Brugg | C129: 305 | D129: 313 | E129: 301 | F129: 320 | G129: 331 | H129: 326 | I129: 339 | J129: 328 | K129: 365 | L129: 383 | M129: 415 | N129: 421 | O129: 432 | P129: 453 | Q129: 475 | R129: 483 | S129: 520 | T129: 521 | U129: 541 | V129: 546 | W129: 527 | X129: 525 | Y129: 533 | Z129: 517 | AA129: 517 | AB129: 506 | AC129: 494 | AD129: 478 | AE129: 494 | AF129: 492 | AG129: 499 | AH129: =_xlfn.RANK.EQ(tblAargau[[#This Row],[2011]],tblAargau[2011]) -> 197 | AI129: 0.2557377049 | AJ129: 0.3156626506 | AK129: -0.05313092979 | AL129: =_xlfn.RANK.EQ(tblAargau[[#This Row],[2001-2011]],tblAargau[2001-2011]) -> 212 | AM129: 0.6360655738 | AN129: =_xlfn.RANK.EQ(tblAargau[[#This Row],[1981-2011]],tblAargau[1981-2011]) -> 62 | AO129: 5.45 | AP129: =_xlfn.RANK.EQ(tblAargau[[#This Row],[Fläche in km²]],tblAargau[Fläche in km²]) -> 109 | AQ129: 92 | AR129: =_xlfn.RANK.EQ(tblAargau[[#This Row],[Einwohner/km²]],tblAargau[Einwohner/km²]) -> 204 | AS129: 110 | AT129: =_xlfn.RANK.EQ(tblAargau[[#This Row],[Tax]],tblAargau[Tax],1) -> 117
A130: Oberentfelden | B130: Aarau | C130: 5837 | D130: 5945 | E130: 6072 | F130: 6179 | G130: 6235 | H130: 6451 | I130: 6559 | J130: 6561 | K130: 6594 | L130: 6594 | M130: 6610 | N130: 6628 | O130: 6646 | P130: 6715 | Q130: 6706 | R130: 6644 | S130: 6583 | T130: 6580 | U130: 6591 | V130: 6637 | W130: 6754 | X130: 6816 | Y130: 6928 | Z130: 7057 | AA130: 7110 | AB130: 7130 | AC130: 7072 | AD130: 7226 | AE130: 7220 | AF130: 7366 | AG130: 7618 | AH130: =_xlfn.RANK.EQ(tblAargau[[#This Row],[2011]],tblAargau[2011]) -> 17 | AI130: =IFERROR(L130/C130-1,0) -> 0.1296899092 | AJ130: =IFERROR(V130/M130-1,0) -> 0.004084720121 | AK130: =IFERROR(AG130/W130-1,0) -> 0.1279241931 | AL130: =_xlfn.RANK.EQ(tblAargau[[#This Row],[2001-2011]],tblAargau[2001-2011]) -> 95 | AM130: =IFERROR(AG130/C130-1,0) -> 0.3051224944 | AN130: =_xlfn.RANK.EQ(tblAargau[[#This Row],[1981-2011]],tblAargau[1981-2011]) -> 153 | AO130: 7.16 | AP130: =_xlfn.RANK.EQ(tblAargau[[#This Row],[Fläche in km²]],tblAargau[Fläche in km²]) -> 69 | AQ130: 1064 | AR130: =_xlfn.RANK.EQ(tblAargau[[#This Row],[Einwohner/km²]],tblAargau[Einwohner/km²]) -> 19 | AS130: 108 | AT130: =_xlfn.RANK.EQ(tblAargau[[#This Row],[Tax]],tblAargau[Tax],1) -> 105
A131: Oberflachs | B131: Brugg | C131: 476 | D131: 475 | E131: 465 | F131: 464 | G131: 469 | H131: 454 | I131: 463 | J131: 456 | K131: 455 | L131: 462 | M131: 433 | N131: 431 | O131: 434 | P131: 430 | Q131: 420 | R131: 431 | S131: 438 | T131: 440 | U131: 443 | V131: 436 | W131: 436 | X131: 439 | Y131: 449 | Z131: 456 | AA131: 469 | AB131: 483 | AC131: 485 | AD131: 489 | AE131: 493 | AF131: 497 | AG131: 475 | AH131: =_xlfn.RANK.EQ(tblAargau[[#This Row],[2011]],tblAargau[2011]) -> 198 | AI131: -0.02941176471 | AJ131: 0.006928406467 | AK131: 0.08944954128 | AL131: =_xlfn.RANK.EQ(tblAargau[[#This Row],[2001-2011]],tblAargau[2001-2011]) -> 131 | AM131: -0.002100840336 | AN131: =_xlfn.RANK.EQ(tblAargau[[#This Row],[1981-2011]],tblAargau[1981-2011]) -> 216 | AO131: 3.38 | AP131: =_xlfn.RANK.EQ(tblAargau[[#This Row],[Fläche in km²]],tblAargau[Fläche in km²]) -> 170 | AQ131: 141 | AR131: =_xlfn.RANK.EQ(tblAargau[[#This Row],[Einwohner/km²]],tblAargau[Einwohner/km²]) -> 182 | AS131: 114 | AT131: =_xlfn.RANK.EQ(tblAargau[[#This Row],[Tax]],tblAargau[Tax],1) -> 144
A132: Oberhof | B132: Laufenburg | C132: 408 | D132: 409 | E132: 414 | F132: 418 | G132: 413 | H132: 425 | I132: 428 | J132: 427 | K132: 449 | L132: 448 | M132: 475 | N132: 483 | O132: 487 | P132: 481 | Q132: 492 | R132: 497 | S132: 512 | T132: 508 | U132: 513 | V132: 512 | W132: 530 | X132: 541 | Y132: 542 | Z132: 557 | AA132: 571 | AB132: 569 | AC132: 573 | AD132: 562 | AE132: 579 | AF132: 571 | AG132: 568 | AH132: =_xlfn.RANK.EQ(tblAargau[[#This Row],[2011]],tblAargau[2011]) -> 194 | AI132: 0.09803921569 | AJ132: 0.07789473684 | AK132: 0.07169811321 | AL132: =_xlfn.RANK.EQ(tblAargau[[#This Row],[2001-2011]],tblAargau[2001-2011]) -> 144 | AM132: 0.3921568627 | AN132: =_xlfn.RANK.EQ(tblAargau[[#This Row],[1981-2011]],tblAargau[1981-2011]) -> 116 | AO132: 8.21 | AP132: =_xlfn.RANK.EQ(tblAargau[[#This Row],[Fläche in km²]],tblAargau[Fläche in km²]) -> 60 | AQ132: 69 | AR132: =_xlfn.RANK.EQ(tblAargau[[#This Row],[Einwohner/km²]],tblAargau[Einwohner/km²]) -> 212 | AS132: 120 | AT132: =_xlfn.RANK.EQ(tblAargau[[#This Row],[Tax]],tblAargau[Tax],1) -> 195
A133: Oberkulm | B133: Kulm | C133: 1880 | D133: 1922 | E133: 1960 | F133: 1994 | G133: 2016 | H133: 2048 | I133: 1984 | J133: 2016 | K133: 2046 | L133: 2096 | M133: 2172 | N133: 2158 | O133: 2212 | P133: 2219 | Q133: 2230 | R133: 2266 | S133: 2252 | T133: 2246 | U133: 2240 | V133: 2230 | W133: 2248 | X133: 2259 | Y133: 2264 | Z133: 2338 | AA133: 2373 | AB133: 2379 | AC133: 2354 | AD133: 2382 | AE133: 2396 | AF133: 2438 | AG133: 2477 | AH133: =_xlfn.RANK.EQ(tblAargau[[#This Row],[2011]],tblAargau[2011]) -> 83 | AI133: 0.114893617 | AJ133: 0.02670349908 | AK133: 0.1018683274 | AL133: =_xlfn.RANK.EQ(tblAargau[[#This Row],[2001-2011]],tblAargau[2001-2011]) -> 123 | AM133: 0.3175531915 | AN133: =_xlfn.RANK.EQ(tblAargau[[#This Row],[1981-2011]],tblAargau[1981-2011]) -> 149 | AO133: 9.41 | AP133: =_xlfn.RANK.EQ(tblAargau[[#This Row],[Fläche in km²]],tblAargau[Fläche in km²]) -> 42 | AQ133: 263 | AR133: =_xlfn.RANK.EQ(tblAargau[[#This Row],[Einwohner/km²]],tblAargau[Einwohner/km²]) -> 126 | AS133: 114 | AT133: =_xlfn.RANK.EQ(tblAargau[[#This Row],[Tax]],tblAargau[Tax],1) -> 144
A134: Oberlunkhofen | B134: Bremgarten | C134: 744 | D134: 765 | E134: 776 | F134: 819 | G134: 866 | H134: 884 | I134: 902 | J134: 963 | K134: 1025 | L134: 1073 | M134: 1091 | N134: 1108 | O134: 1142 | P134: 1214 | Q134: 1286 | R134: 1315 | S134: 1364 | T134: 1367 | U134: 1415 | V134: 1439 | W134: 1490 | X134: 1518 | Y134: 1580 | Z134: 1637 | AA134: 1679 | AB134: 1687 | AC134: 1724 | AD134: 1818 | AE134: 1844 | AF134: 1915 | AG134: 1942 | AH134: =_xlfn.RANK.EQ(tblAargau[[#This Row],[2011]],tblAargau[2011]) -> 99 | AI134: 0.4422043011 | AJ134: 0.3189734189 | AK134: 0.3033557047 | AL134: =_xlfn.RANK.EQ(tblAargau[[#This Row],[2001-2011]],tblAargau[2001-2011]) -> 15 | AM134: 1.610215054 | AN134: =_xlfn.RANK.EQ(tblAargau[[#This Row],[1981-2011]],tblAargau[1981-2011]) -> 7 | AO134: 3.25 | AP134: =_xlfn.RANK.EQ(tblAargau[[#This Row],[Fläche in km²]],tblAargau[Fläche in km²]) -> 179 | AQ134: 598 | AR134: =_xlfn.RANK.EQ(tblAargau[[#This Row],[Einwohner/km²]],tblAargau[Einwohner/km²]) -> 55 | AS134: 75 | AT134: =_xlfn.RANK.EQ(tblAargau[[#This Row],[Tax]],tblAargau[Tax],1) -> 4
A135: Obermumpf | B135: Rheinfelden | C135: 727 | D135: 735 | E135: 763 | F135: 754 | G135: 763 | H135: 767 | I135: 773 | J135: 775 | K135: 794 | L135: 823 | M135: 897 | N135: 936 | O135: 978 | P135: 1021 | Q135: 1034 | R135: 1025 | S135: 1005 | T135: 1004 | U135: 1016 | V135: 998 | W135: 1006 | X135: 1039 | Y135: 1059 | Z135: 1054 | AA135: 1040 | AB135: 1022 | AC135: 1018 | AD135: 1005 | AE135: 994 | AF135: 1010 | AG135: 1008 | AH135: =_xlfn.RANK.EQ(tblAargau[[#This Row],[2011]],tblAargau[2011]) -> 152 | AI135: 0.1320495186 | AJ135: 0.1125975474 | AK135: 0.001988071571 | AL135: =_xlfn.RANK.EQ(tblAargau[[#This Row],[2001-2011]],tblAargau[2001-2011]) -> 196 | AM135: 0.386519945 | AN135: =_xlfn.RANK.EQ(tblAargau[[#This Row],[1981-2011]],tblAargau[1981-2011]) -> 122 | AO135: 5.03 | AP135: =_xlfn.RANK.EQ(tblAargau[[#This Row],[Fläche in km²]],tblAargau[Fläche in km²]) -> 121 | AQ135: 200 | AR135: =_xlfn.RANK.EQ(tblAargau[[#This Row],[Einwohner/km²]],tblAargau[Einwohner/km²]) -> 153 | AS135: 125 | AT135: =_xlfn.RANK.EQ(tblAargau[[#This Row],[Tax]],tblAargau[Tax],1) -> 215
A136: Oberrohrdorf | B136: Baden | C136: 2839 | D136: 2864 | E136: 2930 | F136: 2960 | G136: 2959 | H136: 2956 | I136: 3041 | J136: 3120 | K136: 3184 | L136: 3253 | M136: 3336 | N136: 3353 | O136: 3396 | P136: 3393 | Q136: 3365 | R136: 3300 | S136: 3271 | T136: 3301 | U136: 3346 | V136: 3402 | W136: 3458 | X136: 3529 | Y136: 3491 | Z136: 3454 | AA136: 3502 | AB136: 3493 | AC136: 3621 | AD136: 3688 | AE136: 3786 | AF136: 3873 | AG136: 3901 | AH136: =_xlfn.RANK.EQ(tblAargau[[#This Row],[2011]],tblAargau[2011]) -> 49 | AI136: 0.1458259951 | AJ136: 0.01978417266 | AK136: 0.1281087334 | AL136: =_xlfn.RANK.EQ(tblAargau[[#This Row],[2001-2011]],tblAargau[2001-2011]) -> 94 | AM136: 0.3740753787 | AN136: =_xlfn.RANK.EQ(tblAargau[[#This Row],[1981-2011]],tblAargau[1981-2011]) -> 124 | AO136: 4.29 | AP136: =_xlfn.RANK.EQ(tblAargau[[#This Row],[Fläche in km²]],tblAargau[Fläche in km²]) -> 143 | AQ136: 909 | AR136: =_xlfn.RANK.EQ(tblAargau[[#This Row],[Einwohner/km²]],tblAargau[Einwohner/km²]) -> 30 | AS136: 83 | AT136: =_xlfn.RANK.EQ(tblAargau[[#This Row],[Tax]],tblAargau[Tax],1) -> 7
A137: Oberrüti | B137: Muri | C137: 512 | D137: 532 | E137: 545 | F137: 573 | G137: 578 | H137: 562 | I137: 663 | J137: 695 | K137: 682 | L137: 711 | M137: 746 | N137: 758 | O137: 799 | P137: 874 | Q137: 903 | R137: 948 | S137: 995 | T137: 1027 | U137: 1082 | V137: 1108 | W137: 1164 | X137: 1165 | Y137: 1199 | Z137: 1206 | AA137: 1206 | AB137: 1216 | AC137: 1208 | AD137: 1216 | AE137: 1263 | AF137: 1341 | AG137: 1384 | AH137: =_xlfn.RANK.EQ(tblAargau[[#This Row],[2011]],tblAargau[2011]) -> 124 | AI137: 0.388671875 | AJ137: 0.4852546917 | AK137: 0.1890034364 | AL137: =_xlfn.RANK.EQ(tblAargau[[#This Row],[2001-2011]],tblAargau[2001-2011]) -> 46 | AM137: 1.703125 | AN137: =_xlfn.RANK.EQ(tblAargau[[#This Row],[1981-2011]],tblAargau[1981-2011]) -> 4 | AO137: 5.37 | AP137: =_xlfn.RANK.EQ(tblAargau[[#This Row],[Fläche in km²]],tblAargau[Fläche in km²]) -> 111 | AQ137: 258 | AR137: =_xlfn.RANK.EQ(tblAargau[[#This Row],[Einwohner/km²]],tblAargau[Einwohner/km²]) -> 129 | AS137: 112 | AT137: =_xlfn.RANK.EQ(tblAargau[[#This Row],[Tax]],tblAargau[Tax],1) -> 130
A138: Obersiggenthal | B138: Baden | C138: 7547 | D138: 7546 | E138: 7540 | F138: 7514 | G138: 7481 | H138: 7463 | I138: 7440 | J138: 7320 | K138: 7386 | L138: 7326 | M138: 7428 | N138: 7532 | O138: 7516 | P138: 7534 | Q138: 7560 | R138: 7520 | S138: 7462 | T138: 7407 | U138: 7458 | V138: 7465 | W138: 7683 | X138: 7688 | Y138: 7715 | Z138: 7756 | AA138: 7871 | AB138: 8019 | AC138: 7968 | AD138: 8068 | AE138: 8090 | AF138: 8126 | AG138: 8346 | AH138: =_xlfn.RANK.EQ(tblAargau[[#This Row],[2011]],tblAargau[2011]) -> 13 | AI138: -0.02928315887 | AJ138: 0.004981152396 | AK138: 0.08629441624 | AL138: =_xlfn.RANK.EQ(tblAargau[[#This Row],[2001-2011]],tblAargau[2001-2011]) -> 135 | AM138: 0.1058698821 | AN138: =_xlfn.RANK.EQ(tblAargau[[#This Row],[1981-2011]],tblAargau[1981-2011]) -> 208 | AO138: 8.36 | AP138: =_xlfn.RANK.EQ(tblAargau[[#This Row],[Fläche in km²]],tblAargau[Fläche in km²]) -> 56 | AQ138: 998 | AR138: =_xlfn.RANK.EQ(tblAargau[[#This Row],[Einwohner/km²]],tblAargau[Einwohner/km²]) -> 24 | AS138: 98 | AT138: =_xlfn.RANK.EQ(tblAargau[[#This Row],[Tax]],tblAargau[Tax],1) -> 44
A139: Oberwil-Lieli | B139: Bremgarten | C139: 1266 | D139: 1357 | E139: 1383 | F139: 1405 | G139: 1450 | H139: 1458 | I139: 1487 | J139: 1525 | K139: 1549 | L139: 1597 | M139: 1616 | N139: 1626 | O139: 1675 | P139: 1706 | Q139: 1715 | R139: 1711 | S139: 1660 | T139: 1699 | U139: 1729 | V139: 1747 | W139: 1783 | X139: 1866 | Y139: 1941 | Z139: 1936 | AA139: 1945 | AB139: 1975 | AC139: 2049 | AD139: 2080 | AE139: 2101 | AF139: 2146 | AG139: 2157 | AH139: =_xlfn.RANK.EQ(tblAargau[[#This Row],[2011]],tblAargau[2011]) -> 89 | AI139: 0.2614533965 | AJ139: 0.08106435644 | AK139: 0.2097588334 | AL139: =_xlfn.RANK.EQ(tblAargau[[#This Row],[2001-2011]],tblAargau[2001-2011]) -> 32 | AM139: 0.7037914692 | AN139: =_xlfn.RANK.EQ(tblAargau[[#This Row],[1981-2011]],tblAargau[1981-2011]) -> 47 | AO139: 5.35 | AP139: =_xlfn.RANK.EQ(tblAargau[[#This Row],[Fläche in km²]],tblAargau[Fläche in km²]) -> 113 | AQ139: 403 | AR139: =_xlfn.RANK.EQ(tblAargau[[#This Row],[Einwohner/km²]],tblAargau[Einwohner/km²]) -> 90 | AS139: 70 | AT139: =_xlfn.RANK.EQ(tblAargau[[#This Row],[Tax]],tblAargau[Tax],1) -> 2
A140: Oeschgen | B140: Laufenburg | C140: 640 | D140: 645 | E140: 645 | F140: 641 | G140: 653 | H140: 685 | I140: 693 | J140: 696 | K140: 701 | L140: 720 | M140: 753 | N140: 762 | O140: 796 | P140: 800 | Q140: 779 | R140: 753 | S140: 777 | T140: 780 | U140: 800 | V140: 802 | W140: 813 | X140: 805 | Y140: 820 | Z140: 843 | AA140: 851 | AB140: 857 | AC140: 861 | AD140: 901 | AE140: 891 | AF140: 897 | AG140: 908 | AH140: =_xlfn.RANK.EQ(tblAargau[[#This Row],[2011]],tblAargau[2011]) -> 164 | AI140: 0.125 | AJ140: 0.06507304117 | AK140: 0.1168511685 | AL140: =_xlfn.RANK.EQ(tblAargau[[#This Row],[2001-2011]],tblAargau[2001-2011]) -> 112 | AM140: 0.41875 | AN140: =_xlfn.RANK.EQ(tblAargau[[#This Row],[1981-2011]],tblAargau[1981-2011]) -> 107 | AO140: 4.38 | AP140: =_xlfn.RANK.EQ(tblAargau[[#This Row],[Fläche in km²]],tblAargau[Fläche in km²]) -> 141 | AQ140: 207 | AR140: =_xlfn.RANK.EQ(tblAargau[[#This Row],[Einwohner/km²]],tblAargau[Einwohner/km²]) -> 149 | AS140: 115 | AT140: =_xlfn.RANK.EQ(tblAargau[[#This Row],[Tax]],tblAargau[Tax],1) -> 150
A141: Oftringen | B141: Zofingen | C141: 8964 | D141: 9027 | E141: 9027 | F141: 9103 | G141: 9038 | H141: 9200 | I141: 9299 | J141: 9339 | K141: 9484 | L141: 9526 | M141: 9759 | N141: 9767 | O141: 9885 | P141: 9899 | Q141: 9978 | R141: 9921 | S141: 9927 | T141: 10097 | U141: 10126 | V141: 10220 | W141: 10233 | X141: 10194 | Y141: 10313 | Z141: 10512 | AA141: 10635 | AB141: 10882 | AC141: 11158 | AD141: 11665 | AE141: 11988 | AF141: 12221 | AG141: 12618 | AH141: =_xlfn.RANK.EQ(tblAargau[[#This Row],[2011]],tblAargau[2011]) -> 5 | AI141: 0.06269522535 | AJ141: 0.04723844656 | AK141: 0.2330694811 | AL141: =_xlfn.RANK.EQ(tblAargau[[#This Row],[2001-2011]],tblAargau[2001-2011]) -> 25 | AM141: 0.4076305221 | AN141: =_xlfn.RANK.EQ(tblAargau[[#This Row],[1981-2011]],tblAargau[1981-2011]) -> 111 | AO141: 12.85 | AP141: =_xlfn.RANK.EQ(tblAargau[[#This Row],[Fläche in km²]],tblAargau[Fläche in km²]) -> 13 | AQ141: 982 | AR141: =_xlfn.RANK.EQ(tblAargau[[#This Row],[Einwohner/km²]],tblAargau[Einwohner/km²]) -> 26 | AS141: 108 | AT141: =_xlfn.RANK.EQ(tblAargau[[#This Row],[Tax]],tblAargau[Tax],1) -> 105
A142: Olsberg | B142: Rheinfelden | C142: 293 | D142: 301 | E142: 305 | F142: 316 | G142: 321 | H142: 318 | I142: 312 | J142: 325 | K142: 329 | L142: 335 | M142: 319 | N142: 314 | O142: 322 | P142: 312 | Q142: 322 | R142: 323 | S142: 330 | T142: 338 | U142: 339 | V142: 350 | W142: 344 | X142: 336 | Y142: 341 | Z142: 352 | AA142: 358 | AB142: 366 | AC142: 355 | AD142: 359 | AE142: 360 | AF142: 367 | AG142: 371 | AH142: =_xlfn.RANK.EQ(tblAargau[[#This Row],[2011]],tblAargau[2011]) -> 205 | AI142: 0.1433447099 | AJ142: 0.09717868339 | AK142: 0.07848837209 | AL142: =_xlfn.RANK.EQ(tblAargau[[#This Row],[2001-2011]],tblAargau[2001-2011]) -> 140 | AM142: 0.2662116041 | AN142: =_xlfn.RANK.EQ(tblAargau[[#This Row],[1981-2011]],tblAargau[1981-2011]) -> 165 | AO142: 4.62 | AP142: =_xlfn.RANK.EQ(tblAargau[[#This Row],[Fläche in km²]],tblAargau[Fläche in km²]) -> 132 | AQ142: 80 | AR142: =_xlfn.RANK.EQ(tblAargau[[#This Row],[Einwohner/km²]],tblAargau[Einwohner/km²]) -> 210 | AS142: 100 | AT142: =_xlfn.RANK.EQ(tblAargau[[#This Row],[Tax]],tblAargau[Tax],1) -> 60
A143: Othmarsingen | B143: Lenzburg | C143: 1693 | D143: 1672 | E143: 1650 | F143: 1670 | G143: 1632 | H143: 1618 | I143: 1718 | J143: 1754 | K143: 1784 | L143: 1834 | M143: 1927 | N143: 1947 | O143: 2012 | P143: 2073 | Q143: 2126 | R143: 2116 | S143: 2124 | T143: 2137 | U143: 2161 | V143: 2162 | W143: 2133 | X143: 2125 | Y143: 2145 | Z143: 2161 | AA143: 2170 | AB143: 2191 | AC143: 2220 | AD143: 2291 | AE143: 2359 | AF143: 2354 | AG143: 2426 | AH143: =_xlfn.RANK.EQ(tblAargau[[#This Row],[2011]],tblAargau[2011]) -> 85 | AI143: 0.08328411105 | AJ143: 0.1219512195 | AK143: 0.1373652133 | AL143: =_xlfn.RANK.EQ(tblAargau[[#This Row],[2001-2011]],tblAargau[2001-2011]) -> 89 | AM143: 0.4329592439 | AN143: =_xlfn.RANK.EQ(tblAargau[[#This Row],[1981-2011]],tblAargau[1981-2011]) -> 101 | AO143: 4.73 | AP143: =_xlfn.RANK.EQ(tblAargau[[#This Row],[Fläche in km²]],tblAargau[Fläche in km²]) -> 131 | AQ143: 513 | AR143: =_xlfn.RANK.EQ(tblAargau[[#This Row],[Einwohner/km²]],tblAargau[Einwohner/km²]) -> 69 | AS143: 112 | AT143: =_xlfn.RANK.EQ(tblAargau[[#This Row],[Tax]],tblAargau[Tax],1) -> 130
A144: Reinach (AG) | B144: Kulm | C144: 5772 | D144: 5795 | E144: 5826 | F144: 5912 | G144: 5901 | H144: 5935 | I144: 6105 | J144: 6285 | K144: 6464 | L144: 6626 | M144: 6863 | N144: 7150 | O144: 7165 | P144: 7297 | Q144: 7339 | R144: 7285 | S144: 7294 | T144: 7271 | U144: 7404 | V144: 7311 | W144: 7355 | X144: 7460 | Y144: 7582 | Z144: 7580 | AA144: 7670 | AB144: 7664 | AC144: 7670 | AD144: 7810 | AE144: 7926 | AF144: 7956 | AG144: 8004 | AH144: =_xlfn.RANK.EQ(tblAargau[[#This Row],[2011]],tblAargau[2011]) -> 15 | AI144: 0.147955648 | AJ144: 0.0652775754 | AK144: 0.088239293 | AL144: =_xlfn.RANK.EQ(tblAargau[[#This Row],[2001-2011]],tblAargau[2001-2011]) -> 133 | AM144: 0.3866943867 | AN144: =_xlfn.RANK.EQ(tblAargau[[#This Row],[1981-2011]],tblAargau[1981-2011]) -> 121 | AO144: 9.47 | AP144: =_xlfn.RANK.EQ(tblAargau[[#This Row],[Fläche in km²]],tblAargau[Fläche in km²]) -> 41 | AQ144: 845 | AR144: =_xlfn.RANK.EQ(tblAargau[[#This Row],[Einwohner/km²]],tblAargau[Einwohner/km²]) -> 36 | AS144: 116 | AT144: =_xlfn.RANK.EQ(tblAargau[[#This Row],[Tax]],tblAargau[Tax],1) -> 164
A145: Reitnau | B145: Zofingen | C145: 878 | D145: 891 | E145: 886 | F145: 886 | G145: 906 | H145: 898 | I145: 918 | J145: 918 | K145: 922 | L145: 915 | M145: 957 | N145: 969 | O145: 988 | P145: 1020 | Q145: 1050 | R145: 1097 | S145: 1132 | T145: 1135 | U145: 1124 | V145: 1143 | W145: 1159 | X145: 1164 | Y145: 1149 | Z145: 1143 | AA145: 1157 | AB145: 1162 | AC145: 1166 | AD145: 1177 | AE145: 1195 | AF145: 1218 | AG145: 1222 | AH145: =_xlfn.RANK.EQ(tblAargau[[#This Row],[2011]],tblAargau[2011]) -> 137 | AI145: 0.04214123007 | AJ145: 0.1943573668 | AK145: 0.05435720449 | AL145: =_xlfn.RANK.EQ(tblAargau[[#This Row],[2001-2011]],tblAargau[2001-2011]) -> 157 | AM145: 0.3917995444 | AN145: =_xlfn.RANK.EQ(tblAargau[[#This Row],[1981-2011]],tblAargau[1981-2011]) -> 117 | AO145: 5.81 | AP145: =_xlfn.RANK.EQ(tblAargau[[#This Row],[Fläche in km²]],tblAargau[Fläche in km²]) -> 97 | AQ145: 210 | AR145: =_xlfn.RANK.EQ(tblAargau[[#This Row],[Einwohner/km²]],tblAargau[Einwohner/km²]) -> 146 | AS145: 117 | AT145: =_xlfn.RANK.EQ(tblAargau[[#This Row],[Tax]],tblAargau[Tax],1) -> 168
A146: Rekingen (AG) | B146: Zurzach | C146: 764 | D146: 760 | E146: 727 | F146: 724 | G146: 721 | H146: 679 | I146: 673 | J146: 780 | K146: 882 | L146: 907 | M146: 903 | N146: 948 | O146: 977 | P146: 974 | Q146: 1006 | R146: 998 | S146: 997 | T146: 1008 | U146: 1007 | V146: 1003 | W146: 1049 | X146: 1032 | Y146: 1026 | Z146: 942 | AA146: 946 | AB146: 958 | AC146: 950 | AD146: 976 | AE146: 962 | AF146: 966 | AG146: 992 | AH146: =_xlfn.RANK.EQ(tblAargau[[#This Row],[2011]],tblAargau[2011]) -> 156 | AI146: 0.1871727749 | AJ146: 0.1107419712 | AK146: -0.05433746425 | AL146: =_xlfn.RANK.EQ(tblAargau[[#This Row],[2001-2011]],tblAargau[2001-2011]) -> 214 | AM146: 0.2984293194 | AN146: =_xlfn.RANK.EQ(tblAargau[[#This Row],[1981-2011]],tblAargau[1981-2011]) -> 157 | AO146: 3.1 | AP146: =_xlfn.RANK.EQ(tblAargau[[#This Row],[Fläche in km²]],tblAargau[Fläche in km²]) -> 183 | AQ146: 320 | AR146: =_xlfn.RANK.EQ(tblAargau[[#This Row],[Einwohner/km²]],tblAargau[Einwohner/km²]) -> 114 | AS146: 125 | AT146: =_xlfn.RANK.EQ(tblAargau[[#This Row],[Tax]],tblAargau[Tax],1) -> 215
A147: Remetschwil | B147: Baden | C147: 808 | D147: 823 | E147: 841 | F147: 872 | G147: 935 | H147: 1052 | I147: 1084 | J147: 1113 | K147: 1137 | L147: 1189 | M147: 1154 | N147: 1180 | O147: 1240 | P147: 1311 | Q147: 1491 | R147: 1565 | S147: 1588 | T147: 1663 | U147: 1711 | V147: 1762 | W147: 1773 | X147: 1855 | Y147: 1893 | Z147: 1892 | AA147: 1898 | AB147: 1921 | AC147: 1915 | AD147: 1943 | AE147: 1958 | AF147: 1989 | AG147: 2042 | AH147: =_xlfn.RANK.EQ(tblAargau[[#This Row],[2011]],tblAargau[2011]) -> 94 | AI147: 0.4715346535 | AJ147: 0.5268630849 | AK147: 0.1517202482 | AL147: =_xlfn.RANK.EQ(tblAargau[[#This Row],[2001-2011]],tblAargau[2001-2011]) -> 75 | AM147: 1.527227723 | AN147: =_xlfn.RANK.EQ(tblAargau[[#This Row],[1981-2011]],tblAargau[1981-2011]) -> 8 | AO147: 3.89 | AP147: =_xlfn.RANK.EQ(tblAargau[[#This Row],[Fläche in km²]],tblAargau[Fläche in km²]) -> 156 | AQ147: 525 | AR147: =_xlfn.RANK.EQ(tblAargau[[#This Row],[Einwohner/km²]],tblAargau[Einwohner/km²]) -> 67 | AS147: 89 | AT147: =_xlfn.RANK.EQ(tblAargau[[#This Row],[Tax]],tblAargau[Tax],1) -> 19
A148: Remigen | B148: Brugg | C148: 652 | D148: 685 | E148: 724 | F148: 735 | G148: 745 | H148: 776 | I148: 804 | J148: 869 | K148: 927 | L148: 979 | M148: 1008 | N148: 1015 | O148: 1034 | P148: 1071 | Q148: 1066 | R148: 1090 | S148: 1067 | T148: 1063 | U148: 1072 | V148: 1063 | W148: 1046 | X148: 1044 | Y148: 1026 | Z148: 1024 | AA148: 1021 | AB148: 1005 | AC148: 1014 | AD148: 1017 | AE148: 1030 | AF148: 1043 | AG148: 1051 | AH148: =_xlfn.RANK.EQ(tblAargau[[#This Row],[2011]],tblAargau[2011]) -> 146 | AI148: 0.5015337423 | AJ148: 0.05456349206 | AK148: 0.004780114723 | AL148: =_xlfn.RANK.EQ(tblAargau[[#This Row],[2001-2011]],tblAargau[2001-2011]) -> 195 | AM148: 0.6119631902 | AN148: =_xlfn.RANK.EQ(tblAargau[[#This Row],[1981-2011]],tblAargau[1981-2011]) -> 63 | AO148: 7.87 | AP148: =_xlfn.RANK.EQ(tblAargau[[#This Row],[Fläche in km²]],tblAargau[Fläche in km²]) -> 62 | AQ148: 134 | AR148: =_xlfn.RANK.EQ(tblAargau[[#This Row],[Einwohner/km²]],tblAargau[Einwohner/km²]) -> 184 | AS148: 104 | AT148: =_xlfn.RANK.EQ(tblAargau[[#This Row],[Tax]],tblAargau[Tax],1) -> 87
A149: Rheinfelden | B149: Rheinfelden | C149: 9529 | D149: 9491 | E149: 9448 | F149: 9448 | G149: 9514 | H149: 9529 | I149: 9540 | J149: 9725 | K149: 9735 | L149: 9751 | M149: 9756 | N149: 9896 | O149: 10044 | P149: 10140 | Q149: 10205 | R149: 10281 | S149: 10255 | T149: 10335 | U149: 10496 | V149: 10566 | W149: 10727 | X149: 10720 | Y149: 10730 | Z149: 10774 | AA149: 10859 | AB149: 10870 | AC149: 10881 | AD149: 11206 | AE149: 11596 | AF149: 11872 | AG149: 12074 | AH149: =_xlfn.RANK.EQ(tblAargau[[#This Row],[2011]],tblAargau[2011]) -> 6 | AI149: 0.02329730297 | AJ149: 0.08302583026 | AK149: 0.1255709891 | AL149: =_xlfn.RANK.EQ(tblAargau[[#This Row],[2001-2011]],tblAargau[2001-2011]) -> 100 | AM149: 0.2670794417 | AN149: =_xlfn.RANK.EQ(tblAargau[[#This Row],[1981-2011]],tblAargau[1981-2011]) -> 164 | AO149: 16.03 | AP149: =_xlfn.RANK.EQ(tblAargau[[#This Row],[Fläche in km²]],tblAargau[Fläche in km²]) -> 7 | AQ149: 753 | AR149: =_xlfn.RANK.EQ(tblAargau[[#This Row],[Einwohner/km²]],tblAargau[Einwohner/km²]) -> 44 | AS149: 100 | AT149: =_xlfn.RANK.EQ(tblAargau[[#This Row],[Tax]],tblAargau[Tax],1) -> 60
A150: Rietheim | B150: Zurzach | C150: 433 | D150: 436 | E150: 435 | F150: 430 | G150: 440 | H150: 439 | I150: 423 | J150: 445 | K150: 432 | L150: 444 | M150: 445 | N150: 477 | O150: 544 | P150: 577 | Q150: 574 | R150: 593 | S150: 594 | T150: 616 | U150: 609 | V150: 608 | W150: 627 | X150: 675 | Y150: 686 | Z150: 682 | AA150: 677 | AB150: 666 | AC150: 697 | AD150: 713 | AE150: 704 | AF150: 715 | AG150: 733 | AH150: =_xlfn.RANK.EQ(tblAargau[[#This Row],[2011]],tblAargau[2011]) -> 182 | AI150: 0.02540415704 | AJ150: 0.3662921348 | AK150: 0.1690590112 | AL150: =_xlfn.RANK.EQ(tblAargau[[#This Row],[2001-2011]],tblAargau[2001-2011]) -> 63 | AM150: 0.6928406467 | AN150: =_xlfn.RANK.EQ(tblAargau[[#This Row],[1981-2011]],tblAargau[1981-2011]) -> 49 | AO150: 3.93 | AP150: =_xlfn.RANK.EQ(tblAargau[[#This Row],[Fläche in km²]],tblAargau[Fläche in km²]) -> 154 | AQ150: 187 | AR150: =_xlfn.RANK.EQ(tblAargau[[#This Row],[Einwohner/km²]],tblAargau[Einwohner/km²]) -> 160 | AS150: 121 | AT150: =_xlfn.RANK.EQ(tblAargau[[#This Row],[Tax]],tblAargau[Tax],1) -> 200
A151: Riniken | B151: Brugg | C151: 1268 | D151: 1299 | E151: 1358 | F151: 1339 | G151: 1333 | H151: 1341 | I151: 1356 | J151: 1382 | K151: 1412 | L151: 1403 | M151: 1433 | N151: 1426 | O151: 1434 | P151: 1433 | Q151: 1372 | R151: 1366 | S151: 1376 | T151: 1387 | U151: 1368 | V151: 1369 | W151: 1375 | X151: 1348 | Y151: 1389 | Z151: 1381 | AA151: 1357 | AB151: 1349 | AC151: 1384 | AD151: 1408 | AE151: 1423 | AF151: 1440 | AG151: 1464 | AH151: =_xlfn.RANK.EQ(tblAargau[[#This Row],[2011]],tblAargau[2011]) -> 118 | AI151: 0.106466877 | AJ151: -0.0446615492 | AK151: 0.06472727273 | AL151: =_xlfn.RANK.EQ(tblAargau[[#This Row],[2001-2011]],tblAargau[2001-2011]) -> 150 | AM151: 0.1545741325 | AN151: =_xlfn.RANK.EQ(tblAargau[[#This Row],[1981-2011]],tblAargau[1981-2011]) -> 196 | AO151: 4.75 | AP151: =_xlfn.RANK.EQ(tblAargau[[#This Row],[Fläche in km²]],tblAargau[Fläche in km²]) -> 130 | AQ151: 308 | AR151: =_xlfn.RANK.EQ(tblAargau[[#This Row],[Einwohner/km²]],tblAargau[Einwohner/km²]) -> 115 | AS151: 105 | AT151: =_xlfn.RANK.EQ(tblAargau[[#This Row],[Tax]],tblAargau[Tax],1) -> 92
A152: Rothrist | B152: Zofingen | C152: 6090 | D152: 6127 | E152: 6203 | F152: 6256 | G152: 6333 | H152: 6411 | I152: 6515 | J152: 6548 | K152: 6579 | L152: 6627 | M152: 6756 | N152: 6824 | O152: 6875 | P152: 6991 | Q152: 7017 | R152: 6962 | S152: 6909 | T152: 6868 | U152: 6851 | V152: 6800 | W152: 6930 | X152: 6990 | Y152: 7018 | Z152: 7129 | AA152: 7189 | AB152: 7269 | AC152: 7391 | AD152: 7524 | AE152: 7630 | AF152: 7762 | AG152: 7979 | AH152: =_xlfn.RANK.EQ(tblAargau[[#This Row],[2011]],tblAargau[2011]) -> 16 | AI152: 0.0881773399 | AJ152: 0.006512729426 | AK152: 0.1513708514 | AL152: =_xlfn.RANK.EQ(tblAargau[[#This Row],[2001-2011]],tblAargau[2001-2011]) -> 76 | AM152: 0.310180624 | AN152: =_xlfn.RANK.EQ(tblAargau[[#This Row],[1981-2011]],tblAargau[1981-2011]) -> 152 | AO152: 11.84 | AP152: =_xlfn.RANK.EQ(tblAargau[[#This Row],[Fläche in km²]],tblAargau[Fläche in km²]) -> 21 | AQ152: 674 | AR152: =_xlfn.RANK.EQ(tblAargau[[#This Row],[Einwohner/km²]],tblAargau[Einwohner/km²]) -> 48 | AS152: 105 | AT152: =_xlfn.RANK.EQ(tblAargau[[#This Row],[Tax]],tblAargau[Tax],1) -> 92
A153: Rottenschwil | B153: Muri | C153: 300 | D153: 320 | E153: 329 | F153: 368 | G153: 439 | H153: 476 | I153: 497 | J153: 519 | K153: 580 | L153: 618 | M153: 601 | N153: 609 | O153: 645 | P153: 661 | Q153: 729 | R153: 763 | S153: 796 | T153: 811 | U153: 799 | V153: 804 | W153: 799 | X153: 806 | Y153: 808 | Z153: 824 | AA153: 812 | AB153: 799 | AC153: 820 | AD153: 842 | AE153: 839 | AF153: 827 | AG153: 803 | AH153: =_xlfn.RANK.EQ(tblAargau[[#This Row],[2011]],tblAargau[2011]) -> 174 | AI153: 1.06 | AJ153: 0.3377703827 | AK153: 0.005006257822 | AL153: =_xlfn.RANK.EQ(tblAargau[[#This Row],[2001-2011]],tblAargau[2001-2011]) -> 194 | AM153: 1.676666667 | AN153: =_xlfn.RANK.EQ(tblAargau[[#This Row],[1981-2011]],tblAargau[1981-2011]) -> 5 | AO153: 4.49 | AP153: =_xlfn.RANK.EQ(tblAargau[[#This Row],[Fläche in km²]],tblAargau[Fläche in km²]) -> 136 | AQ153: 179 | AR153: =_xlfn.RANK.EQ(tblAargau[[#This Row],[Einwohner/km²]],tblAargau[Einwohner/km²]) -> 165 | AS153: 113 | AT153: =_xlfn.RANK.EQ(tblAargau[[#This Row],[Tax]],tblAargau[Tax],1) -> 139
A154: Rudolfstetten-Friedlisberg | B154: Bremgarten | C154: 3582 | D154: 3617 | E154: 3643 | F154: 3606 | G154: 3623 | H154: 3644 | I154: 3694 | J154: 3712 | K154: 3706 | L154: 3708 | M154: 3808 | N154: 3813 | O154: 3850 | P154: 3831 | Q154: 3832 | R154: 3829 | S154: 3783 | T154: 3839 | U154: 3831 | V154: 3744 | W154: 3734 | X154: 3707 | Y154: 3769 | Z154: 3812 | AA154: 3820 | AB154: 3883 | AC154: 3964 | AD154: 4067 | AE154: 4122 | AF154: 4212 | AG154: 4282 | AH154: =_xlfn.RANK.EQ(tblAargau[[#This Row],[2011]],tblAargau[2011]) -> 38 | AI154: 0.0351758794 | AJ154: -0.01680672269 | AK154: 0.1467595072 | AL154: =_xlfn.RANK.EQ(tblAargau[[#This Row],[2001-2011]],tblAargau[2001-2011]) -> 80 | AM154: 0.1954215522 | AN154: =_xlfn.RANK.EQ(tblAargau[[#This Row],[1981-2011]],tblAargau[1981-2011]) -> 188 | AO154: 4.91 | AP154: =_xlfn.RANK.EQ(tblAargau[[#This Row],[Fläche in km²]],tblAargau[Fläche in km²]) -> 123 | AQ154: 872 | AR154: =_xlfn.RANK.EQ(tblAargau[[#This Row],[Einwohner/km²]],tblAargau[Einwohner/km²]) -> 33 | AS154: 91 | AT154: =_xlfn.RANK.EQ(tblAargau[[#This Row],[Tax]],tblAargau[Tax],1) -> 25
A155: Rüfenach | B155: Brugg | C155: 523 | D155: 534 | E155: 556 | F155: 562 | G155: 560 | H155: 560 | I155: 574 | J155: 589 | K155: 618 | L155: 618 | M155: 635 | N155: 631 | O155: 651 | P155: 650 | Q155: 650 | R155: 661 | S155: 678 | T155: 687 | U155: 684 | V155: 724 | W155: 716 | X155: 734 | Y155: 759 | Z155: 789 | AA155: 801 | AB155: 808 | AC155: 838 | AD155: 859 | AE155: 869 | AF155: 858 | AG155: 884 | AH155: =_xlfn.RANK.EQ(tblAargau[[#This Row],[2011]],tblAargau[2011]) -> 166 | AI155: 0.1816443595 | AJ155: 0.1401574803 | AK155: 0.2346368715 | AL155: =_xlfn.RANK.EQ(tblAargau[[#This Row],[2001-2011]],tblAargau[2001-2011]) -> 24 | AM155: 0.690248566 | AN155: =_xlfn.RANK.EQ(tblAargau[[#This Row],[1981-2011]],tblAargau[1981-2011]) -> 51 | AO155: 4.17 | AP155: =_xlfn.RANK.EQ(tblAargau[[#This Row],[Fläche in km²]],tblAargau[Fläche in km²]) -> 147 | AQ155: 212 | AR155: =_xlfn.RANK.EQ(tblAargau[[#This Row],[Einwohner/km²]],tblAargau[Einwohner/km²]) -> 143 | AS155: 108 | AT155: =_xlfn.RANK.EQ(tblAargau[[#This Row],[Tax]],tblAargau[Tax],1) -> 105
A156: Rümikon | B156: Zurzach | C156: 166 | D156: 160 | E156: 164 | F156: 159 | G156: 154 | H156: 156 | I156: 174 | J156: 171 | K156: 169 | L156: 196 | M156: 196 | N156: 220 | O156: 222 | P156: 218 | Q156: 226 | R156: 225 | S156: 226 | T156: 226 | U156: 223 | V156: 223 | W156: 226 | X156: 221 | Y156: 224 | Z156: 216 | AA156: 210 | AB156: 199 | AC156: 204 | AD156: 220 | AE156: 211 | AF156: 238 | AG156: 239 | AH156: =_xlfn.RANK.EQ(tblAargau[[#This Row],[2011]],tblAargau[2011]) -> 214 | AI156: 0.1807228916 | AJ156: 0.137755102 | AK156: 0.05752212389 | AL156: =_xlfn.RANK.EQ(tblAargau[[#This Row],[2001-2011]],tblAargau[2001-2011]) -> 155 | AM156: 0.4397590361 | AN156: =_xlfn.RANK.EQ(tblAargau[[#This Row],[1981-2011]],tblAargau[1981-2011]) -> 100 | AO156: 2.9 | AP156: =_xlfn.RANK.EQ(tblAargau[[#This Row],[Fläche in km²]],tblAargau[Fläche in km²]) -> 187 | AQ156: 82 | AR156: =_xlfn.RANK.EQ(tblAargau[[#This Row],[Einwohner/km²]],tblAargau[Einwohner/km²]) -> 209 | AS156: 115 | AT156: =_xlfn.RANK.EQ(tblAargau[[#This Row],[Tax]],tblAargau[Tax],1) -> 150
A157: Rupperswil | B157: Lenzburg | C157: 2755 | D157: 2770 | E157: 2787 | F157: 2779 | G157: 2855 | H157: 2933 | I157: 3050 | J157: 3148 | K157: 3187 | L157: 3225 | M157: 3308 | N157: 3306 | O157: 3397 | P157: 3434 | Q157: 3470 | R157: 3597 | S157: 3586 | T157: 3711 | U157: 3715 | V157: 3678 | W157: 3739 | X157: 3702 | Y157: 3822 | Z157: 3891 | AA157: 3971 | AB157: 4060 | AC157: 4124 | AD157: 4273 | AE157: 4292 | AF157: 4382 | AG157: 4599 | AH157: =_xlfn.RANK.EQ(tblAargau[[#This Row],[2011]],tblAargau[2011]) -> 35 | AI157: 0.1705989111 | AJ157: 0.1118500605 | AK157: 0.2300080235 | AL157: =_xlfn.RANK.EQ(tblAargau[[#This Row],[2001-2011]],tblAargau[2001-2011]) -> 26 | AM157: 0.6693284936 | AN157: =_xlfn.RANK.EQ(tblAargau[[#This Row],[1981-2011]],tblAargau[1981-2011]) -> 56 | AO157: 6.21 | AP157: =_xlfn.RANK.EQ(tblAargau[[#This Row],[Fläche in km²]],tblAargau[Fläche in km²]) -> 90 | AQ157: 741 | AR157: =_xlfn.RANK.EQ(tblAargau[[#This Row],[Einwohner/km²]],tblAargau[Einwohner/km²]) -> 46 | AS157: 95 | AT157: =_xlfn.RANK.EQ(tblAargau[[#This Row],[Tax]],tblAargau[Tax],1) -> 30
A158: Safenwil | B158: Zofingen | C158: 2574 | D158: 2572 | E158: 2583 | F158: 2585 | G158: 2597 | H158: 2576 | I158: 2659 | J158: 2767 | K158: 2874 | L158: 2911 | M158: 2978 | N158: 3002 | O158: 3039 | P158: 3043 | Q158: 3136 | R158: 3142 | S158: 3136 | T158: 3067 | U158: 3053 | V158: 3110 | W158: 3070 | X158: 3070 | Y158: 3088 | Z158: 3112 | AA158: 3101 | AB158: 3099 | AC158: 3119 | AD158: 3247 | AE158: 3419 | AF158: 3487 | AG158: 3581 | AH158: =_xlfn.RANK.EQ(tblAargau[[#This Row],[2011]],tblAargau[2011]) -> 57 | AI158: 0.1309246309 | AJ158: 0.04432505037 | AK158: 0.1664495114 | AL158: =_xlfn.RANK.EQ(tblAargau[[#This Row],[2001-2011]],tblAargau[2001-2011]) -> 66 | AM158: 0.3912198912 | AN158: =_xlfn.RANK.EQ(tblAargau[[#This Row],[1981-2011]],tblAargau[1981-2011]) -> 118 | AO158: 5.99 | AP158: =_xlfn.RANK.EQ(tblAargau[[#This Row],[Fläche in km²]],tblAargau[Fläche in km²]) -> 94 | AQ158: 598 | AR158: =_xlfn.RANK.EQ(tblAargau[[#This Row],[Einwohner/km²]],tblAargau[Einwohner/km²]) -> 55 | AS158: 110 | AT158: =_xlfn.RANK.EQ(tblAargau[[#This Row],[Tax]],tblAargau[Tax],1) -> 117
A159: Sarmenstorf | B159: Bremgarten | C159: 1490 | D159: 1474 | E159: 1504 | F159: 1481 | G159: 1491 | H159: 1480 | I159: 1491 | J159: 1534 | K159: 1572 | L159: 1657 | M159: 1773 | N159: 1816 | O159: 1789 | P159: 1860 | Q159: 1924 | R159: 1947 | S159: 1998 | T159: 2016 | U159: 2070 | V159: 2115 | W159: 2151 | X159: 2174 | Y159: 2217 | Z159: 2225 | AA159: 2279 | AB159: 2269 | AC159: 2280 | AD159: 2336 | AE159: 2368 | AF159: 2467 | AG159: 2515 | AH159: =_xlfn.RANK.EQ(tblAargau[[#This Row],[2011]],tblAargau[2011]) -> 82 | AI159: 0.1120805369 | AJ159: 0.192893401 | AK159: 0.1692236169 | AL159: =_xlfn.RANK.EQ(tblAargau[[#This Row],[2001-2011]],tblAargau[2001-2011]) -> 62 | AM159: 0.6879194631 | AN159: =_xlfn.RANK.EQ(tblAargau[[#This Row],[1981-2011]],tblAargau[1981-2011]) -> 52 | AO159: 8.31 | AP159: =_xlfn.RANK.EQ(tblAargau[[#This Row],[Fläche in km²]],tblAargau[Fläche in km²]) -> 57 | AQ159: 303 | AR159: =_xlfn.RANK.EQ(tblAargau[[#This Row],[Einwohner/km²]],tblAargau[Einwohner/km²]) -> 117 | AS159: 105 | AT159: =_xlfn.RANK.EQ(tblAargau[[#This Row],[Tax]],tblAargau[Tax],1) -> 92
A160: Schafisheim | B160: Lenzburg | C160: 1679 | D160: 1675 | E160: 1722 | F160: 1741 | G160: 1786 | H160: 1827 | I160: 1816 | J160: 1886 | K160: 1917 | L160: 2002 | M160: 2090 | N160: 2161 | O160: 2207 | P160: 2251 | Q160: 2317 | R160: 2457 | S160: 2477 | T160: 2559 | U160: 2588 | V160: 2638 | W160: 2626 | X160: 2643 | Y160: 2690 | Z160: 2679 | AA160: 2678 | AB160: 2665 | AC160: 2679 | AD160: 2670 | AE160: 2724 | AF160: 2781 | AG160: 2860 | AH160: =_xlfn.RANK.EQ(tblAargau[[#This Row],[2011]],tblAargau[2011]) -> 73 | AI160: 0.1923764145 | AJ160: 0.2622009569 | AK160: 0.08910891089 | AL160: =_xlfn.RANK.EQ(tblAargau[[#This Row],[2001-2011]],tblAargau[2001-2011]) -> 132 | AM160: 0.7033948779 | AN160: =_xlfn.RANK.EQ(tblAargau[[#This Row],[1981-2011]],tblAargau[1981-2011]) -> 48 | AO160: 6.33 | AP160: =_xlfn.RANK.EQ(tblAargau[[#This Row],[Fläche in km²]],tblAargau[Fläche in km²]) -> 86 | AQ160: 452 | AR160: =_xlfn.RANK.EQ(tblAargau[[#This Row],[Einwohner/km²]],tblAargau[Einwohner/km²]) -> 81 | AS160: 98 | AT160: =_xlfn.RANK.EQ(tblAargau[[#This Row],[Tax]],tblAargau[Tax],1) -> 44
A161: Scherz | B161: Brugg | C161: 441 | D161: 448 | E161: 462 | F161: 482 | G161: 500 | H161: 489 | I161: 489 | J161: 480 | K161: 505 | L161: 502 | M161: 520 | N161: 522 | O161: 534 | P161: 523 | Q161: 568 | R161: 573 | S161: 593 | T161: 595 | U161: 588 | V161: 561 | W161: 565 | X161: 577 | Y161: 567 | Z161: 566 | AA161: 564 | AB161: 562 | AC161: 585 | AD161: 603 | AE161: 614 | AF161: 638 | AG161: 643 | AH161: =_xlfn.RANK.EQ(tblAargau[[#This Row],[2011]],tblAargau[2011]) -> 189 | AI161: 0.1383219955 | AJ161: 0.07884615385 | AK161: 0.1380530973 | AL161: =_xlfn.RANK.EQ(tblAargau[[#This Row],[2001-2011]],tblAargau[2001-2011]) -> 87 | AM161: 0.4580498866 | AN161: =_xlfn.RANK.EQ(tblAargau[[#This Row],[1981-2011]],tblAargau[1981-2011]) -> 96 | AO161: 3.3 | AP161: =_xlfn.RANK.EQ(tblAargau[[#This Row],[Fläche in km²]],tblAargau[Fläche in km²]) -> 174 | AQ161: 195 | AR161: =_xlfn.RANK.EQ(tblAargau[[#This Row],[Einwohner/km²]],tblAargau[Einwohner/km²]) -> 156 | AS161: 122 | AT161: =_xlfn.RANK.EQ(tblAargau[[#This Row],[Tax]],tblAargau[Tax],1) -> 206
A162: Schinznach-Bad | B162: Brugg | C162: 972 | D162: 964 | E162: 988 | F162: 980 | G162: 974 | H162: 945 | I162: 1019 | J162: 1105 | K162: 1140 | L162: 1181 | M162: 1183 | N162: 1198 | O162: 1191 | P162: 1178 | Q162: 1211 | R162: 1230 | S162: 1225 | T162: 1234 | U162: 1249 | V162: 1233 | W162: 1229 | X162: 1249 | Y162: 1253 | Z162: 1265 | AA162: 1259 | AB162: 1239 | AC162: 1219 | AD162: 1237 | AE162: 1227 | AF162: 1214 | AG162: 1218 | AH162: =_xlfn.RANK.EQ(tblAargau[[#This Row],[2011]],tblAargau[2011]) -> 138 | AI162: 0.2150205761 | AJ162: 0.04226542688 | AK162: -0.008950366151 | AL162: =_xlfn.RANK.EQ(tblAargau[[#This Row],[2001-2011]],tblAargau[2001-2011]) -> 200 | AM162: 0.2530864198 | AN162: =_xlfn.RANK.EQ(tblAargau[[#This Row],[1981-2011]],tblAargau[1981-2011]) -> 171 | AO162: 1.9 | AP162: =_xlfn.RANK.EQ(tblAargau[[#This Row],[Fläche in km²]],tblAargau[Fläche in km²]) -> 211 | AQ162: 641 | AR162: =_xlfn.RANK.EQ(tblAargau[[#This Row],[Einwohner/km²]],tblAargau[Einwohner/km²]) -> 49 | AS162: 110 | AT162: =_xlfn.RANK.EQ(tblAargau[[#This Row],[Tax]],tblAargau[Tax],1) -> 117
A163: Schinznach-Dorf | B163: Brugg | C163: 1258 | D163: 1281 | E163: 1315 | F163: 1315 | G163: 1325 | H163: 1310 | I163: 1327 | J163: 1360 | K163: 1368 | L163: 1397 | M163: 1446 | N163: 1445 | O163: 1505 | P163: 1558 | Q163: 1555 | R163: 1580 | S163: 1649 | T163: 1652 | U163: 1606 | V163: 1624 | W163: 1653 | X163: 1692 | Y163: 1668 | Z163: 1690 | AA163: 1696 | AB163: 1641 | AC163: 1643 | AD163: 1636 | AE163: 1677 | AF163: 1690 | AG163: 1726 | AH163: =_xlfn.RANK.EQ(tblAargau[[#This Row],[2011]],tblAargau[2011]) -> 108 | AI163: 0.1104928458 | AJ163: 0.1230982019 | AK163: 0.04416212946 | AL163: =_xlfn.RANK.EQ(tblAargau[[#This Row],[2001-2011]],tblAargau[2001-2011]) -> 166 | AM163: 0.3720190779 | AN163: =_xlfn.RANK.EQ(tblAargau[[#This Row],[1981-2011]],tblAargau[1981-2011]) -> 125 | AO163: 8.85 | AP163: =_xlfn.RANK.EQ(tblAargau[[#This Row],[Fläche in km²]],tblAargau[Fläche in km²]) -> 48 | AQ163: 195 | AR163: =_xlfn.RANK.EQ(tblAargau[[#This Row],[Einwohner/km²]],tblAargau[Einwohner/km²]) -> 156 | AS163: 104 | AT163: =_xlfn.RANK.EQ(tblAargau[[#This Row],[Tax]],tblAargau[Tax],1) -> 87
A164: Schlossrued | B164: Kulm | C164: 839 | D164: 836 | E164: 839 | F164: 859 | G164: 840 | H164: 875 | I164: 867 | J164: 855 | K164: 876 | L164: 864 | M164: 872 | N164: 909 | O164: 914 | P164: 944 | Q164: 957 | R164: 936 | S164: 929 | T164: 926 | U164: 938 | V164: 906 | W164: 893 | X164: 913 | Y164: 881 | Z164: 876 | AA164: 891 | AB164: 872 | AC164: 863 | AD164: 863 | AE164: 852 | AF164: 829 | AG164: 837 | AH164: =_xlfn.RANK.EQ(tblAargau[[#This Row],[2011]],tblAargau[2011]) -> 171 | AI164: 0.02979737783 | AJ164: 0.03899082569 | AK164: -0.06270996641 | AL164: =_xlfn.RANK.EQ(tblAargau[[#This Row],[2001-2011]],tblAargau[2001-2011]) -> 215 | AM164: -0.002383790226 | AN164: =_xlfn.RANK.EQ(tblAargau[[#This Row],[1981-2011]],tblAargau[1981-2011]) -> 217 | AO164: 7.22 | AP164: =_xlfn.RANK.EQ(tblAargau[[#This Row],[Fläche in km²]],tblAargau[Fläche in km²]) -> 68 | AQ164: 116 | AR164: =_xlfn.RANK.EQ(tblAargau[[#This Row],[Einwohner/km²]],tblAargau[Einwohner/km²]) -> 189 | AS164: 117 | AT164: =_xlfn.RANK.EQ(tblAargau[[#This Row],[Tax]],tblAargau[Tax],1) -> 168
A165: Schmiedrued | B165: Kulm | C165: 889 | D165: 895 | E165: 917 | F165: 926 | G165: 896 | H165: 899 | I165: 921 | J165: 924 | K165: 951 | L165: 999 | M165: 1055 | N165: 1102 | O165: 1117 | P165: 1167 | Q165: 1156 | R165: 1172 | S165: 1181 | T165: 1197 | U165: 1208 | V165: 1223 | W165: 1217 | X165: 1213 | Y165: 1234 | Z165: 1209 | AA165: 1199 | AB165: 1198 | AC165: 1204 | AD165: 1202 | AE165: 1173 | AF165: 1181 | AG165: 1168 | AH165: =_xlfn.RANK.EQ(tblAargau[[#This Row],[2011]],tblAargau[2011]) -> 141 | AI165: 0.1237345332 | AJ165: 0.1592417062 | AK165: -0.04026294166 | AL165: =_xlfn.RANK.EQ(tblAargau[[#This Row],[2001-2011]],tblAargau[2001-2011]) -> 210 | AM165: 0.3138357705 | AN165: =_xlfn.RANK.EQ(tblAargau[[#This Row],[1981-2011]],tblAargau[1981-2011]) -> 150 | AO165: 8.64 | AP165: =_xlfn.RANK.EQ(tblAargau[[#This Row],[Fläche in km²]],tblAargau[Fläche in km²]) -> 50 | AQ165: 135 | AR165: =_xlfn.RANK.EQ(tblAargau[[#This Row],[Einwohner/km²]],tblAargau[Einwohner/km²]) -> 183 | AS165: 110 | AT165: =_xlfn.RANK.EQ(tblAargau[[#This Row],[Tax]],tblAargau[Tax],1) -> 117
A166: Schneisingen | B166: Zurzach | C166: 1098 | D166: 1118 | E166: 1139 | F166: 1099 | G166: 1098 | H166: 1107 | I166: 1104 | J166: 1097 | K166: 1106 | L166: 1116 | M166: 1171 | N166: 1196 | O166: 1179 | P166: 1179 | Q166: 1165 | R166: 1202 | S166: 1209 | T166: 1193 | U166: 1234 | V166: 1243 | W166: 1232 | X166: 1231 | Y166: 1226 | Z166: 1208 | AA166: 1220 | AB166: 1200 | AC166: 1263 | AD166: 1262 | AE166: 1298 | AF166: 1323 | AG166: 1362 | AH166: =_xlfn.RANK.EQ(tblAargau[[#This Row],[2011]],tblAargau[2011]) -> 125 | AI166: 0.01639344262 | AJ166: 0.06148590948 | AK166: 0.1055194805 | AL166: =_xlfn.RANK.EQ(tblAargau[[#This Row],[2001-2011]],tblAargau[2001-2011]) -> 121 | AM166: 0.2404371585 | AN166: =_xlfn.RANK.EQ(tblAargau[[#This Row],[1981-2011]],tblAargau[1981-2011]) -> 175 | AO166: 8.25 | AP166: =_xlfn.RANK.EQ(tblAargau[[#This Row],[Fläche in km²]],tblAargau[Fläche in km²]) -> 59 | AQ166: 165 | AR166: =_xlfn.RANK.EQ(tblAargau[[#This Row],[Einwohner/km²]],tblAargau[Einwohner/km²]) -> 172 | AS166: 112 | AT166: =_xlfn.RANK.EQ(tblAargau[[#This Row],[Tax]],tblAargau[Tax],1) -> 130
A167: Schöftland | B167: Kulm | C167: 2734 | D167: 2737 | E167: 2685 | F167: 2676 | G167: 2646 | H167: 2616 | I167: 2572 | J167: 2546 | K167: 2549 | L167: 2605 | M167: 2726 | N167: 2718 | O167: 2798 | P167: 2867 | Q167: 2976 | R167: 2990 | S167: 3160 | T167: 3180 | U167: 3215 | V167: 3220 | W167: 3291 | X167: 3276 | Y167: 3262 | Z167: 3283 | AA167: 3322 | AB167: 3423 | AC167: 3520 | AD167: 3607 | AE167: 3701 | AF167: 3708 | AG167: 3801 | AH167: =_xlfn.RANK.EQ(tblAargau[[#This Row],[2011]],tblAargau[2011]) -> 50 | AI167: -0.04718361375 | AJ167: 0.1812179017 | AK167: 0.1549680948 | AL167: =_xlfn.RANK.EQ(tblAargau[[#This Row],[2001-2011]],tblAargau[2001-2011]) -> 70 | AM167: 0.3902706657 | AN167: =_xlfn.RANK.EQ(tblAargau[[#This Row],[1981-2011]],tblAargau[1981-2011]) -> 119 | AO167: 6.28 | AP167: =_xlfn.RANK.EQ(tblAargau[[#This Row],[Fläche in km²]],tblAargau[Fläche in km²]) -> 88 | AQ167: 605 | AR167: =_xlfn.RANK.EQ(tblAargau[[#This Row],[Einwohner/km²]],tblAargau[Einwohner/km²]) -> 54 | AS167: 102 | AT167: =_xlfn.RANK.EQ(tblAargau[[#This Row],[Tax]],tblAargau[Tax],1) -> 75
A168: Schupfart | B168: Rheinfelden | C168: 491 | D168: 494 | E168: 489 | F168: 488 | G168: 494 | H168: 503 | I168: 510 | J168: 519 | K168: 502 | L168: 525 | M168: 567 | N168: 579 | O168: 608 | P168: 582 | Q168: 629 | R168: 648 | S168: 658 | T168: 677 | U168: 687 | V168: 684 | W168: 668 | X168: 679 | Y168: 720 | Z168: 722 | AA168: 749 | AB168: 744 | AC168: 748 | AD168: 759 | AE168: 764 | AF168: 767 | AG168: 771 | AH168: =_xlfn.RANK.EQ(tblAargau[[#This Row],[2011]],tblAargau[2011]) -> 177 | AI168: 0.06924643585 | AJ168: 0.2063492063 | AK168: 0.1541916168 | AL168: =_xlfn.RANK.EQ(tblAargau[[#This Row],[2001-2011]],tblAargau[2001-2011]) -> 73 | AM168: 0.5702647658 | AN168: =_xlfn.RANK.EQ(tblAargau[[#This Row],[1981-2011]],tblAargau[1981-2011]) -> 71 | AO168: 7.04 | AP168: =_xlfn.RANK.EQ(tblAargau[[#This Row],[Fläche in km²]],tblAargau[Fläche in km²]) -> 75 | AQ168: 110 | AR168: =_xlfn.RANK.EQ(tblAargau[[#This Row],[Einwohner/km²]],tblAargau[Einwohner/km²]) -> 194 | AS168: 115 | AT168: =_xlfn.RANK.EQ(tblAargau[[#This Row],[Tax]],tblAargau[Tax],1) -> 150
A169: Schwaderloch | B169: Laufenburg | C169: 449 | D169: 445 | E169: 441 | F169: 439 | G169: 469 | H169: 454 | I169: 465 | J169: 466 | K169: 472 | L169: 497 | M169: 547 | N169: 551 | O169: 599 | P169: 625 | Q169: 648 | R169: 663 | S169: 658 | T169: 649 | U169: 654 | V169: 668 | W169: 669 | X169: 650 | Y169: 656 | Z169: 679 | AA169: 682 | AB169: 688 | AC169: 681 | AD169: 666 | AE169: 655 | AF169: 673 | AG169: 676 | AH169: =_xlfn.RANK.EQ(tblAargau[[#This Row],[2011]],tblAargau[2011]) -> 186 | AI169: 0.1069042316 | AJ169: 0.2212065814 | AK169: 0.01046337818 | AL169: =_xlfn.RANK.EQ(tblAargau[[#This Row],[2001-2011]],tblAargau[2001-2011]) -> 190 | AM169: 0.5055679287 | AN169: =_xlfn.RANK.EQ(tblAargau[[#This Row],[1981-2011]],tblAargau[1981-2011]) -> 85 | AO169: 2.78 | AP169: =_xlfn.RANK.EQ(tblAargau[[#This Row],[Fläche in km²]],tblAargau[Fläche in km²]) -> 193 | AQ169: 243 | AR169: =_xlfn.RANK.EQ(tblAargau[[#This Row],[Einwohner/km²]],tblAargau[Einwohner/km²]) -> 130 | AS169: 126 | AT169: =_xlfn.RANK.EQ(tblAargau[[#This Row],[Tax]],tblAargau[Tax],1) -> 219
A170: Seengen | B170: Lenzburg | C170: 1624 | D170: 1655 | E170: 1672 | F170: 1705 | G170: 1743 | H170: 1789 | I170: 1866 | J170: 1939 | K170: 1989 | L170: 2026 | M170: 2105 | N170: 2122 | O170: 2172 | P170: 2209 | Q170: 2290 | R170: 2352 | S170: 2431 | T170: 2476 | U170: 2534 | V170: 2627 | W170: 2659 | X170: 2736 | Y170: 2859 | Z170: 2927 | AA170: 2998 | AB170: 3046 | AC170: 3194 | AD170: 3268 | AE170: 3362 | AF170: 3396 | AG170: 3556 | AH170: =_xlfn.RANK.EQ(tblAargau[[#This Row],[2011]],tblAargau[2011]) -> 59 | AI170: 0.2475369458 | AJ170: 0.2479809976 | AK170: 0.3373448665 | AL170: =_xlfn.RANK.EQ(tblAargau[[#This Row],[2001-2011]],tblAargau[2001-2011]) -> 12 | AM170: 1.189655172 | AN170: =_xlfn.RANK.EQ(tblAargau[[#This Row],[1981-2011]],tblAargau[1981-2011]) -> 17 | AO170: 9.69 | AP170: =_xlfn.RANK.EQ(tblAargau[[#This Row],[Fläche in km²]],tblAargau[Fläche in km²]) -> 38 | AQ170: 367 | AR170: =_xlfn.RANK.EQ(tblAargau[[#This Row],[Einwohner/km²]],tblAargau[Einwohner/km²]) -> 98 | AS170: 84 | AT170: =_xlfn.RANK.EQ(tblAargau[[#This Row],[Tax]],tblAargau[Tax],1) -> 9
A171: Seon | B171: Lenzburg | C171: 3894 | D171: 3904 | E171: 3983 | F171: 4027 | G171: 4083 | H171: 4127 | I171: 4294 | J171: 4369 | K171: 4390 | L171: 4424 | M171: 4449 | N171: 4453 | O171: 4539 | P171: 4530 | Q171: 4471 | R171: 4546 | S171: 4600 | T171: 4588 | U171: 4626 | V171: 4651 | W171: 4672 | X171: 4647 | Y171: 4581 | Z171: 4563 | AA171: 4559 | AB171: 4564 | AC171: 4593 | AD171: 4660 | AE171: 4699 | AF171: 4715 | AG171: 4773 | AH171: =_xlfn.RANK.EQ(tblAargau[[#This Row],[2011]],tblAargau[2011]) -> 32 | AI171: 0.136106831 | AJ171: 0.04540346145 | AK171: 0.02161815068 | AL171: =_xlfn.RANK.EQ(tblAargau[[#This Row],[2001-2011]],tblAargau[2001-2011]) -> 182 | AM171: 0.2257318952 | AN171: =_xlfn.RANK.EQ(tblAargau[[#This Row],[1981-2011]],tblAargau[1981-2011]) -> 180 | AO171: 9.62 | AP171: =_xlfn.RANK.EQ(tblAargau[[#This Row],[Fläche in km²]],tblAargau[Fläche in km²]) -> 39 | AQ171: 496 | AR171: =_xlfn.RANK.EQ(tblAargau[[#This Row],[Einwohner/km²]],tblAargau[Einwohner/km²]) -> 73 | AS171: 108 | AT171: =_xlfn.RANK.EQ(tblAargau[[#This Row],[Tax]],tblAargau[Tax],1) -> 105
A172: Siglistorf | B172: Zurzach | C172: 372 | D172: 372 | E172: 374 | F172: 421 | G172: 443 | H172: 451 | I172: 471 | J172: 464 | K172: 494 | L172: 511 | M172: 552 | N172: 558 | O172: 562 | P172: 547 | Q172: 563 | R172: 601 | S172: 582 | T172: 546 | U172: 538 | V172: 528 | W172: 548 | X172: 568 | Y172: 572 | Z172: 565 | AA172: 557 | AB172: 586 | AC172: 591 | AD172: 627 | AE172: 610 | AF172: 632 | AG172: 617 | AH172: =_xlfn.RANK.EQ(tblAargau[[#This Row],[2011]],tblAargau[2011]) -> 191 | AI172: 0.373655914 | AJ172: -0.04347826087 | AK172: 0.1259124088 | AL172: =_xlfn.RANK.EQ(tblAargau[[#This Row],[2001-2011]],tblAargau[2001-2011]) -> 99 | AM172: 0.6586021505 | AN172: =_xlfn.RANK.EQ(tblAargau[[#This Row],[1981-2011]],tblAargau[1981-2011]) -> 58 | AO172: 5.51 | AP172: =_xlfn.RANK.EQ(tblAargau[[#This Row],[Fläche in km²]],tblAargau[Fläche in km²]) -> 107 | AQ172: 112 | AR172: =_xlfn.RANK.EQ(tblAargau[[#This Row],[Einwohner/km²]],tblAargau[Einwohner/km²]) -> 193 | AS172: 121 | AT172: =_xlfn.RANK.EQ(tblAargau[[#This Row],[Tax]],tblAargau[Tax],1) -> 200
A173: Sins | B173: Muri | C173: 2649 | D173: 2649 | E173: 2670 | F173: 2689 | G173: 2715 | H173: 2731 | I173: 2729 | J173: 2732 | K173: 2792 | L173: 2828 | M173: 3014 | N173: 2978 | O173: 3045 | P173: 3034 | Q173: 3110 | R173: 3138 | S173: 3225 | T173: 3230 | U173: 3265 | V173: 3287 | W173: 3249 | X173: 3304 | Y173: 3370 | Z173: 3432 | AA173: 3469 | AB173: 3583 | AC173: 3648 | AD173: 3728 | AE173: 3849 | AF173: 4038 | AG173: 4127 | AH173: =_xlfn.RANK.EQ(tblAargau[[#This Row],[2011]],tblAargau[2011]) -> 47 | AI173: 0.06757266893 | AJ173: 0.09057730591 | AK173: 0.270236996 | AL173: =_xlfn.RANK.EQ(tblAargau[[#This Row],[2001-2011]],tblAargau[2001-2011]) -> 19 | AM173: 0.5579463949 | AN173: =_xlfn.RANK.EQ(tblAargau[[#This Row],[1981-2011]],tblAargau[1981-2011]) -> 76 | AO173: 20.3 | AP173: =_xlfn.RANK.EQ(tblAargau[[#This Row],[Fläche in km²]],tblAargau[Fläche in km²]) -> 2 | AQ173: 203 | AR173: =_xlfn.RANK.EQ(tblAargau[[#This Row],[Einwohner/km²]],tblAargau[Einwohner/km²]) -> 150 | AS173: 105 | AT173: =_xlfn.RANK.EQ(tblAargau[[#This Row],[Tax]],tblAargau[Tax],1) -> 92
A174: Sisseln | B174: Laufenburg | C174: 732 | D174: 716 | E174: 753 | F174: 751 | G174: 759 | H174: 917 | I174: 979 | J174: 1034 | K174: 1092 | L174: 1153 | M174: 1173 | N174: 1200 | O174: 1203 | P174: 1214 | Q174: 1214 | R174: 1218 | S174: 1234 | T174: 1238 | U174: 1271 | V174: 1277 | W174: 1274 | X174: 1307 | Y174: 1314 | Z174: 1335 | AA174: 1332 | AB174: 1320 | AC174: 1362 | AD174: 1307 | AE174: 1304 | AF174: 1415 | AG174: 1462 | AH174: =_xlfn.RANK.EQ(tblAargau[[#This Row],[2011]],tblAargau[2011]) -> 119 | AI174: 0.575136612 | AJ174: 0.08866155158 | AK174: 0.147566719 | AL174: =_xlfn.RANK.EQ(tblAargau[[#This Row],[2001-2011]],tblAargau[2001-2011]) -> 79 | AM174: 0.9972677596 | AN174: =_xlfn.RANK.EQ(tblAargau[[#This Row],[1981-2011]],tblAargau[1981-2011]) -> 24 | AO174: 2.52 | AP174: =_xlfn.RANK.EQ(tblAargau[[#This Row],[Fläche in km²]],tblAargau[Fläche in km²]) -> 199 | AQ174: 580 | AR174: =_xlfn.RANK.EQ(tblAargau[[#This Row],[Einwohner/km²]],tblAargau[Einwohner/km²]) -> 60 | AS174: 80 | AT174: =_xlfn.RANK.EQ(tblAargau[[#This Row],[Tax]],tblAargau[Tax],1) -> 5
A175: Spreitenbach | B175: Baden | C175: 7321 | D175: 7307 | E175: 7298 | F175: 7386 | G175: 7623 | H175: 7938 | I175: 8149 | J175: 8133 | K175: 8277 | L175: 8417 | M175: 8457 | N175: 8577 | O175: 8595 | P175: 8621 | Q175: 8797 | R175: 8773 | S175: 8594 | T175: 8699 | U175: 8827 | V175: 9045 | W175: 9502 | X175: 9764 | Y175: 9850 | Z175: 9935 | AA175: 9982 | AB175: 10084 | AC175: 10184 | AD175: 10465 | AE175: 10656 | AF175: 10831 | AG175: 10955 | AH175: =_xlfn.RANK.EQ(tblAargau[[#This Row],[2011]],tblAargau[2011]) -> 8 | AI175: 0.1497063243 | AJ175: 0.06952820149 | AK175: 0.1529151758 | AL175: =_xlfn.RANK.EQ(tblAargau[[#This Row],[2001-2011]],tblAargau[2001-2011]) -> 74 | AM175: 0.4963802759 | AN175: =_xlfn.RANK.EQ(tblAargau[[#This Row],[1981-2011]],tblAargau[1981-2011]) -> 86 | AO175: 8.6 | AP175: =_xlfn.RANK.EQ(tblAargau[[#This Row],[Fläche in km²]],tblAargau[Fläche in km²]) -> 52 | AQ175: 1274 | AR175: =_xlfn.RANK.EQ(tblAargau[[#This Row],[Einwohner/km²]],tblAargau[Einwohner/km²]) -> 14 | AS175: 101 | AT175: =_xlfn.RANK.EQ(tblAargau[[#This Row],[Tax]],tblAargau[Tax],1) -> 74
A176: Staffelbach | B176: Zofingen | C176: 724 | D176: 710 | E176: 727 | F176: 738 | G176: 770 | H176: 773 | I176: 789 | J176: 820 | K176: 817 | L176: 851 | M176: 899 | N176: 928 | O176: 944 | P176: 916 | Q176: 944 | R176: 939 | S176: 956 | T176: 972 | U176: 992 | V176: 1007 | W176: 1014 | X176: 1031 | Y176: 1027 | Z176: 1036 | AA176: 1039 | AB176: 1019 | AC176: 1029 | AD176: 1034 | AE176: 1038 | AF176: 1036 | AG176: 1034 | AH176: =_xlfn.RANK.EQ(tblAargau[[#This Row],[2011]],tblAargau[2011]) -> 149 | AI176: 0.1754143646 | AJ176: 0.1201334816 | AK176: 0.01972386588 | AL176: =_xlfn.RANK.EQ(tblAargau[[#This Row],[2001-2011]],tblAargau[2001-2011]) -> 183 | AM176: 0.4281767956 | AN176: =_xlfn.RANK.EQ(tblAargau[[#This Row],[1981-2011]],tblAargau[1981-2011]) -> 102 | AO176: 8.94 | AP176: =_xlfn.RANK.EQ(tblAargau[[#This Row],[Fläche in km²]],tblAargau[Fläche in km²]) -> 45 | AQ176: 116 | AR176: =_xlfn.RANK.EQ(tblAargau[[#This Row],[Einwohner/km²]],tblAargau[Einwohner/km²]) -> 189 | AS176: 119 | AT176: =_xlfn.RANK.EQ(tblAargau[[#This Row],[Tax]],tblAargau[Tax],1) -> 189
A177: Staufen | B177: Lenzburg | C177: 2097 | D177: 2144 | E177: 2171 | F177: 2192 | G177: 2189 | H177: 2159 | I177: 2157 | J177: 2130 | K177: 2162 | L177: 2152 | M177: 2202 | N177: 2198 | O177: 2230 | P177: 2199 | Q177: 2177 | R177: 2186 | S177: 2166 | T177: 2188 | U177: 2182 | V177: 2178 | W177: 2256 | X177: 2262 | Y177: 2303 | Z177: 2323 | AA177: 2311 | AB177: 2330 | AC177: 2441 | AD177: 2580 | AE177: 2596 | AF177: 2575 | AG177: 2605 | AH177: =_xlfn.RANK.EQ(tblAargau[[#This Row],[2011]],tblAargau[2011]) -> 77 | AI177: 0.02622794468 | AJ177: -0.01089918256 | AK177: 0.1546985816 | AL177: =_xlfn.RANK.EQ(tblAargau[[#This Row],[2001-2011]],tblAargau[2001-2011]) -> 71 | AM177: 0.2422508345 | AN177: =_xlfn.RANK.EQ(tblAargau[[#This Row],[1981-2011]],tblAargau[1981-2011]) -> 174 | AO177: 3.57 | AP177: =_xlfn.RANK.EQ(tblAargau[[#This Row],[Fläche in km²]],tblAargau[Fläche in km²]) -> 163 | AQ177: 730 | AR177: =_xlfn.RANK.EQ(tblAargau[[#This Row],[Einwohner/km²]],tblAargau[Einwohner/km²]) -> 47 | AS177: 80 | AT177: =_xlfn.RANK.EQ(tblAargau[[#This Row],[Tax]],tblAargau[Tax],1) -> 5
A178: Stein (AG) | B178: Rheinfelden | C178: 1833 | D178: 1806 | E178: 1799 | F178: 1821 | G178: 1844 | H178: 1840 | I178: 1864 | J178: 1868 | K178: 1886 | L178: 1904 | M178: 1921 | N178: 1981 | O178: 2004 | P178: 2027 | Q178: 2068 | R178: 2125 | S178: 2293 | T178: 2277 | U178: 2309 | V178: 2355 | W178: 2424 | X178: 2455 | Y178: 2462 | Z178: 2459 | AA178: 2470 | AB178: 2624 | AC178: 2721 | AD178: 2800 | AE178: 2789 | AF178: 2797 | AG178: 2900 | AH178: =_xlfn.RANK.EQ(tblAargau[[#This Row],[2011]],tblAargau[2011]) -> 70 | AI178: 0.03873431533 | AJ178: 0.2259239979 | AK178: 0.196369637 | AL178: =_xlfn.RANK.EQ(tblAargau[[#This Row],[2001-2011]],tblAargau[2001-2011]) -> 39 | AM178: 0.5821058374 | AN178: =_xlfn.RANK.EQ(tblAargau[[#This Row],[1981-2011]],tblAargau[1981-2011]) -> 68 | AO178: 2.81 | AP178: =_xlfn.RANK.EQ(tblAargau[[#This Row],[Fläche in km²]],tblAargau[Fläche in km²]) -> 192 | AQ178: 1032 | AR178: =_xlfn.RANK.EQ(tblAargau[[#This Row],[Einwohner/km²]],tblAargau[Einwohner/km²]) -> 22 | AS178: 98 | AT178: =_xlfn.RANK.EQ(tblAargau[[#This Row],[Tax]],tblAargau[Tax],1) -> 44
A179: Stetten (AG) | B179: Baden | C179: 980 | D179: 989 | E179: 995 | F179: 1029 | G179: 1201 | H179: 1282 | I179: 1301 | J179: 1330 | K179: 1326 | L179: 1358 | M179: 1487 | N179: 1499 | O179: 1554 | P179: 1597 | Q179: 1594 | R179: 1574 | S179: 1535 | T179: 1553 | U179: 1541 | V179: 1574 | W179: 1569 | X179: 1554 | Y179: 1534 | Z179: 1511 | AA179: 1521 | AB179: 1497 | AC179: 1526 | AD179: 1540 | AE179: 1565 | AF179: 1625 | AG179: 1680 | AH179: =_xlfn.RANK.EQ(tblAargau[[#This Row],[2011]],tblAargau[2011]) -> 109 | AI179: 0.3857142857 | AJ179: 0.0585070612 | AK179: 0.0707456979 | AL179: =_xlfn.RANK.EQ(tblAargau[[#This Row],[2001-2011]],tblAargau[2001-2011]) -> 146 | AM179: 0.7142857143 | AN179: =_xlfn.RANK.EQ(tblAargau[[#This Row],[1981-2011]],tblAargau[1981-2011]) -> 46 | AO179: 4.41 | AP179: =_xlfn.RANK.EQ(tblAargau[[#This Row],[Fläche in km²]],tblAargau[Fläche in km²]) -> 139 | AQ179: 381 | AR179: =_xlfn.RANK.EQ(tblAargau[[#This Row],[Einwohner/km²]],tblAargau[Einwohner/km²]) -> 96 | AS179: 100 | AT179: =_xlfn.RANK.EQ(tblAargau[[#This Row],[Tax]],tblAargau[Tax],1) -> 60
A180: Strengelbach | B180: Zofingen | C180: 3846 | D180: 3871 | E180: 3897 | F180: 3907 | G180: 3925 | H180: 3966 | I180: 4007 | J180: 3999 | K180: 4012 | L180: 3989 | M180: 4012 | N180: 4011 | O180: 3976 | P180: 3955 | Q180: 4022 | R180: 4059 | S180: 4031 | T180: 3996 | U180: 4089 | V180: 4142 | W180: 4063 | X180: 4135 | Y180: 4153 | Z180: 4171 | AA180: 4246 | AB180: 4320 | AC180: 4337 | AD180: 4471 | AE180: 4515 | AF180: 4523 | AG180: 4576 | AH180: =_xlfn.RANK.EQ(tblAargau[[#This Row],[2011]],tblAargau[2011]) -> 36 | AI180: 0.03718148726 | AJ180: 0.03240279163 | AK180: 0.1262613832 | AL180: =_xlfn.RANK.EQ(tblAargau[[#This Row],[2001-2011]],tblAargau[2001-2011]) -> 98 | AM180: 0.1898075923 | AN180: =_xlfn.RANK.EQ(tblAargau[[#This Row],[1981-2011]],tblAargau[1981-2011]) -> 190 | AO180: 6.01 | AP180: =_xlfn.RANK.EQ(tblAargau[[#This Row],[Fläche in km²]],tblAargau[Fläche in km²]) -> 93 | AQ180: 761 | AR180: =_xlfn.RANK.EQ(tblAargau[[#This Row],[Einwohner/km²]],tblAargau[Einwohner/km²]) -> 42 | AS180: 114 | AT180: =_xlfn.RANK.EQ(tblAargau[[#This Row],[Tax]],tblAargau[Tax],1) -> 144
A181: Suhr | B181: Aarau | C181: 7371 | D181: 7237 | E181: 7116 | F181: 7041 | G181: 7004 | H181: 7137 | I181: 7444 | J181: 7568 | K181: 7794 | L181: 7876 | M181: 7720 | N181: 7767 | O181: 7787 | P181: 7658 | Q181: 7692 | R181: 7731 | S181: 7811 | T181: 7929 | U181: 8052 | V181: 8228 | W181: 8537 | X181: 8787 | Y181: 8868 | Z181: 8939 | AA181: 9080 | AB181: 9199 | AC181: 9312 | AD181: 9458 | AE181: 9512 | AF181: 9640 | AG181: 9750 | AH181: =_xlfn.RANK.EQ(tblAargau[[#This Row],[2011]],tblAargau[2011]) -> 11 | AI181: 0.06851173518 | AJ181: 0.06580310881 | AK181: 0.1420873843 | AL181: =_xlfn.RANK.EQ(tblAargau[[#This Row],[2001-2011]],tblAargau[2001-2011]) -> 84 | AM181: 0.3227513228 | AN181: =_xlfn.RANK.EQ(tblAargau[[#This Row],[1981-2011]],tblAargau[1981-2011]) -> 147 | AO181: 10.61 | AP181: =_xlfn.RANK.EQ(tblAargau[[#This Row],[Fläche in km²]],tblAargau[Fläche in km²]) -> 30 | AQ181: 919 | AR181: =_xlfn.RANK.EQ(tblAargau[[#This Row],[Einwohner/km²]],tblAargau[Einwohner/km²]) -> 29 | AS181: 108 | AT181: =_xlfn.RANK.EQ(tblAargau[[#This Row],[Tax]],tblAargau[Tax],1) -> 105
A182: Tägerig | B182: Bremgarten | C182: 867 | D182: 872 | E182: 881 | F182: 899 | G182: 953 | H182: 959 | I182: 942 | J182: 992 | K182: 1006 | L182: 1016 | M182: 1059 | N182: 1083 | O182: 1101 | P182: 1134 | Q182: 1169 | R182: 1129 | S182: 1134 | T182: 1141 | U182: 1172 | V182: 1206 | W182: 1175 | X182: 1203 | Y182: 1210 | Z182: 1245 | AA182: 1274 | AB182: 1311 | AC182: 1336 | AD182: 1364 | AE182: 1361 | AF182: 1357 | AG182: 1359 | AH182: =_xlfn.RANK.EQ(tblAargau[[#This Row],[2011]],tblAargau[2011]) -> 126 | AI182: 0.1718569781 | AJ182: 0.1388101983 | AK182: 0.1565957447 | AL182: =_xlfn.RANK.EQ(tblAargau[[#This Row],[2001-2011]],tblAargau[2001-2011]) -> 68 | AM182: 0.5674740484 | AN182: =_xlfn.RANK.EQ(tblAargau[[#This Row],[1981-2011]],tblAargau[1981-2011]) -> 73 | AO182: 3.29 | AP182: =_xlfn.RANK.EQ(tblAargau[[#This Row],[Fläche in km²]],tblAargau[Fläche in km²]) -> 177 | AQ182: 413 | AR182: =_xlfn.RANK.EQ(tblAargau[[#This Row],[Einwohner/km²]],tblAargau[Einwohner/km²]) -> 87 | AS182: 113 | AT182: =_xlfn.RANK.EQ(tblAargau[[#This Row],[Tax]],tblAargau[Tax],1) -> 139
A183: Tegerfelden | B183: Zurzach | C183: 650 | D183: 651 | E183: 645 | F183: 649 | G183: 698 | H183: 728 | I183: 735 | J183: 761 | K183: 793 | L183: 795 | M183: 822 | N183: 866 | O183: 883 | P183: 903 | Q183: 923 | R183: 917 | S183: 940 | T183: 953 | U183: 991 | V183: 968 | W183: 970 | X183: 969 | Y183: 963 | Z183: 998 | AA183: 1018 | AB183: 997 | AC183: 995 | AD183: 1022 | AE183: 1043 | AF183: 1051 | AG183: 1078 | AH183: =_xlfn.RANK.EQ(tblAargau[[#This Row],[2011]],tblAargau[2011]) -> 144 | AI183: 0.2230769231 | AJ183: 0.1776155718 | AK183: 0.1113402062 | AL183: =_xlfn.RANK.EQ(tblAargau[[#This Row],[2001-2011]],tblAargau[2001-2011]) -> 115 | AM183: 0.6584615385 | AN183: =_xlfn.RANK.EQ(tblAargau[[#This Row],[1981-2011]],tblAargau[1981-2011]) -> 59 | AO183: 7.11 | AP183: =_xlfn.RANK.EQ(tblAargau[[#This Row],[Fläche in km²]],tblAargau[Fläche in km²]) -> 71 | AQ183: 152 | AR183: =_xlfn.RANK.EQ(tblAargau[[#This Row],[Einwohner/km²]],tblAargau[Einwohner/km²]) -> 176 | AS183: 112 | AT183: =_xlfn.RANK.EQ(tblAargau[[#This Row],[Tax]],tblAargau[Tax],1) -> 130
A184: Teufenthal (AG) | B184: Kulm | C184: 1554 | D184: 1579 | E184: 1562 | F184: 1542 | G184: 1525 | H184: 1563 | I184: 1578 | J184: 1552 | K184: 1546 | L184: 1578 | M184: 1651 | N184: 1667 | O184: 1696 | P184: 1676 | Q184: 1658 | R184: 1662 | S184: 1624 | T184: 1633 | U184: 1620 | V184: 1604 | W184: 1580 | X184: 1597 | Y184: 1587 | Z184: 1605 | AA184: 1590 | AB184: 1569 | AC184: 1570 | AD184: 1604 | AE184: 1570 | AF184: 1571 | AG184: 1619 | AH184: =_xlfn.RANK.EQ(tblAargau[[#This Row],[2011]],tblAargau[2011]) -> 110 | AI184: 0.01544401544 | AJ184: -0.0284675954 | AK184: 0.0246835443 | AL184: =_xlfn.RANK.EQ(tblAargau[[#This Row],[2001-2011]],tblAargau[2001-2011]) -> 180 | AM184: 0.04182754183 | AN184: =_xlfn.RANK.EQ(tblAargau[[#This Row],[1981-2011]],tblAargau[1981-2011]) -> 212 | AO184: 3.57 | AP184: =_xlfn.RANK.EQ(tblAargau[[#This Row],[Fläche in km²]],tblAargau[Fläche in km²]) -> 163 | AQ184: 454 | AR184: =_xlfn.RANK.EQ(tblAargau[[#This Row],[Einwohner/km²]],tblAargau[Einwohner/km²]) -> 79 | AS184: 118 | AT184: =_xlfn.RANK.EQ(tblAargau[[#This Row],[Tax]],tblAargau[Tax],1) -> 178
A185: Thalheim (AG) | B185: Brugg | C185: 556 | D185: 568 | E185: 555 | F185: 557 | G185: 580 | H185: 589 | I185: 586 | J185: 598 | K185: 598 | L185: 628 | M185: 679 | N185: 726 | O185: 765 | P185: 756 | Q185: 759 | R185: 769 | S185: 789 | T185: 790 | U185: 777 | V185: 758 | W185: 752 | X185: 760 | Y185: 777 | Z185: 776 | AA185: 765 | AB185: 756 | AC185: 739 | AD185: 735 | AE185: 744 | AF185: 735 | AG185: 730 | AH185: =_xlfn.RANK.EQ(tblAargau[[#This Row],[2011]],tblAargau[2011]) -> 183 | AI185: 0.1294964029 | AJ185: 0.11634757 | AK185: -0.02925531915 | AL185: =_xlfn.RANK.EQ(tblAargau[[#This Row],[2001-2011]],tblAargau[2001-2011]) -> 209 | AM185: 0.3129496403 | AN185: =_xlfn.RANK.EQ(tblAargau[[#This Row],[1981-2011]],tblAargau[1981-2011]) -> 151 | AO185: 9.91 | AP185: =_xlfn.RANK.EQ(tblAargau[[#This Row],[Fläche in km²]],tblAargau[Fläche in km²]) -> 35 | AQ185: 74 | AR185: =_xlfn.RANK.EQ(tblAargau[[#This Row],[Einwohner/km²]],tblAargau[Einwohner/km²]) -> 211 | AS185: 112 | AT185: =_xlfn.RANK.EQ(tblAargau[[#This Row],[Tax]],tblAargau[Tax],1) -> 130
A186: Turgi | B186: Baden | C186: 2662 | D186: 2661 | E186: 2625 | F186: 2726 | G186: 2647 | H186: 2641 | I186: 2599 | J186: 2601 | K186: 2565 | L186: 2572 | M186: 2589 | N186: 2559 | O186: 2548 | P186: 2540 | Q186: 2476 | R186: 2445 | S186: 2352 | T186: 2275 | U186: 2347 | V186: 2361 | W186: 2490 | X186: 2590 | Y186: 2629 | Z186: 2657 | AA186: 2653 | AB186: 2713 | AC186: 2751 | AD186: 2823 | AE186: 2805 | AF186: 2824 | AG186: 2941 | AH186: =_xlfn.RANK.EQ(tblAargau[[#This Row],[2011]],tblAargau[2011]) -> 69 | AI186: -0.03380916604 | AJ186: -0.08806488992 | AK186: 0.181124498 | AL186: =_xlfn.RANK.EQ(tblAargau[[#This Row],[2001-2011]],tblAargau[2001-2011]) -> 57 | AM186: 0.1048084147 | AN186: =_xlfn.RANK.EQ(tblAargau[[#This Row],[1981-2011]],tblAargau[1981-2011]) -> 209 | AO186: 1.55 | AP186: =_xlfn.RANK.EQ(tblAargau[[#This Row],[Fläche in km²]],tblAargau[Fläche in km²]) -> 214 | AQ186: 1897 | AR186: =_xlfn.RANK.EQ(tblAargau[[#This Row],[Einwohner/km²]],tblAargau[Einwohner/km²]) -> 2 | AS186: 113 | AT186: =_xlfn.RANK.EQ(tblAargau[[#This Row],[Tax]],tblAargau[Tax],1) -> 139
A187: Ueken | B187: Laufenburg | C187: 367 | D187: 364 | E187: 362 | F187: 369 | G187: 378 | H187: 373 | I187: 395 | J187: 410 | K187: 445 | L187: 452 | M187: 501 | N187: 509 | O187: 556 | P187: 597 | Q187: 598 | R187: 634 | S187: 636 | T187: 621 | U187: 648 | V187: 689 | W187: 713 | X187: 728 | Y187: 741 | Z187: 753 | AA187: 804 | AB187: 817 | AC187: 833 | AD187: 851 | AE187: 864 | AF187: 855 | AG187: 862 | AH187: =_xlfn.RANK.EQ(tblAargau[[#This Row],[2011]],tblAargau[2011]) -> 167 | AI187: 0.2316076294 | AJ187: 0.375249501 | AK187: 0.2089761571 | AL187: =_xlfn.RANK.EQ(tblAargau[[#This Row],[2001-2011]],tblAargau[2001-2011]) -> 34 | AM187: 1.348773842 | AN187: =_xlfn.RANK.EQ(tblAargau[[#This Row],[1981-2011]],tblAargau[1981-2011]) -> 10 | AO187: 5.1 | AP187: =_xlfn.RANK.EQ(tblAargau[[#This Row],[Fläche in km²]],tblAargau[Fläche in km²]) -> 117 | AQ187: 169 | AR187: =_xlfn.RANK.EQ(tblAargau[[#This Row],[Einwohner/km²]],tblAargau[Einwohner/km²]) -> 170 | AS187: 125 | AT187: =_xlfn.RANK.EQ(tblAargau[[#This Row],[Tax]],tblAargau[Tax],1) -> 215
A188: Uerkheim | B188: Zofingen | C188: 1166 | D188: 1170 | E188: 1196 | F188: 1221 | G188: 1214 | H188: 1201 | I188: 1208 | J188: 1221 | K188: 1229 | L188: 1252 | M188: 1293 | N188: 1309 | O188: 1301 | P188: 1277 | Q188: 1303 | R188: 1323 | S188: 1323 | T188: 1302 | U188: 1298 | V188: 1270 | W188: 1274 | X188: 1283 | Y188: 1269 | Z188: 1271 | AA188: 1291 | AB188: 1286 | AC188: 1285 | AD188: 1265 | AE188: 1274 | AF188: 1259 | AG188: 1303 | AH188: =_xlfn.RANK.EQ(tblAargau[[#This Row],[2011]],tblAargau[2011]) -> 131 | AI188: 0.07375643225 | AJ188: -0.01778808971 | AK188: 0.02276295133 | AL188: =_xlfn.RANK.EQ(tblAargau[[#This Row],[2001-2011]],tblAargau[2001-2011]) -> 181 | AM188: 0.1174957118 | AN188: =_xlfn.RANK.EQ(tblAargau[[#This Row],[1981-2011]],tblAargau[1981-2011]) -> 205 | AO188: 7.1 | AP188: =_xlfn.RANK.EQ(tblAargau[[#This Row],[Fläche in km²]],tblAargau[Fläche in km²]) -> 72 | AQ188: 184 | AR188: =_xlfn.RANK.EQ(tblAargau[[#This Row],[Einwohner/km²]],tblAargau[Einwohner/km²]) -> 162 | AS188: 123 | AT188: =_xlfn.RANK.EQ(tblAargau[[#This Row],[Tax]],tblAargau[Tax],1) -> 211
A189: Uezwil | B189: Bremgarten | C189: 280 | D189: 292 | E189: 308 | F189: 308 | G189: 305 | H189: 312 | I189: 305 | J189: 299 | K189: 313 | L189: 314 | M189: 333 | N189: 329 | O189: 340 | P189: 340 | Q189: 337 | R189: 338 | S189: 332 | T189: 336 | U189: 350 | V189: 364 | W189: 358 | X189: 374 | Y189: 381 | Z189: 372 | AA189: 364 | AB189: 360 | AC189: 378 | AD189: 412 | AE189: 407 | AF189: 418 | AG189: 425 | AH189: =_xlfn.RANK.EQ(tblAargau[[#This Row],[2011]],tblAargau[2011]) -> 200 | AI189: 0.1214285714 | AJ189: 0.09309309309 | AK189: 0.187150838 | AL189: =_xlfn.RANK.EQ(tblAargau[[#This Row],[2001-2011]],tblAargau[2001-2011]) -> 47 | AM189: 0.5178571429 | AN189: =_xlfn.RANK.EQ(tblAargau[[#This Row],[1981-2011]],tblAargau[1981-2011]) -> 83 | AO189: 2.44 | AP189: =_xlfn.RANK.EQ(tblAargau[[#This Row],[Fläche in km²]],tblAargau[Fläche in km²]) -> 202 | AQ189: 174 | AR189: =_xlfn.RANK.EQ(tblAargau[[#This Row],[Einwohner/km²]],tblAargau[Einwohner/km²]) -> 168 | AS189: 109 | AT189: =_xlfn.RANK.EQ(tblAargau[[#This Row],[Tax]],tblAargau[Tax],1) -> 112
A190: Unterbözberg | B190: Brugg | C190: 586 | D190: 591 | E190: 606 | F190: 611 | G190: 624 | H190: 637 | I190: 635 | J190: 640 | K190: 655 | L190: 677 | M190: 659 | N190: 640 | O190: 652 | P190: 681 | Q190: 738 | R190: 741 | S190: 740 | T190: 739 | U190: 750 | V190: 749 | W190: 734 | X190: 710 | Y190: 707 | Z190: 708 | AA190: 694 | AB190: 688 | AC190: 707 | AD190: 713 | AE190: 736 | AF190: 727 | AG190: 735 | AH190: =_xlfn.RANK.EQ(tblAargau[[#This Row],[2011]],tblAargau[2011]) -> 181 | AI190: 0.1552901024 | AJ190: 0.1365705615 | AK190: 0.00136239782 | AL190: =_xlfn.RANK.EQ(tblAargau[[#This Row],[2001-2011]],tblAargau[2001-2011]) -> 197 | AM190: 0.2542662116 | AN190: =_xlfn.RANK.EQ(tblAargau[[#This Row],[1981-2011]],tblAargau[1981-2011]) -> 170 | AO190: 6.12 | AP190: =_xlfn.RANK.EQ(tblAargau[[#This Row],[Fläche in km²]],tblAargau[Fläche in km²]) -> 92 | AQ190: 120 | AR190: =_xlfn.RANK.EQ(tblAargau[[#This Row],[Einwohner/km²]],tblAargau[Einwohner/km²]) -> 187 | AS190: 99 | AT190: =_xlfn.RANK.EQ(tblAargau[[#This Row],[Tax]],tblAargau[Tax],1) -> 53
A191: Unterendingen | B191: Zurzach | C191: 188 | D191: 198 | E191: 220 | F191: 243 | G191: 260 | H191: 271 | I191: 290 | J191: 296 | K191: 322 | L191: 314 | M191: 349 | N191: 335 | O191: 351 | P191: 359 | Q191: 375 | R191: 377 | S191: 373 | T191: 370 | U191: 380 | V191: 376 | W191: 371 | X191: 372 | Y191: 370 | Z191: 379 | AA191: 357 | AB191: 358 | AC191: 353 | AD191: 368 | AE191: 362 | AF191: 370 | AG191: 364 | AH191: =_xlfn.RANK.EQ(tblAargau[[#This Row],[2011]],tblAargau[2011]) -> 206 | AI191: 0.670212766 | AJ191: 0.07736389685 | AK191: -0.01886792453 | AL191: =_xlfn.RANK.EQ(tblAargau[[#This Row],[2001-2011]],tblAargau[2001-2011]) -> 202 | AM191: 0.9361702128 | AN191: =_xlfn.RANK.EQ(tblAargau[[#This Row],[1981-2011]],tblAargau[1981-2011]) -> 29 | AO191: 3.46 | AP191: =_xlfn.RANK.EQ(tblAargau[[#This Row],[Fläche in km²]],tblAargau[Fläche in km²]) -> 168 | AQ191: 105 | AR191: =_xlfn.RANK.EQ(tblAargau[[#This Row],[Einwohner/km²]],tblAargau[Einwohner/km²]) -> 196 | AS191: 108 | AT191: =_xlfn.RANK.EQ(tblAargau[[#This Row],[Tax]],tblAargau[Tax],1) -> 105
A192: Unterentfelden | B192: Aarau | C192: 3263 | D192: 3312 | E192: 3359 | F192: 3428 | G192: 3451 | H192: 3433 | I192: 3416 | J192: 3427 | K192: 3397 | L192: 3400 | M192: 3357 | N192: 3339 | O192: 3335 | P192: 3280 | Q192: 3239 | R192: 3181 | S192: 3231 | T192: 3178 | U192: 3212 | V192: 3184 | W192: 3197 | X192: 3251 | Y192: 3299 | Z192: 3440 | AA192: 3585 | AB192: 3734 | AC192: 3760 | AD192: 3768 | AE192: 3899 | AF192: 3863 | AG192: 3918 | AH192: =_xlfn.RANK.EQ(tblAargau[[#This Row],[2011]],tblAargau[2011]) -> 48 | AI192: 0.04198590254 | AJ192: -0.05153410783 | AK192: 0.2255239287 | AL192: =_xlfn.RANK.EQ(tblAargau[[#This Row],[2001-2011]],tblAargau[2001-2011]) -> 28 | AM192: 0.2007355195 | AN192: =_xlfn.RANK.EQ(tblAargau[[#This Row],[1981-2011]],tblAargau[1981-2011]) -> 186 | AO192: 2.88 | AP192: =_xlfn.RANK.EQ(tblAargau[[#This Row],[Fläche in km²]],tblAargau[Fläche in km²]) -> 188 | AQ192: 1360 | AR192: =_xlfn.RANK.EQ(tblAargau[[#This Row],[Einwohner/km²]],tblAargau[Einwohner/km²]) -> 10 | AS192: 103 | AT192: =_xlfn.RANK.EQ(tblAargau[[#This Row],[Tax]],tblAargau[Tax],1) -> 81
A193: Unterkulm | B193: Kulm | C193: 2541 | D193: 2488 | E193: 2438 | F193: 2476 | G193: 2474 | H193: 2518 | I193: 2560 | J193: 2522 | K193: 2547 | L193: 2543 | M193: 2657 | N193: 2647 | O193: 2737 | P193: 2793 | Q193: 2768 | R193: 2750 | S193: 2753 | T193: 2740 | U193: 2705 | V193: 2719 | W193: 2674 | X193: 2762 | Y193: 2840 | Z193: 2856 | AA193: 2891 | AB193: 2882 | AC193: 2894 | AD193: 2895 | AE193: 2882 | AF193: 2890 | AG193: 2864 | AH193: =_xlfn.RANK.EQ(tblAargau[[#This Row],[2011]],tblAargau[2011]) -> 72 | AI193: 0.0007870916962 | AJ193: 0.02333458788 | AK193: 0.07105459985 | AL193: =_xlfn.RANK.EQ(tblAargau[[#This Row],[2001-2011]],tblAargau[2001-2011]) -> 145 | AM193: 0.1271153089 | AN193: =_xlfn.RANK.EQ(tblAargau[[#This Row],[1981-2011]],tblAargau[1981-2011]) -> 203 | AO193: 8.89 | AP193: =_xlfn.RANK.EQ(tblAargau[[#This Row],[Fläche in km²]],tblAargau[Fläche in km²]) -> 46 | AQ193: 322 | AR193: =_xlfn.RANK.EQ(tblAargau[[#This Row],[Einwohner/km²]],tblAargau[Einwohner/km²]) -> 111 | AS193: 118 | AT193: =_xlfn.RANK.EQ(tblAargau[[#This Row],[Tax]],tblAargau[Tax],1) -> 178
A194: Unterlunkhofen | B194: Bremgarten | C194: 415 | D194: 461 | E194: 490 | F194: 521 | G194: 571 | H194: 617 | I194: 649 | J194: 671 | K194: 700 | L194: 727 | M194: 773 | N194: 842 | O194: 876 | P194: 887 | Q194: 933 | R194: 982 | S194: 1007 | T194: 1086 | U194: 1128 | V194: 1229 | W194: 1238 | X194: 1247 | Y194: 1267 | Z194: 1247 | AA194: 1240 | AB194: 1230 | AC194: 1239 | AD194: 1251 | AE194: 1256 | AF194: 1280 | AG194: 1288 | AH194: =_xlfn.RANK.EQ(tblAargau[[#This Row],[2011]],tblAargau[2011]) -> 132 | AI194: =IFERROR(L194/C194-1,0) -> 0.7518072289 | AJ194: =IFERROR(V194/M194-1,0) -> 0.5899094437 | AK194: =IFERROR(AG194/W194-1,0) -> 0.04038772213 | AL194: =_xlfn.RANK.EQ(tblAargau[[#This Row],[2001-2011]],tblAargau[2001-2011]) -> 170 | AM194: =IFERROR(AG194/C194-1,0) -> 2.103614458 | AN194: =_xlfn.RANK.EQ(tblAargau[[#This Row],[1981-2011]],tblAargau[1981-2011]) -> 2 | AO194: 4.49 | AP194: =_xlfn.RANK.EQ(tblAargau[[#This Row],[Fläche in km²]],tblAargau[Fläche in km²]) -> 136 | AQ194: 287 | AR194: =_xlfn.RANK.EQ(tblAargau[[#This Row],[Einwohner/km²]],tblAargau[Einwohner/km²]) -> 120 | AS194: 83 | AT194: =_xlfn.RANK.EQ(tblAargau[[#This Row],[Tax]],tblAargau[Tax],1) -> 7
A195: Untersiggenthal | B195: Baden | C195: 4736 | D195: 4735 | E195: 4709 | F195: 4773 | G195: 4826 | H195: 4834 | I195: 5058 | J195: 5101 | K195: 5110 | L195: 5215 | M195: 5456 | N195: 5629 | O195: 5500 | P195: 5612 | Q195: 5680 | R195: 5676 | S195: 5713 | T195: 5902 | U195: 5886 | V195: 6007 | W195: 6053 | X195: 6179 | Y195: 6211 | Z195: 6166 | AA195: 6190 | AB195: 6231 | AC195: 6335 | AD195: 6360 | AE195: 6484 | AF195: 6674 | AG195: 6827 | AH195: =_xlfn.RANK.EQ(tblAargau[[#This Row],[2011]],tblAargau[2011]) -> 22 | AI195: 0.1011402027 | AJ195: 0.1009897361 | AK195: 0.1278704774 | AL195: =_xlfn.RANK.EQ(tblAargau[[#This Row],[2001-2011]],tblAargau[2001-2011]) -> 96 | AM195: 0.4415118243 | AN195: =_xlfn.RANK.EQ(tblAargau[[#This Row],[1981-2011]],tblAargau[1981-2011]) -> 99 | AO195: 8.27 | AP195: =_xlfn.RANK.EQ(tblAargau[[#This Row],[Fläche in km²]],tblAargau[Fläche in km²]) -> 58 | AQ195: 826 | AR195: =_xlfn.RANK.EQ(tblAargau[[#This Row],[Einwohner/km²]],tblAargau[Einwohner/km²]) -> 39 | AS195: 100 | AT195: =_xlfn.RANK.EQ(tblAargau[[#This Row],[Tax]],tblAargau[Tax],1) -> 60
A196: Veltheim (AG) | B196: Brugg | C196: 1037 | D196: 1058 | E196: 1069 | F196: 1065 | G196: 1065 | H196: 1047 | I196: 1053 | J196: 1093 | K196: 1112 | L196: 1195 | M196: 1236 | N196: 1245 | O196: 1258 | P196: 1236 | Q196: 1294 | R196: 1348 | S196: 1369 | T196: 1357 | U196: 1399 | V196: 1377 | W196: 1374 | X196: 1391 | Y196: 1364 | Z196: 1378 | AA196: 1359 | AB196: 1359 | AC196: 1402 | AD196: 1379 | AE196: 1379 | AF196: 1381 | AG196: 1416 | AH196: =_xlfn.RANK.EQ(tblAargau[[#This Row],[2011]],tblAargau[2011]) -> 122 | AI196: 0.1523625844 | AJ196: 0.1140776699 | AK196: 0.03056768559 | AL196: =_xlfn.RANK.EQ(tblAargau[[#This Row],[2001-2011]],tblAargau[2001-2011]) -> 175 | AM196: 0.3654773385 | AN196: =_xlfn.RANK.EQ(tblAargau[[#This Row],[1981-2011]],tblAargau[1981-2011]) -> 130 | AO196: 5.24 | AP196: =_xlfn.RANK.EQ(tblAargau[[#This Row],[Fläche in km²]],tblAargau[Fläche in km²]) -> 115 | AQ196: 270 | AR196: =_xlfn.RANK.EQ(tblAargau[[#This Row],[Einwohner/km²]],tblAargau[Einwohner/km²]) -> 124 | AS196: 115 | AT196: =_xlfn.RANK.EQ(tblAargau[[#This Row],[Tax]],tblAargau[Tax],1) -> 150
A197: Villigen | B197: Brugg | C197: 1395 | D197: 1416 | E197: 1425 | F197: 1465 | G197: 1474 | H197: 1512 | I197: 1565 | J197: 1615 | K197: 1643 | L197: 1661 | M197: 1720 | N197: 1785 | O197: 1804 | P197: 1819 | Q197: 1844 | R197: 1846 | S197: 1841 | T197: 1828 | U197: 1839 | V197: 1776 | W197: 1822 | X197: 1834 | Y197: 1852 | Z197: 1833 | AA197: 1843 | AB197: 1876 | AC197: 1907 | AD197: 1938 | AE197: 1981 | AF197: 1993 | AG197: 2039 | AH197: =_xlfn.RANK.EQ(tblAargau[[#This Row],[2011]],tblAargau[2011]) -> 96 | AI197: 0.1906810036 | AJ197: 0.03255813953 | AK197: 0.1190998902 | AL197: =_xlfn.RANK.EQ(tblAargau[[#This Row],[2001-2011]],tblAargau[2001-2011]) -> 108 | AM197: 0.4616487455 | AN197: =_xlfn.RANK.EQ(tblAargau[[#This Row],[1981-2011]],tblAargau[1981-2011]) -> 94 | AO197: 11.22 | AP197: =_xlfn.RANK.EQ(tblAargau[[#This Row],[Fläche in km²]],tblAargau[Fläche in km²]) -> 27 | AQ197: 182 | AR197: =_xlfn.RANK.EQ(tblAargau[[#This Row],[Einwohner/km²]],tblAargau[Einwohner/km²]) -> 163 | AS197: 86 | AT197: =_xlfn.RANK.EQ(tblAargau[[#This Row],[Tax]],tblAargau[Tax],1) -> 12
A198: Villmergen | B198: Bremgarten | C198: 4093 | D198: 4103 | E198: 4081 | F198: 4088 | G198: 4178 | H198: 4233 | I198: 4372 | J198: 4502 | K198: 4606 | L198: 4674 | M198: 4909 | N198: 4962 | O198: 4955 | P198: 4960 | Q198: 5152 | R198: 5200 | S198: 5209 | T198: 5199 | U198: 5200 | V198: 5251 | W198: 5288 | X198: 5347 | Y198: 5362 | Z198: 5465 | AA198: 5464 | AB198: 5524 | AC198: 5505 | AD198: 5695 | AE198: 5840 | AF198: 5883 | AG198: 6106 | AH198: =_xlfn.RANK.EQ(tblAargau[[#This Row],[2011]],tblAargau[2011]) -> 25 | AI198: 0.1419496702 | AJ198: 0.06966795681 | AK198: 0.1546898638 | AL198: =_xlfn.RANK.EQ(tblAargau[[#This Row],[2001-2011]],tblAargau[2001-2011]) -> 72 | AM198: 0.4918152944 | AN198: =_xlfn.RANK.EQ(tblAargau[[#This Row],[1981-2011]],tblAargau[1981-2011]) -> 89 | AO198: 11.94 | AP198: =_xlfn.RANK.EQ(tblAargau[[#This Row],[Fläche in km²]],tblAargau[Fläche in km²]) -> 19 | AQ198: 511 | AR198: =_xlfn.RANK.EQ(tblAargau[[#This Row],[Einwohner/km²]],tblAargau[Einwohner/km²]) -> 70 | AS198: 92 | AT198: =_xlfn.RANK.EQ(tblAargau[[#This Row],[Tax]],tblAargau[Tax],1) -> 26
A199: Villnachern | B199: Brugg | C199: 1066 | D199: 1098 | E199: 1161 | F199: 1175 | G199: 1199 | H199: 1161 | I199: 1196 | J199: 1249 | K199: 1272 | L199: 1308 | M199: 1279 | N199: 1276 | O199: 1283 | P199: 1249 | Q199: 1238 | R199: 1213 | S199: 1224 | T199: 1233 | U199: 1234 | V199: 1224 | W199: 1259 | X199: 1308 | Y199: 1327 | Z199: 1369 | AA199: 1368 | AB199: 1408 | AC199: 1446 | AD199: 1483 | AE199: 1483 | AF199: 1495 | AG199: 1505 | AH199: =_xlfn.RANK.EQ(tblAargau[[#This Row],[2011]],tblAargau[2011]) -> 115 | AI199: 0.2270168856 | AJ199: -0.04300234558 | AK199: 0.1953931692 | AL199: =_xlfn.RANK.EQ(tblAargau[[#This Row],[2001-2011]],tblAargau[2001-2011]) -> 40 | AM199: 0.4118198874 | AN199: =_xlfn.RANK.EQ(tblAargau[[#This Row],[1981-2011]],tblAargau[1981-2011]) -> 109 | AO199: 5.74 | AP199: =_xlfn.RANK.EQ(tblAargau[[#This Row],[Fläche in km²]],tblAargau[Fläche in km²]) -> 101 | AQ199: 262 | AR199: =_xlfn.RANK.EQ(tblAargau[[#This Row],[Einwohner/km²]],tblAargau[Einwohner/km²]) -> 127 | AS199: 118 | AT199: =_xlfn.RANK.EQ(tblAargau[[#This Row],[Tax]],tblAargau[Tax],1) -> 178
A200: Vordemwald | B200: Zofingen | C200: 1539 | D200: 1578 | E200: 1588 | F200: 1590 | G200: 1641 | H200: 1643 | I200: 1637 | J200: 1654 | K200: 1643 | L200: 1635 | M200: 1607 | N200: 1619 | O200: 1676 | P200: 1674 | Q200: 1664 | R200: 1646 | S200: 1710 | T200: 1744 | U200: 1739 | V200: 1765 | W200: 1741 | X200: 1711 | Y200: 1718 | Z200: 1702 | AA200: 1728 | AB200: 1714 | AC200: 1722 | AD200: 1715 | AE200: 1686 | AF200: 1697 | AG200: 1757 | AH200: =_xlfn.RANK.EQ(tblAargau[[#This Row],[2011]],tblAargau[2011]) -> 106 | AI200: 0.06237816764 | AJ200: 0.09831985065 | AK200: 0.00919012062 | AL200: =_xlfn.RANK.EQ(tblAargau[[#This Row],[2001-2011]],tblAargau[2001-2011]) -> 192 | AM200: 0.1416504224 | AN200: =_xlfn.RANK.EQ(tblAargau[[#This Row],[1981-2011]],tblAargau[1981-2011]) -> 198 | AO200: 10.13 | AP200: =_xlfn.RANK.EQ(tblAargau[[#This Row],[Fläche in km²]],tblAargau[Fläche in km²]) -> 33 | AQ200: 173 | AR200: =_xlfn.RANK.EQ(tblAargau[[#This Row],[Einwohner/km²]],tblAargau[Einwohner/km²]) -> 169 | AS200: 115 | AT200: =_xlfn.RANK.EQ(tblAargau[[#This Row],[Tax]],tblAargau[Tax],1) -> 150
... 27 more rows

Sheet Metadata
A1: Merkmal / Désignation du caractère | B1: Kurzbeschreibung | D1: Brève description
A2: GMDENAME | B2: Gemeindename | D2: Nom de la commune
A3: XMIN | B3: Minimale x-Koordinate des Gebiets [m] | D3: Coordonnée x minimale du territoire [m]
A4: YMIN | B4: Minimale y-Koordinate des Gebiets [m] | D4: Coordonnée y minimale du territoire [m]
A5: XMAX | B5: Maximale x-Koordinate des Gebiets [m] | D5: Coordonnée x maximale du territoire [m]
A6: YMAX | B6: Maximale y-Koordinate des Gebiets [m] | D6: Coordonnée y maximale du territoire [m]
A7: ZMIN | B7: Minimale Höhe (z-Koordinate) des Gebiets [m über Meer] | D7: Altitude minimale (coordonnée z) du territoire [m au-dessus de la mer]
A8: ZMAX | B8: Maximale Höhe (z-Koordinate) des Gebiets [m über Meer] | D8: Altitude maximale (coordonnée z) du territoire [m au-dessus de la mer]
A9: ZKZ | B9: Höhe (z-Koordinate) der Zentrumskoordinate [m über Meer] | D9: Altitude (coordonnée z) de la coordonnée centrale [m au-dessus de la mer]
A10: ZKX | B10: x-Koordinate der Zentrumskoordinate [Hektometer] | D10: Coordonnée hectométrique x de la coordonnée centrale
A11: ZKY | B11: y-Koordinate der Zentrumskoordinate [Hektometer] | D11: Coordonnée hectométrique y de la coordonnée centrale
A12: ZMEAN | B12: Mittlere Höhe des Gebiets [m über Meer] | D12: Altitude moyenne du territoire [m au-dessus de la mer]
A13: ZMED | B13: Medianhöhe des Gebiets [m über Meer] | D13: Altitude médiane du territoire [m au-dessus de la mer]
A15: *NUTS: Nomenclature des unités territoriales statistiques / EUROSTAT
A18: BFS / OFS
A19: GEOSTAT
A20: 2010 Neuchâtel
A23: In der Berechnung verwendete Grundlagedaten:
A24: Données de base utilisées dans les calculs:
A26: DHM25 Digitales Höhenmodell / MNT25 modèle numérique du terrain © swisstopo
A27: GG25 administrative Grenzen / limites administratives (GG25) © swisstopo, 1.1.2008 mit bis 1.1.2009 nachgeführten Gemeindefusionen
A28: Zugehörigkeit der Hektaren zu den administrativen Einheiten der Schweiz BFS GEOSTAT, 1.1.2008 mit bis 1.1.2009 nachgeführten Gemeindefusionen
A29: Limites administratives (GG25) © swisstopo, 1.1.2008, fusions de communes respectées jusqu'au 1er janvier 2009
A30: Appartenances des hectares aux unités administratives de la Suisse BFS GEOSTAT, 1.1.2008, fusions de communes respectées jusqu'au 1er janvier 2009

Sheet GeoDaten
A1: GMDENAME | B1: XMIN | C1: YMIN | D1: XMAX | E1: YMAX | F1: ZKX | G1: ZKY | H1: ZKZ | I1: ZMIN | J1: ZMAX | K1: ZMEAN | L1: ZMED
A2: Aarau | B2: 644377 | C2: 246725 | D2: 647749 | E2: 251106 | F2: 645800 | G2: 249000 | H2: 387 | I2: 359 | J2: 486 | K2: 399 | L2: 393
A3: Biberstein | B3: 647453 | C3: 251210 | D3: 650216 | E3: 253337 | F3: 648500 | G3: 251600 | H3: 378 | I3: 357 | J3: 770 | K3: 507 | L3: 482
A4: Buchs (AG) | B4: 647185 | C4: 247927 | D4: 651181 | E4: 250745 | F4: 647600 | G4: 248700 | H4: 388 | I4: 367 | J4: 394 | K4: 382 | L4: 383
A5: Densbüren | B5: 644474 | C5: 253626 | D5: 649300 | E5: 257513 | F5: 646300 | G5: 256100 | H5: 505 | I5: 438 | J5: 849 | K5: 608 | L5: 600
A6: Erlinsbach (AG) | B6: 639583 | C6: 249403 | D6: 645089 | E6: 253518 | F6: 643200 | G6: 250100 | H6: 410 | I6: 370 | J6: 894 | K6: 587 | L6: 559
A7: Gränichen | B7: 647754 | C7: 242373 | D7: 653233 | E7: 247712 | F7: 650000 | G7: 245400 | H7: 413 | I7: 401 | J7: 629 | K7: 488 | L7: 485
A8: Hirschthal | B8: 645715 | C8: 240051 | D8: 649065 | E8: 241804 | F8: 646500 | G8: 241400 | H8: 442 | I8: 437 | J8: 650 | K8: 509 | L8: 501
A9: Küttigen | B9: 643439 | C9: 250088 | D9: 647688 | E9: 254278 | F9: 646000 | G9: 251800 | H9: 413 | I9: 358 | J9: 861 | K9: 527 | L9: 498
A10: Muhen | B10: 645532 | C10: 241301 | D10: 648945 | E10: 244231 | F10: 646500 | G10: 243400 | H10: 429 | I10: 421 | J10: 635 | K10: 488 | L10: 478
A11: Oberentfelden | B11: 643203 | C11: 243710 | D11: 647835 | E11: 246263 | F11: 645900 | G11: 245200 | H11: 413 | I11: 410 | J11: 595 | K11: 442 | L11: 421
A12: Rohr (AG) | B12: 647313 | C12: 249735 | D12: 650938 | E12: 251495 | F12: 648500 | G12: 250400 | H12: 363 | I12: 358 | J12: 381 | K12: 365 | L12: 361
A13: Suhr | B13: 646517 | C13: 244427 | D13: 651162 | E13: 250158 | F13: 648400 | G13: 246900 | H13: 396 | I13: 379 | J13: 577 | K13: 414 | L13: 404
A14: Unterentfelden | B14: 644144 | C14: 245617 | D14: 646885 | E14: 247570 | F14: 645700 | G14: 246400 | H14: 416 | I14: 406 | J14: 485 | K14: 428 | L14: 421
A15: Baden | B15: 662049 | C15: 253899 | D15: 666396 | E15: 259753 | F15: 665400 | G15: 258400 | H15: 425 | I15: 337 | J15: 581 | K15: 457 | L15: 451
A16: Bellikon | B16: 667460 | C16: 247546 | D16: 669909 | E16: 250952 | F16: 668400 | G16: 249100 | H16: 595 | I16: 501 | J16: 785 | K16: 651 | L16: 648
A17: Bergdietikon | B17: 669381 | C17: 247075 | D17: 672664 | E17: 250747 | F17: 671600 | G17: 249000 | H17: 502 | I17: 408 | J17: 780 | K17: 579 | L17: 590
A18: Birmenstorf (AG) | B18: 659444 | C18: 253585 | D18: 663508 | E18: 258389 | F18: 661000 | G18: 257100 | H18: 385 | I18: 336 | J18: 569 | K18: 405 | L18: 396
A19: Ennetbaden | B19: 665669 | C19: 258399 | D19: 668058 | E19: 259929 | F19: 666100 | G19: 259100 | H19: 360 | I19: 346 | J19: 731 | K19: 479 | L19: 471
A20: Fislisbach | B20: 662620 | C20: 253021 | D20: 666046 | E20: 255581 | F20: 664400 | G20: 254300 | H20: 428 | I20: 407 | J20: 645 | K20: 446 | L20: 425
A21: Freienwil | B21: 664171 | C21: 259895 | D21: 667772 | E21: 262550 | F21: 666900 | G21: 261800 | H21: 463 | I21: 429 | J21: 622 | K21: 532 | L21: 518
A22: Gebenstorf | B22: 659221 | C22: 257628 | D22: 662678 | E22: 262007 | F22: 660600 | G22: 259100 | H22: 376 | I22: 327 | J22: 562 | K22: 428 | L22: 426
A23: Killwangen | B23: 667181 | C23: 252282 | D23: 669497 | E23: 254432 | F23: 669000 | G23: 253900 | H23: 408 | I23: 380 | J23: 695 | K23: 514 | L23: 504
A24: Künten | B24: 665469 | C24: 247495 | D24: 668589 | E24: 250415 | F24: 667300 | G24: 249100 | H24: 424 | I24: 356 | J24: 526 | K24: 415 | L24: 412
A25: Mägenwil | B25: 658689 | C25: 250462 | D25: 661287 | E25: 253155 | F25: 659700 | G25: 251500 | H25: 420 | I25: 399 | J25: 553 | K25: 443 | L25: 423
A26: Mellingen | B26: 661480 | C26: 250949 | D26: 664389 | E26: 254153 | F26: 663000 | G26: 252300 | H26: 349 | I26: 345 | J26: 439 | K26: 378 | L26: 375
A27: Neuenhof | B27: 665289 | C27: 253380 | D27: 668461 | E27: 256949 | F27: 667200 | G27: 255400 | H27: 405 | I27: 358 | J27: 703 | K27: 472 | L27: 444
A28: Niederrohrdorf | B28: 663995 | C28: 251115 | D28: 666276 | E28: 254225 | F28: 665400 | G28: 252900 | H28: 436 | I28: 377 | J28: 522 | K28: 430 | L28: 426
A29: Oberrohrdorf | B29: 665315 | C29: 251649 | D29: 668117 | E29: 254897 | F29: 666300 | G29: 252400 | H29: 498 | I29: 445 | J29: 699 | K29: 585 | L29: 591
A30: Obersiggenthal | B30: 662298 | C30: 259374 | D30: 666855 | E30: 263067 | F30: 664600 | G30: 260000 | H30: 388 | I30: 336 | J30: 618 | K30: 482 | L30: 488
A31: Remetschwil | B31: 665357 | C31: 250165 | D31: 669229 | E31: 252184 | F31: 667000 | G31: 251200 | H31: 525 | I31: 400 | J31: 700 | K31: 560 | L31: 562
A32: Spreitenbach | B32: 668104 | C32: 250405 | D32: 671957 | E32: 254214 | F32: 669900 | G32: 252300 | H32: 419 | I32: 380 | J32: 705 | K32: 468 | L32: 418
A33: Stetten (AG) | B33: 663751 | C33: 248522 | D33: 666803 | E33: 251784 | F33: 665600 | G33: 250200 | H33: 386 | I33: 347 | J33: 427 | K33: 388 | L33: 391
A34: Turgi | B34: 660926 | C34: 259055 | D34: 663318 | E34: 261011 | F34: 661200 | G34: 260500 | H34: 348 | I34: 335 | J34: 550 | K34: 390 | L34: 371
A35: Untersiggenthal | B35: 659828 | C35: 260058 | D35: 663388 | E35: 263494 | F35: 661500 | G35: 261600 | H35: 375 | I35: 327 | J35: 590 | K35: 436 | L35: 429
A36: Wettingen | B36: 665585 | C36: 255292 | D36: 670613 | E36: 259387 | F36: 666300 | G36: 257800 | H36: 390 | I36: 356 | J36: 853 | K36: 476 | L36: 447
A37: Wohlenschwil | B37: 660265 | C37: 250427 | D37: 662637 | E37: 253637 | F37: 661800 | G37: 251600 | H37: 384 | I37: 347 | J37: 540 | K37: 402 | L37: 398
A38: Würenlingen | B38: 659219 | C38: 262889 | D38: 663544 | E38: 266682 | F38: 661700 | G38: 264800 | H38: 370 | I38: 327 | J38: 553 | K38: 386 | L38: 358
A39: Würenlos | B39: 667735 | C39: 251220 | D39: 675619 | E39: 257686 | F39: 669800 | G39: 255100 | H39: 410 | I39: 380 | J39: 559 | K39: 437 | L39: 426
A40: Ehrendingen | B40: 666842 | C40: 259040 | D40: 669684 | E40: 262781 | F40: 668700 | G40: 261600 | H40: 448 | I40: 427 | J40: 809 | K40: 519 | L40: 499
A41: Arni (AG) | B41: 673186 | C41: 239392 | D41: 675426 | E41: 242550 | F41: 674200 | G41: 241300 | H41: 570 | I41: 519 | J41: 635 | K41: 581 | L41: 581
A42: Berikon | B42: 669480 | C42: 243789 | D42: 673335 | E42: 246459 | F42: 670800 | G42: 244800 | H42: 552 | I42: 508 | J42: 665 | K42: 587 | L42: 577
A43: Bremgarten (AG) | B43: 665142 | C43: 243377 | D43: 669059 | E43: 247202 | F43: 668400 | G43: 244800 | H43: 383 | I43: 359 | J43: 470 | K43: 400 | L43: 390
A44: Büttikon | B44: 661581 | C44: 241198 | D44: 664173 | E44: 243376 | F44: 662800 | G44: 242000 | H44: 500 | I44: 456 | J44: 570 | K44: 513 | L44: 510
A45: Dottikon | B45: 659496 | C45: 246568 | D45: 662366 | E45: 249915 | F45: 660500 | G45: 248400 | H45: 415 | I45: 405 | J45: 542 | K45: 432 | L45: 420
A46: Eggenwil | B46: 666886 | C46: 245593 | D46: 668978 | E46: 248186 | F46: 668100 | G46: 247000 | H46: 395 | I46: 356 | J46: 552 | K46: 406 | L46: 386
A47: Fischbach-Göslikon | B47: 664531 | C47: 245722 | D47: 667228 | E47: 247876 | F47: 665900 | G47: 246900 | H47: 373 | I47: 355 | J47: 466 | K47: 387 | L47: 385
A48: Hägglingen | B48: 659966 | C48: 247230 | D48: 663594 | E48: 250946 | F48: 661600 | G48: 248800 | H48: 474 | I48: 443 | J48: 587 | K48: 513 | L48: 516
A49: Hermetschwil-Staffeln | B49: 666601 | C49: 241444 | D49: 669925 | E49: 243574 | F49: 668400 | G49: 242700 | H49: 408 | I49: 379 | J49: 473 | K49: 427 | L49: 435
A50: Hilfikon | B50: 659853 | C50: 241729 | D50: 661849 | E50: 243313 | F50: 661100 | G50: 242800 | H50: 473 | I50: 459 | J50: 641 | K50: 531 | L50: 516
A51: Jonen | B51: 670848 | C51: 237890 | D51: 674909 | E51: 240528 | F51: 672200 | G51: 238800 | H51: 398 | I51: 381 | J51: 556 | K51: 440 | L51: 440
A52: Niederwil (AG) | B52: 663268 | C52: 245984 | D52: 665654 | E52: 250207 | F52: 664600 | G52: 247800 | H52: 404 | I52: 348 | J52: 502 | K52: 418 | L52: 412
A53: Oberlunkhofen | B53: 671123 | C53: 239643 | D53: 673993 | E53: 241752 | F53: 672100 | G53: 240500 | H53: 450 | I53: 380 | J53: 576 | K53: 474 | L53: 489
A54: Oberwil-Lieli | B54: 670509 | C54: 242248 | D54: 673930 | E54: 245051 | F54: 671600 | G54: 243200 | H54: 557 | I54: 465 | J54: 672 | K54: 576 | L54: 583
A55: Rudolfstetten-Friedlisberg | B55: 669946 | C55: 245772 | D55: 673235 | E55: 248013 | F55: 671100 | G55: 246800 | H55: 478 | I55: 447 | J55: 659 | K55: 555 | L55: 555
A56: Sarmenstorf | B56: 659579 | C56: 238587 | D56: 663721 | E56: 242113 | F56: 661200 | G56: 240300 | H56: 532 | I56: 506 | J56: 705 | K56: 578 | L56: 565
A57: Tägerig | B57: 662234 | C57: 248768 | D57: 664631 | E57: 251434 | F57: 663400 | G57: 250500 | H57: 391 | I57: 347 | J57: 513 | K57: 417 | L57: 395
A58: Uezwil | B58: 662485 | C58: 239322 | D58: 664320 | E58: 241807 | F58: 663300 | G58: 240900 | H58: 531 | I58: 514 | J58: 631 | K58: 559 | L58: 558
A59: Unterlunkhofen | B59: 668847 | C59: 240168 | D59: 673568 | E59: 243305 | F59: 671300 | G59: 241600 | H59: 405 | I59: 378 | J59: 593 | K59: 446 | L59: 422
A60: Villmergen | B60: 658421 | C60: 242684 | D60: 662487 | E60: 247953 | F60: 660900 | G60: 244400 | H60: 431 | I60: 408 | J60: 710 | K60: 483 | L60: 438
A61: Widen | B61: 668422 | C61: 245870 | D61: 670284 | E61: 248410 | F61: 669800 | G61: 246800 | H61: 563 | I61: 429 | J61: 733 | K61: 565 | L61: 558
A62: Wohlen (AG) | B62: 661312 | C62: 242881 | D62: 666559 | E62: 247395 | F62: 663400 | G62: 244700 | H62: 423 | I62: 409 | J62: 546 | K62: 447 | L62: 438
A63: Zufikon | B63: 667946 | C63: 242817 | D63: 670788 | E63: 246276 | F63: 669600 | G63: 244200 | H63: 405 | I63: 379 | J63: 540 | K63: 432 | L63: 412
A64: Islisberg | B64: 674946 | C64: 240940 | D64: 676827 | E64: 243155 | F64: 675700 | G64: 241800 | H64: 679 | I64: 582 | J64: 679 | K64: 648 | L64: 651
A65: Auenstein | B65: 649713 | C65: 251308 | D65: 654487 | E65: 253095 | F65: 652900 | G65: 252000 | H65: 366 | I65: 348 | J65: 751 | K65: 451 | L65: 424
A66: Birr | B66: 656513 | C66: 252699 | D66: 659973 | E66: 254850 | F66: 657500 | G66: 254300 | H66: 408 | I66: 392 | J66: 630 | K66: 426 | L66: 405
A67: Birrhard | B67: 659609 | C67: 252863 | D67: 661766 | E67: 255730 | F67: 660800 | G67: 254400 | H67: 397 | I67: 336 | J67: 417 | K67: 394 | L67: 399
A68: Bözen | B68: 647843 | C68: 259155 | D68: 650182 | E68: 262572 | F68: 648600 | G68: 260600 | H68: 404 | I68: 398 | J68: 579 | K68: 456 | L68: 449
A69: Brugg | B69: 655158 | C69: 257100 | D69: 660178 | E69: 262214 | F69: 657900 | G69: 259400 | H69: 352 | I69: 327 | J69: 516 | K69: 360 | L69: 346
A70: Effingen | B70: 649083 | C70: 258172 | D70: 652261 | E70: 262861 | F70: 650100 | G70: 260100 | H70: 430 | I70: 418 | J70: 648 | K70: 513 | L70: 501
A71: Elfingen | B71: 648466 | C71: 261283 | D71: 651323 | E71: 263443 | F71: 649800 | G71: 262000 | H71: 457 | I71: 428 | J71: 656 | K71: 533 | L71: 529
A72: Gallenkirch | B72: 650672 | C72: 258360 | D72: 652487 | E72: 259697 | F72: 651900 | G72: 258900 | H72: 568 | I72: 490 | J72: 583 | K72: 558 | L72: 562
A73: Habsburg | B73: 655213 | C73: 255952 | D73: 657441 | E73: 258136 | F73: 656300 | G73: 257100 | H73: 464 | I73: 373 | J73: 498 | K73: 441 | L73: 447
A74: Hausen (AG) | B74: 656808 | C74: 256018 | D74: 659245 | E74: 258323 | F74: 658300 | G74: 257100 | H74: 381 | I74: 360 | J74: 463 | K74: 405 | L74: 404
A75: Hottwil | B75: 653477 | C75: 264560 | D75: 655905 | E75: 267613 | F75: 654400 | G75: 266600 | H75: 409 | I75: 398 | J75: 642 | K75: 502 | L75: 498
A76: Linn | B76: 650298 | C76: 256817 | D76: 652832 | E76: 259037 | F76: 651900 | G76: 257900 | H76: 568 | I76: 482 | J76: 753 | K76: 582 | L76: 568
A77: Lupfig | B77: 655904 | C77: 253104 | D77: 660466 | E77: 256424 | F77: 657700 | G77: 254800 | H77: 394 | I77: 384 | J77: 611 | K77: 413 | L77: 393
A78: Mandach | B78: 655028 | C78: 265560 | D78: 657914 | E78: 268547 | F78: 656200 | G78: 266500 | H78: 491 | I78: 410 | J78: 626 | K78: 523 | L78: 524
A79: Mönthal | B79: 650718 | C79: 262267 | D79: 654259 | E79: 264182 | F79: 652900 | G79: 263300 | H79: 482 | I79: 441 | J79: 666 | K79: 535 | L79: 535
A80: Mülligen | B80: 659051 | C80: 255140 | D80: 661766 | E80: 256937 | F80: 660400 | G80: 256600 | H80: 365 | I80: 336 | J80: 493 | K80: 388 | L80: 390
A81: Oberbözberg | B81: 651927 | C81: 260480 | D81: 656108 | E81: 262582 | F81: 654200 | G81: 261000 | H81: 538 | I81: 406 | J81: 642 | K81: 534 | L81: 539
A82: Oberflachs | B82: 650665 | C82: 253007 | D82: 652650 | E82: 255667 | F82: 652200 | G82: 254700 | H82: 398 | I82: 388 | J82: 733 | K82: 519 | L82: 505
A83: Remigen | B83: 653481 | C83: 261573 | D83: 658068 | E83: 264985 | F83: 656500 | G83: 263100 | H83: 395 | I83: 369 | J83: 694 | K83: 476 | L83: 458
A84: Riniken | B84: 654782 | C84: 259335 | D84: 657937 | E84: 262071 | F84: 656500 | G84: 260600 | H84: 392 | I84: 373 | J84: 513 | K84: 425 | L84: 408
A85: Rüfenach | B85: 656753 | C85: 260408 | D85: 659810 | E85: 262863 | F85: 657700 | G85: 262300 | H85: 381 | I85: 337 | J85: 522 | K85: 407 | L85: 384
A86: Scherz | B86: 655274 | C86: 253910 | D86: 657706 | E86: 256530 | F86: 656300 | G86: 255400 | H86: 404 | I86: 378 | J86: 527 | K86: 430 | L86: 421
A87: Schinznach-Bad | B87: 654568 | C87: 254790 | D87: 655706 | E87: 257444 | F87: 655100 | G87: 255800 | H87: 366 | I87: 340 | J87: 479 | K87: 362 | L87: 353
A88: Schinznach-Dorf | B88: 649900 | C88: 254712 | D88: 654790 | E88: 257800 | F88: 653100 | G88: 255300 | H88: 373 | I88: 344 | J88: 752 | K88: 470 | L88: 437
A89: Thalheim (AG) | B89: 647203 | C89: 252709 | D89: 651176 | E89: 256693 | F89: 650000 | G89: 254200 | H89: 444 | I89: 414 | J89: 796 | K89: 594 | L89: 596
A90: Umiken | B90: 655687 | C90: 258537 | D90: 657228 | E90: 259775 | F90: 656600 | G90: 259300 | H90: 352 | I90: 329 | J90: 428 | K90: 367 | L90: 360
A91: Unterbözberg | B91: 651727 | C91: 258374 | D91: 656064 | E91: 261381 | F91: 654100 | G91: 259400 | H91: 510 | I91: 425 | J91: 607 | K91: 536 | L91: 539
A92: Veltheim (AG) | B92: 651737 | C92: 252062 | D92: 654824 | E92: 254961 | F92: 653500 | G92: 254300 | H92: 371 | I92: 344 | J92: 670 | K92: 413 | L92: 395
A93: Villigen | B93: 654799 | C93: 262123 | D93: 659966 | E93: 266543 | F93: 658500 | G93: 264200 | H93: 363 | I93: 327 | J93: 694 | K93: 471 | L93: 459
A94: Villnachern | B94: 652483 | C94: 256837 | D94: 656926 | E94: 259202 | F94: 654400 | G94: 258000 | H94: 366 | I94: 329 | J94: 570 | K94: 406 | L94: 384
A95: Windisch | B95: 657411 | C95: 256865 | D95: 660420 | E95: 260490 | F95: 658400 | G95: 259000 | H95: 359 | I95: 329 | J95: 457 | K95: 364 | L95: 361
A96: Beinwil am See | B96: 657000 | C96: 233232 | D96: 659137 | E96: 237055 | F96: 657800 | G96: 235300 | H96: 524 | I96: 449 | J96: 644 | K96: 531 | L96: 534
A97: Birrwil | B97: 655975 | C97: 236775 | D97: 657989 | E97: 239571 | F97: 657300 | G97: 238000 | H97: 556 | I97: 449 | J97: 766 | K97: 604 | L97: 602
A98: Burg (AG) | B98: 655497 | C98: 230884 | D98: 656589 | E98: 232473 | F98: 656200 | G98: 231800 | H98: 616 | I98: 560 | J98: 666 | K98: 625 | L98: 626
A99: Dürrenäsch | B99: 652260 | C99: 238976 | D99: 655626 | E99: 242730 | F99: 654300 | G99: 241400 | H99: 555 | I99: 496 | J99: 762 | K99: 606 | L99: 593
A100: Gontenschwil | B100: 651442 | C100: 232721 | D100: 655145 | E100: 237744 | F100: 653400 | G100: 235800 | H100: 535 | I100: 495 | J100: 749 | K100: 589 | L100: 585
A101: Holziken | B101: 644123 | C101: 239861 | D101: 645812 | E101: 242380 | F101: 645200 | G101: 241400 | H101: 442 | I101: 435 | J101: 547 | K101: 466 | L101: 446
A102: Leimbach (AG) | B102: 654410 | C102: 235535 | D102: 656268 | E102: 236912 | F102: 655300 | G102: 236000 | H102: 528 | I102: 507 | J102: 757 | K102: 589 | L102: 551
A103: Leutwil | B103: 654331 | C103: 238434 | D103: 656897 | E103: 241207 | F103: 655600 | G103: 240000 | H103: 612 | I103: 522 | J103: 772 | K103: 649 | L103: 643
A104: Menziken | B104: 654312 | C104: 230365 | D104: 658237 | E104: 233508 | F104: 656700 | G104: 232700 | H104: 545 | I104: 536 | J104: 869 | K104: 624 | L104: 607
A105: Oberkulm | B105: 649455 | C105: 236742 | D105: 654076 | E105: 240636 | F105: 651500 | G105: 238900 | H105: 475 | I105: 465 | J105: 735 | K105: 547 | L105: 540
A106: Reinach (AG) | B106: 653287 | C106: 232998 | D106: 658144 | E106: 237437 | F106: 656300 | G106: 233900 | H106: 527 | I106: 511 | J106: 786 | K106: 593 | L106: 566
A107: Schlossrued | B107: 647114 | C107: 235667 | D107: 651150 | E107: 239507 | F107: 649100 | G107: 238000 | H107: 497 | I107: 475 | J107: 678 | K107: 565 | L107: 566
A108: Schmiedrued | B108: 649035 | C108: 232505 | D108: 652407 | E108: 237060 | F108: 650600 | G108: 234900 | H108: 593 | I108: 528 | J108: 803 | K108: 660 | L108: 662
A109: Schöftland | B109: 644792 | C109: 238249 | D109: 648917 | E109: 241063 | F109: 646300 | G109: 239500 | H109: 460 | I109: 444 | J109: 643 | K109: 503 | L109: 487
A110: Teufenthal (AG) | B110: 650740 | C110: 241105 | D110: 653628 | E110: 242939 | F110: 651300 | G110: 242200 | H110: 448 | I110: 440 | J110: 628 | K110: 521 | L110: 522
A111: Unterkulm | B111: 648657 | C111: 239252 | D111: 652436 | E111: 243288 | F111: 651200 | G111: 240100 | H111: 467 | I111: 435 | J111: 650 | K111: 538 | L111: 538
A112: Zetzwil | B112: 652940 | C112: 236330 | D112: 656352 | E112: 239256 | F112: 653800 | G112: 237400 | H112: 508 | I112: 495 | J112: 770 | K112: 605 | L112: 604
A113: Eiken | B113: 639970 | C113: 263695 | D113: 642892 | E113: 267256 | F113: 641500 | G113: 264700 | H113: 332 | I113: 298 | J113: 487 | K113: 346 | L113: 323
A114: Etzgen | B114: 649553 | C114: 267865 | D114: 652263 | E114: 270580 | F114: 650600 | G114: 269100 | H114: 336 | I114: 297 | J114: 505 | K114: 371 | L114: 350
A115: Frick | B115: 640648 | C115: 259871 | D115: 645784 | E115: 264246 | F115: 643900 | G115: 262000 | H115: 345 | I115: 339 | J115: 645 | K115: 421 | L115: 412
A116: Gansingen | B116: 650512 | C116: 263783 | D116: 654235 | E116: 267375 | F116: 652400 | G116: 266000 | H116: 388 | I116: 368 | J116: 687 | K116: 499 | L116: 490
A117: Gipf-Oberfrick | B117: 638493 | C117: 257877 | D117: 644320 | E117: 262193 | F117: 642500 | G117: 260900 | H117: 370 | I117: 354 | J117: 746 | K117: 483 | L117: 467
A118: Herznach | B118: 643452 | C118: 256966 | D118: 648215 | E118: 259149 | F118: 646300 | G118: 258100 | H118: 421 | I118: 406 | J118: 597 | K118: 489 | L118: 487
A119: Hornussen | B119: 645108 | C119: 259164 | D119: 649520 | E119: 263480 | F119: 647000 | G119: 261200 | H119: 383 | I119: 359 | J119: 643 | K119: 479 | L119: 464
A120: Ittenthal | B120: 645164 | C120: 262081 | D120: 648616 | E120: 264352 | F120: 646700 | G120: 263200 | H120: 400 | I120: 370 | J120: 715 | K120: 512 | L120: 500
A121: Kaisten | B121: 642836 | C121: 263280 | D121: 648368 | E121: 267350 | F121: 645600 | G121: 265600 | H121: 333 | I121: 288 | J121: 711 | K121: 386 | L121: 380
A122: Laufenburg | B122: 645722 | C122: 266585 | D122: 647941 | E122: 268405 | F122: 646800 | G122: 267900 | H122: 319 | I122: 289 | J122: 502 | K122: 362 | L122: 326
A123: Mettau | B123: 650142 | C123: 267774 | D123: 653402 | E123: 270184 | F123: 651800 | G123: 268400 | H123: 346 | I123: 327 | J123: 552 | K123: 445 | L123: 464
A124: Münchwilen (AG) | B124: 638624 | C124: 264174 | D124: 640243 | E124: 266748 | F124: 639400 | G124: 265400 | H124: 338 | I124: 300 | J124: 497 | K124: 379 | L124: 358
A125: Oberhof | B125: 640982 | C125: 253219 | D125: 644894 | E125: 256269 | F125: 642800 | G125: 255500 | H125: 474 | I125: 460 | J125: 862 | K125: 639 | L125: 639
A126: Oberhofen (AG) | B126: 649808 | C126: 266636 | D126: 653367 | E126: 268372 | F126: 652300 | G126: 267300 | H126: 362 | I126: 350 | J126: 560 | K126: 439 | L126: 434
A127: Oeschgen | B127: 642140 | C127: 262693 | D127: 645031 | E127: 265216 | F127: 643500 | G127: 263300 | H127: 335 | I127: 320 | J127: 496 | K127: 388 | L127: 389
A128: Schwaderloch | B128: 651719 | C128: 269668 | D128: 654218 | E128: 271947 | F128: 653100 | G128: 270800 | H128: 320 | I128: 306 | J128: 501 | K128: 357 | L128: 323
A129: Sisseln | B129: 639499 | C129: 266320 | D129: 642862 | E129: 267519 | F129: 641400 | G129: 267100 | H129: 300 | I129: 289 | J129: 306 | K129: 299 | L129: 301
A130: Sulz (AG) | B130: 647538 | C130: 263175 | D130: 651463 | E130: 268102 | F130: 649500 | G130: 265100 | H130: 376 | I130: 297 | J130: 670 | K130: 457 | L130: 458
A131: Ueken | B131: 644010 | C131: 258369 | D131: 647663 | E131: 261059 | F131: 646000 | G131: 259500 | H131: 398 | I131: 367 | J131: 557 | K131: 470 | L131: 479
A132: Wil (AG) | B132: 652489 | C132: 266417 | D132: 655678 | E132: 270716 | F132: 653700 | G132: 268000 | H132: 378 | I132: 362 | J132: 579 | K132: 475 | L132: 487
A133: Wittnau | B133: 637806 | C133: 256129 | D133: 642031 | E133: 260498 | F133: 640400 | G133: 258900 | H133: 408 | I133: 382 | J133: 714 | K133: 533 | L133: 521
A134: Wölflinswil | B134: 640230 | C134: 255191 | D134: 644606 | E134: 259178 | F134: 642200 | G134: 256900 | H134: 438 | I134: 398 | J134: 836 | K134: 536 | L134: 532
A135: Zeihen | B135: 647465 | C135: 256429 | D135: 651232 | E135: 260037 | F135: 648700 | G135: 258500 | H135: 453 | I135: 418 | J135: 751 | K135: 531 | L135: 521
A136: Ammerswil | B136: 656733 | C136: 245515 | D136: 659220 | E136: 247673 | F136: 658100 | G136: 246800 | H136: 455 | I136: 428 | J136: 607 | K136: 497 | L136: 494
A137: Boniswil | B137: 655395 | C137: 238835 | D137: 657598 | E137: 241558 | F137: 656500 | G137: 240800 | H137: 475 | I137: 447 | J137: 572 | K137: 487 | L137: 475
A138: Brunegg | B138: 658020 | C138: 251612 | D138: 660198 | E138: 253492 | F138: 658700 | G138: 252300 | H138: 426 | I138: 407 | J138: 572 | K138: 437 | L138: 422
A139: Dintikon | B139: 658025 | C139: 244146 | D139: 660255 | E139: 247705 | F139: 659600 | G139: 246200 | H139: 442 | I139: 420 | J139: 676 | K139: 527 | L139: 516
A140: Egliswil | B140: 655225 | C140: 243293 | D140: 658551 | E140: 246324 | F140: 656600 | G140: 244600 | H140: 469 | I140: 415 | J140: 659 | K140: 512 | L140: 508
A141: Fahrwangen | B141: 659719 | C141: 236025 | D141: 662054 | E141: 239904 | F141: 660800 | G141: 238500 | H141: 544 | I141: 450 | J141: 654 | K141: 562 | L141: 560
A142: Hallwil | B142: 654865 | C142: 240817 | D142: 656708 | E142: 243100 | F142: 655700 | G142: 242300 | H142: 472 | I142: 443 | J142: 540 | K142: 477 | L142: 472
A143: Hendschiken | B143: 657466 | C143: 247380 | D143: 659881 | E143: 249497 | F143: 658800 | G143: 248700 | H143: 412 | I143: 399 | J143: 523 | K143: 430 | L143: 417
A144: Holderbank (AG) | B144: 654571 | C144: 252497 | D144: 656317 | E144: 254891 | F144: 655100 | G144: 253100 | H144: 357 | I144: 347 | J144: 610 | K144: 409 | L144: 385
A145: Hunzenschwil | B145: 650399 | C145: 247058 | D145: 652755 | E145: 249358 | F145: 651800 | G145: 248700 | H145: 400 | I145: 394 | J145: 516 | K145: 411 | L145: 405
A146: Lenzburg | B146: 653314 | C146: 246012 | D146: 657808 | E146: 251145 | F146: 655500 | G146: 249000 | H146: 405 | I146: 384 | J146: 552 | K146: 433 | L146: 424
A147: Meisterschwanden | B147: 658639 | C147: 236613 | D147: 660457 | E147: 240722 | F147: 659700 | G147: 238500 | H147: 500 | I147: 449 | J147: 554 | K147: 500 | L147: 501
A148: Möriken-Wildegg | B148: 654037 | C148: 250600 | D148: 658394 | E148: 253223 | F148: 656100 | G148: 251900 | H148: 385 | I148: 347 | J148: 633 | K148: 423 | L148: 405
A149: Niederlenz | B149: 653811 | C149: 249667 | D149: 656769 | E149: 251686 | F149: 655700 | G149: 250300 | H149: 379 | I149: 358 | J149: 429 | K149: 389 | L149: 389
A150: Othmarsingen | B150: 657305 | C150: 249217 | D150: 660081 | E150: 251832 | F150: 658700 | G150: 250300 | H150: 396 | I150: 388 | J150: 541 | K150: 427 | L150: 421
A151: Rupperswil | B151: 650213 | C151: 249112 | D151: 654157 | E151: 251852 | F151: 652000 | G151: 250500 | H151: 373 | I151: 350 | J151: 401 | K151: 372 | L151: 374
A152: Schafisheim | B152: 651523 | C152: 245240 | D152: 654158 | E152: 249680 | F152: 653200 | G152: 247600 | H152: 416 | I152: 390 | J152: 581 | K152: 451 | L152: 429
A153: Seengen | B153: 655816 | C153: 240480 | D153: 660173 | E153: 244161 | F153: 658000 | G153: 241800 | H153: 468 | I153: 443 | J153: 711 | K153: 538 | L153: 532
A154: Seon | B154: 652634 | C154: 242357 | D154: 656210 | E154: 246587 | F154: 654500 | G154: 244300 | H154: 443 | I154: 416 | J154: 611 | K154: 476 | L154: 455
A155: Staufen | B155: 653255 | C155: 246285 | D155: 655555 | E155: 249871 | F155: 654900 | G155: 248200 | H155: 422 | I155: 393 | J155: 513 | K155: 424 | L155: 425
A156: Abtwil | B156: 668162 | C156: 223272 | D156: 670427 | E156: 226481 | F156: 669500 | G156: 225200 | H156: 537 | I156: 501 | J156: 661 | K156: 548 | L156: 539
A157: Aristau | B157: 667786 | C157: 236274 | D157: 672093 | E157: 240061 | F157: 670000 | G157: 237700 | H157: 394 | I157: 379 | J157: 471 | K157: 411 | L157: 393
A158: Auw | B158: 667312 | C158: 228026 | D158: 671830 | E158: 231930 | F158: 670200 | G158: 229300 | H158: 488 | I158: 458 | J158: 782 | K158: 529 | L158: 495
A159: Beinwil (Freiamt) | B159: 666280 | C159: 228995 | D159: 670832 | E159: 233200 | F159: 668700 | G159: 231500 | H159: 576 | I159: 458 | J159: 852 | K159: 652 | L159: 633
A160: Benzenschwil | B160: 669054 | C160: 232236 | D160: 671174 | E160: 234283 | F160: 670100 | G160: 233400 | H160: 457 | I160: 404 | J160: 545 | K160: 473 | L160: 472
A161: Besenbüren | B161: 667745 | C161: 239488 | D161: 669262 | E161: 241644 | F161: 668500 | G161: 240600 | H161: 454 | I161: 428 | J161: 492 | K161: 454 | L161: 455
A162: Bettwil | B162: 661725 | C162: 236034 | D162: 665102 | E162: 239115 | F162: 662700 | G162: 238100 | H162: 694 | I162: 639 | J162: 753 | K162: 703 | L162: 703
A163: Boswil | B163: 663918 | C163: 236327 | D163: 668238 | E163: 242311 | F163: 666100 | G163: 239200 | H163: 456 | I163: 429 | J163: 700 | K163: 517 | L163: 491
A164: Bünzen | B164: 665149 | C164: 239749 | D164: 668195 | E164: 243108 | F164: 666900 | G164: 240300 | H164: 441 | I164: 427 | J164: 476 | K164: 444 | L164: 440
A165: Buttwil | B165: 664772 | C165: 233706 | D165: 667151 | E165: 236938 | F165: 666000 | G165: 235700 | H165: 638 | I165: 579 | J165: 811 | K165: 684 | L165: 671
A166: Dietwil | B166: 670942 | C166: 221172 | D166: 674052 | E166: 223854 | F166: 672300 | G166: 222300 | H166: 440 | I166: 403 | J166: 536 | K166: 440 | L166: 419
A167: Geltwil | B167: 665690 | C167: 232460 | D167: 669073 | E167: 234623 | F167: 667000 | G167: 233500 | H167: 683 | I167: 531 | J167: 824 | K167: 662 | L167: 657
A168: Kallern | B168: 663474 | C168: 238339 | D168: 665235 | E168: 241853 | F168: 664700 | G168: 241000 | H168: 532 | I168: 449 | J168: 675 | K168: 572 | L168: 581
A169: Merenschwand | B169: 669535 | C169: 232844 | D169: 673612 | E169: 237726 | F169: 670800 | G169: 234800 | H169: 396 | I169: 383 | J169: 475 | K169: 394 | L169: 386
A170: Mühlau | B170: 670719 | C170: 230137 | D170: 673401 | E170: 233504 | F170: 672000 | G170: 231400 | H170: 396 | I170: 388 | J170: 475 | K170: 412 | L170: 400
A171: Muri (AG) | B171: 666220 | C171: 233287 | D171: 669970 | E171: 238804 | F171: 668400 | G171: 236000 | H171: 461 | I171: 433 | J171: 624 | K171: 495 | L171: 476
A172: Oberrüti | B172: 671230 | C172: 222909 | D172: 674065 | E172: 226327 | F172: 672500 | G172: 224300 | H172: 420 | I172: 399 | J172: 495 | K172: 420 | L172: 411
A173: Rottenschwil | B173: 668912 | C173: 239358 | D173: 671291 | E173: 242453 | F173: 669900 | G173: 240800 | H173: 383 | I173: 378 | J173: 451 | K173: 391 | L173: 380
A174: Sins | B174: 667545 | C174: 221762 | D174: 673257 | E174: 230340 | F174: 672400 | G174: 227200 | H174: 419 | I174: 394 | J174: 752 | K174: 498 | L174: 492
A175: Waltenschwil | B175: 663192 | C175: 241594 | D175: 666687 | E175: 244267 | F175: 665400 | G175: 243000 | H175: 425 | I175: 424 | J175: 522 | K175: 442 | L175: 432
A176: Hellikon | B176: 634315 | C176: 260261 | D176: 638052 | E176: 263777 | F176: 636600 | G176: 262200 | H176: 417 | I176: 398 | J176: 634 | K176: 525 | L176: 533
A177: Kaiseraugst | B177: 620701 | C177: 263852 | D177: 624466 | E177: 266085 | F177: 621500 | G177: 265600 | H177: 267 | I177: 261 | J177: 381 | K177: 308 | L177: 295
A178: Magden | B178: 625941 | C178: 260731 | D178: 629874 | E178: 265526 | F178: 628200 | G178: 264100 | H178: 329 | I178: 308 | J178: 606 | K178: 413 | L178: 404
A179: Möhlin | B179: 628565 | C179: 264737 | D179: 634555 | E179: 270995 | F179: 630600 | G179: 267500 | H179: 311 | I179: 281 | J179: 630 | K179: 331 | L179: 326
A180: Mumpf | B180: 634357 | C180: 264990 | D180: 637768 | E180: 267247 | F180: 636300 | G180: 266200 | H180: 291 | I180: 284 | J180: 489 | K180: 351 | L180: 341
A181: Obermumpf | B181: 635988 | C181: 262621 | D181: 639007 | E181: 265940 | F181: 637600 | G181: 264400 | H181: 375 | I181: 320 | J181: 555 | K181: 460 | L181: 468
A182: Olsberg | B182: 623455 | C182: 260320 | D182: 627215 | E182: 265660 | F182: 626000 | G182: 263500 | H182: 387 | I182: 327 | J182: 560 | K182: 414 | L182: 408
A183: Rheinfelden | B183: 623652 | C183: 264724 | D183: 630065 | E183: 270872 | F183: 626900 | G183: 267000 | H183: 282 | I183: 261 | J183: 417 | K183: 306 | L183: 297
A184: Schupfart | B184: 637933 | C184: 260189 | D184: 641081 | E184: 264391 | F184: 639700 | G184: 262700 | H184: 448 | I184: 410 | J184: 738 | K184: 514 | L184: 500
A185: Stein (AG) | B185: 637379 | C185: 264697 | D185: 639599 | E185: 267608 | F185: 638400 | G185: 266000 | H185: 296 | I185: 283 | J185: 485 | K185: 328 | L185: 300
A186: Wallbach | B186: 633067 | C186: 266952 | D186: 635580 | E186: 270457 | F186: 635000 | G186: 267700 | H186: 287 | I186: 281 | J186: 351 | K186: 314 | L186: 314
A187: Wegenstetten | B187: 635128 | C187: 259073 | D187: 638763 | E187: 262426 | F187: 637300 | G187: 260900 | H187: 441 | I187: 428 | J187: 717 | K187: 536 | L187: 522
A188: Zeiningen | B188: 631146 | C188: 263262 | D188: 634739 | E188: 268888 | F188: 632500 | G188: 265700 | H188: 341 | I188: 313 | J188: 596 | K188: 410 | L188: 382
A189: Zuzgen | B189: 632874 | C189: 261642 | D189: 636950 | E189: 265860 | F189: 634800 | G189: 263800 | H189: 376 | I189: 367 | J189: 636 | K189: 502 | L189: 517
A190: Aarburg | B190: 634259 | C190: 239718 | D190: 636932 | E190: 243560 | F190: 634900 | G190: 241100 | H190: 399 | I190: 388 | J190: 592 | K190: 432 | L190: 410
A191: Attelwil | B191: 644190 | C191: 233998 | D191: 646667 | E191: 235683 | F191: 645700 | G191: 234500 | H191: 500 | I191: 473 | J191: 677 | K191: 551 | L191: 538
A192: Bottenwil | B192: 640859 | C192: 235588 | D192: 643998 | E192: 238581 | F192: 642900 | G192: 237300 | H192: 490 | I192: 470 | J192: 660 | K192: 560 | L192: 554
A193: Brittnau | B193: 634282 | C193: 231780 | D193: 639602 | E193: 236282 | F193: 638500 | G193: 234300 | H193: 452 | I193: 434 | J193: 611 | K193: 493 | L193: 496
A194: Kirchleerau | B194: 646605 | C194: 234994 | D194: 649382 | E194: 237827 | F194: 647600 | G194: 236300 | H194: 512 | I194: 489 | J194: 706 | K194: 592 | L194: 600
A195: Kölliken | B195: 642432 | C195: 240109 | D195: 645907 | E195: 244521 | F195: 644100 | G195: 242900 | H195: 441 | I195: 420 | J195: 562 | K195: 457 | L195: 450
A196: Moosleerau | B196: 646250 | C196: 233926 | D196: 649169 | E196: 236395 | F196: 647300 | G196: 235500 | H196: 510 | I196: 473 | J196: 706 | K196: 541 | L196: 522
A197: Murgenthal | B197: 629249 | C197: 231370 | D197: 634567 | E197: 237755 | F197: 630200 | G197: 235300 | H197: 411 | I197: 397 | J197: 565 | K197: 481 | L197: 481
A198: Oftringen | B198: 635518 | C198: 238099 | D198: 640670 | E198: 242827 | F198: 636500 | G198: 240700 | H198: 420 | I198: 409 | J198: 680 | K198: 469 | L198: 450
A199: Reitnau | B199: 643531 | C199: 232355 | D199: 647282 | E199: 234897 | F199: 645900 | G199: 233400 | H199: 514 | I199: 474 | J199: 682 | K199: 581 | L199: 596
A200: Rothrist | B200: 631235 | C200: 236692 | D200: 637046 | E200: 240638 | F200: 633300 | G200: 239500 | H200: 406 | I200: 399 | J200: 500 | K200: 433 | L200: 424
... 31 more rows

Sheet Karte
L1: Bild | N1: in cm
L2: Höhe | N2: 14.89
L3: Breite | N3: 15.56
L6: Koordinaten des Kantons | N6: in cm
L7: (Kartesisches Koordinaten System)
L8: XMIN | M8: =MIN(tblGeoDaten[XMIN]) -> 620701 | N8: 0 | O8: Minimale x-Koordinate des Gebiets [m]
L9: XMAX | M9: =MAX(tblGeoDaten[XMAX]) -> 676827 | N9: =N3 -> 15.56 | O9: Maximale x-Koordinate des Gebiets [m]
L10: YMIN | M10: =MIN(tblGeoDaten[YMIN]) -> 221172 | N10: 0 | O10: Minimale y-Koordinate des Gebiets [m]
L11: YMAX | M11: =MAX(tblGeoDaten[YMAX]) -> 274775 | N11: =N2 -> 14.89 | O11: Maximale y-Koordinate des Gebiets [m]
L13: Koordinaten der Gemeinde
L14: (Microsoft Excel Koordinaten System)
L15: =auswahlGemeinde -> Holziken
L16: X-Achse für Excel | M16: =VLOOKUP(auswahlGemeinde,tblGeoDaten[],COLUMN(tblGeoDaten[[#Headers],[ZKX]]),0) -> 645200 | N16: =((M16-M8)/(M9-M8)*N9) -> 6.791940277
L17: Y-Achse für Excel | M17: =VLOOKUP(auswahlGemeinde,tblGeoDaten[],COLUMN(tblGeoDaten[[#Headers],[ZKY]]),0) -> 241400 | N17: =((M17-M10)/(M11-M10))*N11 -> 5.618993713
